﻿"organisation_name","service_responsible","supplier_name","supplier_code","payment_date","transaction_ref","net_amount_by_line_item","irrecoverable_vat","purpose_of_spend","procurement_category_name","transaction_type","payment_type","card_transaction","invoice_date","financial_year","financial_period","supplier_invoice_reference","cost_centre_code","cost_centre_desc","account_code","account_desc"
"GUILDFORD BOROUGH COUNCIL","Lead Specialist - HR","Wealden Leisure Limited","702140","19/01/2021",30001206,57.2,0,"Pension Added Years","Sports And Leisure Centres","II","BACS","None",2020-08-06 00:00:00,"2020","10","192319","G2555","HR Services","A7180","Pension Added Years"
"GUILDFORD BOROUGH COUNCIL","Guildford Museum","Argos Business Solutions Ltd - DO NOT USE","624000","02/02/2021",30005241,76.03,0,"Advance, Loan Employees","Other Financial Service Providers","II","BACS","None",2020-10-25 00:00:00,"2020","10","01896508","A5511","Museum","1283","Advance, Loan Employees"
"GUILDFORD BOROUGH COUNCIL","Guildford Museum","Argos Business Solutions Ltd - DO NOT USE","624000","02/02/2021",30005241,76.03,0,"Advance, Loan Employees","Other Financial Service Providers","II","BACS","None",2020-10-25 00:00:00,"2020","10","01896508","A5511","Museum","1283","Advance, Loan Employees"
"GUILDFORD BOROUGH COUNCIL","Guildford Museum","Argos Business Solutions Ltd - DO NOT USE","624000","02/02/2021",30005241,76.03,0,"Purchase Of Equipment, Tools And Materials","Other Financial Service Providers","II","BACS","None",2020-10-25 00:00:00,"2020","10","01896508","A5511","Museum","1283","Purchase Of Equipment, Tools And Materials"
"GUILDFORD BOROUGH COUNCIL","Resources Caseworker","Churchill Contract Catering Ltd T/A Radish","442330","12/01/2021",30006320,67.18,0,"Catering","Outsourced Caterers","II","BACS","None",2020-09-30 00:00:00,"2020","10","31946","G7511","Millmead House","D3001","Catering"
"GUILDFORD BOROUGH COUNCIL","Millmead House","Churchill Contract Catering Ltd T/A Radish","442330","12/01/2021",30006320,67.18,0,"Catering","Outsourced Caterers","II","BACS","None",2020-09-30 00:00:00,"2020","10","31946","G7511","Millmead House","D3001","Catering"
"GUILDFORD BOROUGH COUNCIL","Resources Caseworker","Churchill Contract Catering Ltd T/A Radish","442330","12/01/2021",30006320,2860.37,0,"Catering","Outsourced Caterers","II","BACS","None",2020-09-30 00:00:00,"2020","10","31946","G7511","Millmead House","D3001","Catering"
"GUILDFORD BOROUGH COUNCIL","Millmead House","Churchill Contract Catering Ltd T/A Radish","442330","12/01/2021",30006320,2860.37,0,"Catering","Outsourced Caterers","II","BACS","None",2020-09-30 00:00:00,"2020","10","31946","G7511","Millmead House","D3001","Catering"
"GUILDFORD BOROUGH COUNCIL","Off Street Parking","Williams Brothers Newsagents","862400","07/01/2021",30007520,6.83,0,"Publications","Other Retailers","II","BACS","None",2020-11-23 00:00:00,"2020","10","026020","B2111","Car Parks - Administration","D5001","Publications"
"GUILDFORD BOROUGH COUNCIL","Development Control","Williams Brothers Newsagents","862400","07/01/2021",30007520,6.83,0,"Publications","Other Retailers","II","BACS","None",2020-11-23 00:00:00,"2020","10","026020","D5100","Development Control - Fee Earn","D5001","Publications"
"GUILDFORD BOROUGH COUNCIL","Public Relations","Williams Brothers Newsagents","862400","07/01/2021",30007520,9.1,0,"Publications","Other Retailers","II","BACS","None",2020-11-23 00:00:00,"2020","10","026020","F5551","Public Relations & Marketing","D5001","Publications"
"GUILDFORD BOROUGH COUNCIL","Corporate Services","Williams Brothers Newsagents","862400","07/01/2021",30007520,45.46,0,"Publications","Other Retailers","II","BACS","None",2020-11-23 00:00:00,"2020","10","026020","F1111","Corporate Services","D5001","Publications"
"GUILDFORD BOROUGH COUNCIL","Licensing","Williams Brothers Newsagents","862400","07/01/2021",30007520,6.83,0,"Publications","Other Retailers","II","BACS","None",2020-11-23 00:00:00,"2020","10","026020","H2100","Licensing Services","D5001","Publications"
"GUILDFORD BOROUGH COUNCIL","Crematorium","Amazon Payments Europe S.C.A.","951330","26/01/2021",30008361,12.64,0,"Advertising, Publicity & Promotion","Other Retailers","II","BACS","None",2020-12-06 00:00:00,"2020","10","INV-GB-6014525-2020-69040","A1500","Crematorium","D5002","Advertising, Publicity & Promotion"
"GUILDFORD BOROUGH COUNCIL","Crematorium","Amazon Payments Europe S.C.A.","951330","26/01/2021",30008361,3.74,0,"Advertising, Publicity & Promotion","Other Retailers","II","BACS","None",2020-12-06 00:00:00,"2020","10","INV-GB-6014525-2020-69040","A1500","Crematorium","D5002","Advertising, Publicity & Promotion"
"GUILDFORD BOROUGH COUNCIL","Crematorium","Amazon Payments Europe S.C.A.","951330","14/01/2021",30008494,18.16,0,"Materials","Other Retailers","II","BACS","None",2020-12-07 00:00:00,"2020","10","INV-GB-169386451-2020-2769","A1500","Crematorium","D2003","Materials"
"GUILDFORD BOROUGH COUNCIL","Countryside and Parks Services","Tudor (UK) Ltd T/A Tudor Environmental","950920","21/01/2021",30008544,7.6,0,"Equipment","Gardening Equipment Suppliers","II","BACS","None",2020-12-08 00:00:00,"2020","10","IN0099713","A1100","Horticulture","D2001","Equipment"
"GUILDFORD BOROUGH COUNCIL","Countryside and Parks Services","Tudor (UK) Ltd T/A Tudor Environmental","950920","21/01/2021",30008544,11.4,0,"Equipment","Gardening Equipment Suppliers","II","BACS","None",2020-12-08 00:00:00,"2020","10","IN0099713","A1100","Horticulture","D2001","Equipment"
"GUILDFORD BOROUGH COUNCIL","Countryside and Parks Services","Tudor (UK) Ltd T/A Tudor Environmental","950920","21/01/2021",30008544,191.2,0,"Equipment","Gardening Equipment Suppliers","II","BACS","None",2020-12-08 00:00:00,"2020","10","IN0099713","A1100","Horticulture","D2001","Equipment"
"GUILDFORD BOROUGH COUNCIL","Countryside and Parks Services","Tudor (UK) Ltd T/A Tudor Environmental","950920","21/01/2021",30008544,37.95,0,"Equipment","Gardening Equipment Suppliers","II","BACS","None",2020-12-08 00:00:00,"2020","10","IN0099713","A1100","Horticulture","D2001","Equipment"
"GUILDFORD BOROUGH COUNCIL","Countryside and Parks Services","Tudor (UK) Ltd T/A Tudor Environmental","950920","21/01/2021",30008544,104.2,0,"Equipment","Gardening Equipment Suppliers","II","BACS","None",2020-12-08 00:00:00,"2020","10","IN0099713","A1100","Horticulture","D2001","Equipment"
"GUILDFORD BOROUGH COUNCIL","Countryside and Parks Services","Tudor (UK) Ltd T/A Tudor Environmental","950920","21/01/2021",30008544,47.25,0,"Equipment","Gardening Equipment Suppliers","II","BACS","None",2020-12-08 00:00:00,"2020","10","IN0099713","A1100","Horticulture","D2001","Equipment"
"GUILDFORD BOROUGH COUNCIL","Countryside and Parks Services","Tudor (UK) Ltd T/A Tudor Environmental","950920","21/01/2021",30008544,1.05,0,"Equipment","Gardening Equipment Suppliers","II","BACS","None",2020-12-08 00:00:00,"2020","10","IN0099713","A1100","Horticulture","D2001","Equipment"
"GUILDFORD BOROUGH COUNCIL","Investment Properties","David Kingston Chartered Surveyors","970280","07/01/2021",30008729,850,0,"Valuers Fees","Surveyors And Inspectors","II","BACS","None",2020-12-09 00:00:00,"2020","10","091220","B6111","Investment Property","D6002","Valuers Fees"
"GUILDFORD BOROUGH COUNCIL","Tenant Services","Contract Cleaning & Facilities Ltd","974800","05/01/2021",30008824,72.58,0,"Cleaning Contractors","Commercial Cleaners","II","BACS","None",2020-10-31 00:00:00,"2020","10","58497","M1151","Tenants Services (BHS)","D6006","Cleaning Contractors"
"GUILDFORD BOROUGH COUNCIL","Woking Road Depot","Speedy Asset Services Limited","941290","21/01/2021",30008854,75,0,"Postage","Third Party Supplier","II","BACS","None",2020-11-30 00:00:00,"2020","10","7116397874","B4452","Woking Road Depot","D5003","Postage"
"GUILDFORD BOROUGH COUNCIL","Woking Road Depot","Speedy Asset Services Limited","941290","21/01/2021",30008854,652.8,0,"Hire","Third Party Supplier","II","BACS","None",2020-11-30 00:00:00,"2020","10","7116397874","B4452","Woking Road Depot","D1001","Hire"
"GUILDFORD BOROUGH COUNCIL","Countryside and Parks Services","ABM Surveys Limited","926480","19/01/2021",30009038,250,0,"Consultancy","Pest And Vermin Control Service Providers","II","BACS","None",2020-12-11 00:00:00,"2020","10","1798","A1250","Stoke Park","D6001","Consultancy"
"GUILDFORD BOROUGH COUNCIL","Crematorium","Amazon Payments Europe S.C.A.","951330","21/01/2021",30009136,12.22,0,"Materials","Other Retailers","II","BACS","None",2020-12-15 00:00:00,"2020","10","AEU-INV-GB-2020-516370801","A1500","Crematorium","D2003","Materials"
"GUILDFORD BOROUGH COUNCIL","Industrial Estates","Eversheds Sutherland (International) LLP","1000131","05/01/2021",30009205,1032,0,"Contractor Payments","","II","BACS","None",2020-12-03 00:00:00,"2020","10","1080/548","P72037","Midleton Ind Est Redevelop","1233","Contractor Payments"
"GUILDFORD BOROUGH COUNCIL","Crematorium","Amazon Payments Europe S.C.A.","951330","14/01/2021",30009337,25.82,0,"Materials","Other Retailers","II","BACS","None",2020-12-16 00:00:00,"2020","10","INV-GB-1345781795-2020-98637","A1500","Crematorium","D2003","Materials"
"GUILDFORD BOROUGH COUNCIL","Crematorium","Amazon Payments Europe S.C.A.","951330","14/01/2021",30009347,0.61,0,"Materials","Other Retailers","II","BACS","None",2020-12-16 00:00:00,"2020","10","AEU-INV-GB-2020-517718062","A1500","Crematorium","D2003","Materials"
"GUILDFORD BOROUGH COUNCIL","Crematorium","Amazon Payments Europe S.C.A.","951330","14/01/2021",30009347,2.08,0,"Materials","Other Retailers","II","BACS","None",2020-12-16 00:00:00,"2020","10","AEU-INV-GB-2020-517718062","A1500","Crematorium","D2003","Materials"
"GUILDFORD BOROUGH COUNCIL","Building Maintenance","Chambers Waste Management Plc","127500","07/01/2021",30009436,156.9,0,"Services","Other Waste Disposal Suppliers","II","BACS","None",2020-12-13 00:00:00,"2020","10","P449689","K1515","Building Maintenance","D6004","Services"
"GUILDFORD BOROUGH COUNCIL","Park and Ride Service","John F Hunt Power Ltd","803060","19/01/2021",30009474,1029.6,0,"Hire","Other Construction Contractors","II","BACS","None",2020-10-31 00:00:00,"2020","10","202652","B5206","Onslow Park And Ride","D1001","Hire"
"GUILDFORD BOROUGH COUNCIL","On Street Parking","Keltic Ltd","214100","12/01/2021",30009588,719.6,0,"Clothing & Uniform","Personal Protective Equipment (Ppe) Suppliers","II","BACS","None",2020-12-18 00:00:00,"2020","10","161521","B2215","Waverley On-Street","D4001","Clothing & Uniform"
"GUILDFORD BOROUGH COUNCIL","On Street Parking","Keltic Ltd","214100","12/01/2021",30009588,9.95,0,"Postage","Personal Protective Equipment (Ppe) Suppliers","II","BACS","None",2020-12-18 00:00:00,"2020","10","161521","B2215","Waverley On-Street","D5003","Postage"
"GUILDFORD BOROUGH COUNCIL","On Street Parking","Keltic Ltd","214100","14/01/2021",30009591,838,0,"Clothing & Uniform","Personal Protective Equipment (Ppe) Suppliers","II","BACS","None",2020-12-21 00:00:00,"2020","10","161542","B2217","Guildford On-Street","D4001","Clothing & Uniform"
"GUILDFORD BOROUGH COUNCIL","On Street Parking","Keltic Ltd","214100","14/01/2021",30009591,9.95,0,"Postage","Personal Protective Equipment (Ppe) Suppliers","II","BACS","None",2020-12-21 00:00:00,"2020","10","161542","B2217","Guildford On-Street","D5003","Postage"
"GUILDFORD BOROUGH COUNCIL","Climate Change","RN Coverly","701280","14/01/2021",30009594,430,0,"Asset Maintenance","","II","BACS","None",2020-12-22 00:00:00,"2020","10","W163","G4587","Toll House Turbine, Millbrook","B1001","Asset Maintenance"
"GUILDFORD BOROUGH COUNCIL","Property","Montagu Evans LLP","952020","14/01/2021",30009595,7500,0,"Consultants Fees","Surveyors And Inspectors","II","BACS","None",2020-12-22 00:00:00,"2020","10","DVC211251","P74040","Slyfield Area Regeneration Project","1221","Consultants Fees"
"GUILDFORD BOROUGH COUNCIL","Vehicle Maintenance","Bucher Municipal Limited (formerly Johnston Sweepers Ltd)","150890","26/01/2021",30009598,1515.54,0,"Repair And Maintenance Of Vehicles","Car And Van Dealers","II","BACS","None",2020-09-04 00:00:00,"2020","10","65340157","K5551","Fleet Workshops","C1002","Repair And Maintenance Of Vehicles"
"GUILDFORD BOROUGH COUNCIL","Crematorium","Furniture@Work Ltd","705100","14/01/2021",30009622,262,0,"Equipment","","II","BACS","None",2020-12-16 00:00:00,"2020","10","INV0417544","A1500","Crematorium","D2001","Equipment"
"GUILDFORD BOROUGH COUNCIL","Inventories","Screwfix (Trade UK - Screwfix / B&Q)","650550","05/01/2021",30009669,74.98,0,"Purchases","Do-It-Yourself (Diy) Stores","II","BACS","None",2020-10-09 00:00:00,"2020","10","1097069486","I01001","Stocks","2591","Purchases"
"GUILDFORD BOROUGH COUNCIL","Executive - Miscellaneous","Countryside Contracts Ltd (Hire/NON CIS)","713690","14/01/2021",30009698,14693,0,"Contractor Payments","Tree Work Contractors","II","BACS","None",2020-12-22 00:00:00,"2020","10","1911","P79100","Wuv - Allotment Relocation","1233","Contractor Payments"
"GUILDFORD BOROUGH COUNCIL","Licensing","Risk Security Solutions Limited (RSS)","1000118","14/01/2021",30009733,1885,0,"Contractors","","II","BACS","None",2020-12-21 00:00:00,"2020","10","RSS-0514","H2100","Licensing Services","D6012","Contractors"
"GUILDFORD BOROUGH COUNCIL","Corporate Financial","Woking Borough Council","864100","26/01/2021",30009734,1480,0,"Grants And Subscriptions","Local Government [Uk Only]","II","BACS","None",2020-12-10 00:00:00,"2020","10","02092354","F3111","Corporate Subscriptions","D9001","Grants And Subscriptions"
"GUILDFORD BOROUGH COUNCIL","Major Projects","John F Hunt Power Ltd","803060","12/01/2021",30009741,1029.6,0,"Hire","Other Construction Contractors","II","BACS","None",2020-09-30 00:00:00,"2020","10","200378","F5530","Major Projects","D1001","Hire"
"GUILDFORD BOROUGH COUNCIL","Park and Ride Service","John F Hunt Power Ltd","803060","12/01/2021",30009744,982.8,0,"Hire","Other Construction Contractors","II","BACS","None",2020-08-31 00:00:00,"2020","10","198186","B5206","Onslow Park And Ride","D1001","Hire"
"GUILDFORD BOROUGH COUNCIL","Vehicle Maintenance","Pressure Clean Ltd","233960","19/01/2021",30009753,159.36,0,"Materials","","II","BACS","None",2020-12-23 00:00:00,"2020","10","149369","K5551","Fleet Workshops","D2003","Materials"
"GUILDFORD BOROUGH COUNCIL","Lead Specialist - Legal","Shaw & Sons Limited","748800","21/01/2021",30009810,49.55,0,"Stationery & Paper","Printing Service Providers","II","BACS","None",2020-12-23 00:00:00,"2020","10","0000278363","G4525","Legal Services","D5007","Stationery & Paper"
"GUILDFORD BOROUGH COUNCIL","Homelessness Support","Risk Security Solutions Limited (RSS)","1000118","07/01/2021",30009838,1134,0,"Partnerships","","II","BACS","None",2020-11-30 00:00:00,"2020","10","RSS-0465","C3311","Homelessness","D6013","Partnerships"
"GUILDFORD BOROUGH COUNCIL","Major Projects","The Oyster Partnership Ltd","814220","07/01/2021",30009841,1323.53,0,"Agency","Other Recruitment Agencies And Service Providers","II","BACS","None",2020-10-14 00:00:00,"2020","10","1083203","F5530","Major Projects","A5191","Agency"
"GUILDFORD BOROUGH COUNCIL","Major Projects","The Oyster Partnership Ltd","814220","07/01/2021",30009841,1323.53,0,"Agency","Other Recruitment Agencies And Service Providers","II","BACS","None",2020-10-14 00:00:00,"2020","10","1083203","F5530","Major Projects","A5191","Agency"
"GUILDFORD BOROUGH COUNCIL","Executive - Miscellaneous","The Oyster Partnership Ltd","814220","07/01/2021",30009841,226.89,0,"Agency Staff","Other Recruitment Agencies And Service Providers","II","BACS","None",2020-10-14 00:00:00,"2020","10","1083203","P79037","Ash Road Bridge","1222","Agency Staff"
"GUILDFORD BOROUGH COUNCIL","Tourism & Development","Visit Surrey Community Interest Company","1000175","05/01/2021",30009842,2040,0,"Advertising, Publicity & Promotion","","II","BACS","None",2020-09-24 00:00:00,"2020","10","VS1023","F5545","Tourism","D5002","Advertising, Publicity & Promotion"
"GUILDFORD BOROUGH COUNCIL","Countryside and Parks Services","Excel Facilities & Maintenance UK Ltd (CIS)","958110","21/01/2021",30009845,355,0,"Asset Maintenance","Electrical Engineers","II","BACS","None",2020-09-16 00:00:00,"2020","10","1146","A1130","Castle Grounds","B1001","Asset Maintenance"
"GUILDFORD BOROUGH COUNCIL","Countryside and Parks Services","Excel Facilities & Maintenance UK Ltd (CIS)","958110","21/01/2021",30009845,150,0,"Asset Maintenance","Electrical Engineers","II","BACS","None",2020-09-16 00:00:00,"2020","10","1146","A1130","Castle Grounds","B1001","Asset Maintenance"
"GUILDFORD BOROUGH COUNCIL","Vehicle Maintenance","Fluid Systems Ltd T/A Pirtek (Guildford)","667001","14/01/2021",30009850,1286.9,0,"Repair And Maintenance Of Vehicles","","II","BACS","None",2020-09-18 00:00:00,"2020","10","GUI1948","K5551","Fleet Workshops","C1002","Repair And Maintenance Of Vehicles"
"GUILDFORD BOROUGH COUNCIL","Vehicle Maintenance","Fluid Systems Ltd T/A Pirtek (Guildford)","667001","14/01/2021",30009853,96.26,0,"Repair And Maintenance Of Vehicles","","II","BACS","None",2020-09-18 00:00:00,"2020","10","GUI1949","K5551","Fleet Workshops","C1002","Repair And Maintenance Of Vehicles"
"GUILDFORD BOROUGH COUNCIL","Investment Properties","Wadham & Isherwood Management Ltd Client A/C","917440","07/01/2021",30009854,3879.46,0,"Building Expenses","Property Letting And Estate Agents","II","BACS","None",2020-09-21 00:00:00,"2020","10","15298","B6111","Investment Property","B1002","Building Expenses"
"GUILDFORD BOROUGH COUNCIL","North Downs Housing","Freeths LLP (Nottingham)","843920","05/01/2021",30009856,682.5,0,"Services","Solicitors [Uk Only]","II","BACS","None",2020-06-30 00:00:00,"2020","10","90381346","C3313","North Downs Housing Company","D6004","Services"
"GUILDFORD BOROUGH COUNCIL","Investment Properties","Wadham & Isherwood Management Ltd Client A/C","917440","07/01/2021",30009858,372.01,0,"Building Expenses","Property Letting And Estate Agents","II","BACS","None",2020-09-21 00:00:00,"2020","10","15297","B6111","Investment Property","B1002","Building Expenses"
"GUILDFORD BOROUGH COUNCIL","Lead Specialist - HR","Wealden Leisure Limited","702140","05/01/2021",30009860,87,0,"Pension Added Years","Sports And Leisure Centres","II","BACS","None",2020-10-26 00:00:00,"2020","10","194691","G2555","HR Services","A7180","Pension Added Years"
"GUILDFORD BOROUGH COUNCIL","Investment Properties","Wadham & Isherwood Management Ltd Client A/C","917440","07/01/2021",30009861,3473.37,0,"Building Expenses","Property Letting And Estate Agents","II","BACS","None",2020-09-21 00:00:00,"2020","10","15293","B6111","Investment Property","B1002","Building Expenses"
"GUILDFORD BOROUGH COUNCIL","Woking Road Depot","Addison Glass & Windscreens Ltd","459000","05/01/2021",30009862,120,0,"Asset Maintenance","Window And Door Installers","II","BACS","None",2020-11-04 00:00:00,"2020","10","1708446","B4452","Woking Road Depot","B1001","Asset Maintenance"
"GUILDFORD BOROUGH COUNCIL","Building Control","Hays Specialist Recruitment Limited","156250","26/01/2021",30009863,2741.7,0,"Agency","Other Recruitment Agencies And Service Providers","II","BACS","None",2020-12-30 00:00:00,"2020","10","1011025287","D5700","Building Control - Fee","A5191","Agency"
"GUILDFORD BOROUGH COUNCIL","Crematorium","EDF Energy","656190","05/01/2021",30009865,15.92,0,"Utilities","Mains Electricity Suppliers","II","BACS","None",2020-09-01 00:00:00,"2020","10","671129539634/010920","A1500","Crematorium","B2001","Utilities"
"GUILDFORD BOROUGH COUNCIL","Vehicle Maintenance","Fuller Tyres Limited","882220","26/01/2021",30009866,117.83,0,"Repair And Maintenance Of Vehicles","Other Vehicle Equipment Providers","II","BACS","None",2020-12-30 00:00:00,"2020","10","FTI-27809","K5551","Fleet Workshops","C1002","Repair And Maintenance Of Vehicles"
"GUILDFORD BOROUGH COUNCIL","Vehicle Maintenance","Manbat Ltd","252180","21/01/2021",30009868,116.1,0,"Repair And Maintenance Of Vehicles","Third Party Supplier","II","BACS","None",2020-12-29 00:00:00,"2020","10","20255111","K5551","Fleet Workshops","C1002","Repair And Maintenance Of Vehicles"
"GUILDFORD BOROUGH COUNCIL","Vehicle Maintenance","Geesink Norba Ltd","214500","05/01/2021",30009869,900.78,0,"Repair And Maintenance Of Vehicles","Waste Disposal Equipment Suppliers","II","BACS","None",2020-09-17 00:00:00,"2020","10","90025484","K5551","Fleet Workshops","C1002","Repair And Maintenance Of Vehicles"
"GUILDFORD BOROUGH COUNCIL","Council Tax","Morgan Hunt UK Limited","729420","05/01/2021",30009870,889.47,0,"Agency","Other Recruitment Agencies And Service Providers","II","BACS","None",2020-09-13 00:00:00,"2020","10","1193756","F6141","Council Tax Collectn Expenses","A5191","Agency"
"GUILDFORD BOROUGH COUNCIL","Homelessness Support","Bracknell Forest Borough Council","931600","05/01/2021",30009871,270,0,"Emergency Accomodation","Local Government [Uk Only]","II","BACS","None",2020-09-11 00:00:00,"2020","10","6304751","C3311","Homelessness","D8009","Emergency Accomodation"
"GUILDFORD BOROUGH COUNCIL","Industrial Estates","Southern Electric (Business Accounts)","760100","28/01/2021",30009873,110.72,0,"Utilities","Mains Electricity Suppliers","II","BACS","None",2020-08-04 00:00:00,"2020","10","491823743/0001","B5331","Lysons Avenue Small Units","B2001","Utilities"
"GUILDFORD BOROUGH COUNCIL","Crematorium","Restore Datashred Limited","753320","05/01/2021",30009878,134.97,0,"Services","Confidential Waste Disposal Providers","II","BACS","None",2020-08-31 00:00:00,"2020","10","1166697","A1500","Crematorium","D6004","Services"
"GUILDFORD BOROUGH COUNCIL","Vehicle Maintenance","Lister Wilder Ltd","299800","19/01/2021",30009879,765.83,0,"Repair And Maintenance Of Vehicles","Emergency And Other Specialist Vehicle Dealers","II","BACS","None",2020-12-24 00:00:00,"2020","10","504548","K5551","Fleet Workshops","C1002","Repair And Maintenance Of Vehicles"
"GUILDFORD BOROUGH COUNCIL","Vehicle Maintenance","Lister Wilder Ltd","299800","19/01/2021",30009879,76.58,0,"Repair And Maintenance Of Vehicles","Emergency And Other Specialist Vehicle Dealers","II","BACS","None",2020-12-24 00:00:00,"2020","10","504548","K5551","Fleet Workshops","C1002","Repair And Maintenance Of Vehicles"
"GUILDFORD BOROUGH COUNCIL","Building Control","Matchtech Group UK Ltd","933930","26/01/2021",30009880,28.8,0,"Agency","Other Recruitment Agencies And Service Providers","II","BACS","None",2020-12-30 00:00:00,"2020","10","3498905","D5700","Building Control - Fee","A5191","Agency"
"GUILDFORD BOROUGH COUNCIL","Industrial Estates","Southern Electric (Business Accounts)","760100","05/01/2021",30009881,229.84,0,"Utilities","Mains Electricity Suppliers","II","BACS","None",2020-08-04 00:00:00,"2020","10","681825692/0001","B5331","Lysons Avenue Small Units","B2001","Utilities"
"GUILDFORD BOROUGH COUNCIL","Lead Specialist - Finance","Hays Specialist Recruitment Limited","156250","26/01/2021",30009882,2238.95,0,"Agency","Other Recruitment Agencies And Service Providers","II","BACS","None",2020-12-30 00:00:00,"2020","10","1011028236","G3565","Finance Specialists","A5191","Agency"
"GUILDFORD BOROUGH COUNCIL","Homelessness Support","Risk Security Solutions Limited (RSS)","1000118","07/01/2021",30009883,1134,0,"Partnerships","","II","BACS","None",2020-12-14 00:00:00,"2020","10","RSS-0497","C3311","Homelessness","D6013","Partnerships"
"GUILDFORD BOROUGH COUNCIL","Resources Caseworker","Excel Facilities & Maintenance UK Ltd (CIS)","958110","21/01/2021",30009884,110,0,"Asset Maintenance","Electrical Engineers","II","BACS","None",2020-09-24 00:00:00,"2020","10","1153","G7511","Millmead House","B1001","Asset Maintenance"
"GUILDFORD BOROUGH COUNCIL","Millmead House","Excel Facilities & Maintenance UK Ltd (CIS)","958110","21/01/2021",30009884,110,0,"Asset Maintenance","Electrical Engineers","II","BACS","None",2020-09-24 00:00:00,"2020","10","1153","G7511","Millmead House","B1001","Asset Maintenance"
"GUILDFORD BOROUGH COUNCIL","Miscellaneous Expenses","Cheesman Brothers Limited","129100","05/01/2021",30009885,48,0,"Materials","Fruit And Vegetable Suppliers","II","BACS","None",2020-08-29 00:00:00,"2020","10","858597","F7539","COVID-19","D2003","Materials"
"GUILDFORD BOROUGH COUNCIL","Miscellaneous Expenses","Cheesman Brothers Limited","129100","05/01/2021",30009885,790.48,0,"Materials","Fruit And Vegetable Suppliers","II","BACS","None",2020-08-29 00:00:00,"2020","10","858597","F7539","COVID-19","D2003","Materials"
"GUILDFORD BOROUGH COUNCIL","Vehicle Maintenance","Margnor (Fasteners) Limited","312200","05/01/2021",30009886,31.1,0,"Repair And Maintenance Of Vehicles","Other Fittings And Furnishings Suppliers","II","BACS","None",2020-10-19 00:00:00,"2020","10","SIN237105","K5551","Fleet Workshops","C1002","Repair And Maintenance Of Vehicles"
"GUILDFORD BOROUGH COUNCIL","Development Control","Landmark Chambers","1000109","12/01/2021",30009887,600,0,"Services","","II","BACS","None",2020-12-18 00:00:00,"2020","10","INVTJ48","D5100","Development Control - Fee Earn","D6004","Services"
"GUILDFORD BOROUGH COUNCIL","Business Improvement","E-Personnel Recruitment Ltd","720390","26/01/2021",30009889,366.75,0,"Consultancy","Other Recruitment Agencies And Service Providers","II","BACS","None",2020-12-30 00:00:00,"2020","10","15606","G3531","Future Guildford","D6001","Consultancy"
"GUILDFORD BOROUGH COUNCIL","Audit Management","E-Personnel Recruitment Ltd","720390","26/01/2021",30009889,366.75,0,"Consultancy","Other Recruitment Agencies And Service Providers","II","BACS","None",2020-12-30 00:00:00,"2020","10","15606","G3531","Future Guildford","D6001","Consultancy"
"GUILDFORD BOROUGH COUNCIL","Housing Benefits","Eden Brown Ltd","829540","26/01/2021",30009890,708.75,0,"Agency","Other Recruitment Agencies And Service Providers","II","BACS","None",2020-12-30 00:00:00,"2020","10","1262915","C4511","Housing Benefits Admin.","A5191","Agency"
"GUILDFORD BOROUGH COUNCIL","Tenant Services","Croma Locksmiths & Security Solutions Ltd","759970","05/01/2021",30009891,189,0,"Equipment","Third Party Supplier","II","BACS","None",2020-09-15 00:00:00,"2020","10","IN119482","M1151","Tenants Services (BHS)","D2001","Equipment"
"GUILDFORD BOROUGH COUNCIL","Environmental Health","J Gorringe & Son","263000","05/01/2021",30009893,200,0,"Services","Funeral Service Providers","II","BACS","None",2020-10-19 00:00:00,"2020","10","00393-18516672-A","C1113","Environmental Control","D6004","Services"
"GUILDFORD BOROUGH COUNCIL","Day Services","Adecco UK Ltd","461000","21/01/2021",30009894,590.63,0,"Agency","Other Recruitment Agencies And Service Providers","II","BACS","None",2020-12-29 00:00:00,"2020","10","28886760","C8100","Community Hubs","A5191","Agency"
"GUILDFORD BOROUGH COUNCIL","Building Control","Hays Specialist Recruitment Limited","156250","26/01/2021",30009896,47.25,0,"Agency","Other Recruitment Agencies And Service Providers","II","BACS","None",2020-12-30 00:00:00,"2020","10","1011027875","D5700","Building Control - Fee","A5191","Agency"
"GUILDFORD BOROUGH COUNCIL","Countryside and Parks Services","Excel Facilities & Maintenance UK Ltd (CIS)","958110","21/01/2021",30009898,175,0,"Asset Maintenance","Electrical Engineers","II","BACS","None",2020-09-16 00:00:00,"2020","10","1147","A1130","Castle Grounds","B1001","Asset Maintenance"
"GUILDFORD BOROUGH COUNCIL","Countryside and Parks Services","Excel Facilities & Maintenance UK Ltd (CIS)","958110","21/01/2021",30009898,200,0,"Asset Maintenance","Electrical Engineers","II","BACS","None",2020-09-16 00:00:00,"2020","10","1147","A1130","Castle Grounds","B1001","Asset Maintenance"
"GUILDFORD BOROUGH COUNCIL","Property","Andrew Byass","980040","28/01/2021",30009899,2000,0,"Consultancy","Performing Artists","II","BACS","None",2020-07-28 00:00:00,"2020","10","INVPB237","P74040","Slyfield Area Regeneration Project","D6001","Consultancy"
"GUILDFORD BOROUGH COUNCIL","Street Cleansing","Tameside MBC","854740","05/01/2021",30009902,10.5,0,"Services","Local Government [Uk Only]","II","BACS","None",2020-08-24 00:00:00,"2020","10","68583394","K4551","Street Cleansing","D6004","Services"
"GUILDFORD BOROUGH COUNCIL","Homelessness Support","Top Mill Limited","898090","21/01/2021",30009903,420,0,"Emergency Accomodation","Hotels","II","BACS","None",2020-12-28 00:00:00,"2020","10","4019","C3311","Homelessness","D8009","Emergency Accomodation"
"GUILDFORD BOROUGH COUNCIL","Homelessness Support","Top Mill Limited","898090","21/01/2021",30009908,240,0,"Emergency Accomodation","Hotels","II","BACS","None",2020-12-28 00:00:00,"2020","10","4018","C3311","Homelessness","D8009","Emergency Accomodation"
"GUILDFORD BOROUGH COUNCIL","Miscellaneous Expenses","Safe TM Services Limited","959230","12/01/2021",30009909,500,0,"Advance, Loan Employees","Civil Engineers","II","BACS","None",2020-09-28 00:00:00,"2020","10","2020-0339","F7539","COVID-19","1283","Advance, Loan Employees"
"GUILDFORD BOROUGH COUNCIL","Miscellaneous Expenses","Safe TM Services Limited","959230","12/01/2021",30009909,500,0,"Advance, Loan Employees","Civil Engineers","II","BACS","None",2020-09-28 00:00:00,"2020","10","2020-0339","F7539","COVID-19","1283","Advance, Loan Employees"
"GUILDFORD BOROUGH COUNCIL","Miscellaneous Expenses","Safe TM Services Limited","959230","12/01/2021",30009909,500,0,"Purchase Of Equipment, Tools And Materials","Civil Engineers","II","BACS","None",2020-09-28 00:00:00,"2020","10","2020-0339","F7539","COVID-19","1283","Purchase Of Equipment, Tools And Materials"
"GUILDFORD BOROUGH COUNCIL","Vehicle Maintenance","Geesink Norba Ltd","214500","05/01/2021",30009912,638.39,0,"Repair And Maintenance Of Vehicles","Waste Disposal Equipment Suppliers","II","BACS","None",2020-09-17 00:00:00,"2020","10","90025485","K5551","Fleet Workshops","C1002","Repair And Maintenance Of Vehicles"
"GUILDFORD BOROUGH COUNCIL","Homelessness Support","Top Mill Limited","898090","21/01/2021",30009913,720,0,"Emergency Accomodation","Hotels","II","BACS","None",2020-12-28 00:00:00,"2020","10","4023","C3311","Homelessness","D8009","Emergency Accomodation"
"GUILDFORD BOROUGH COUNCIL","Resources Caseworker","Hallmark Vending Ltd","461450","05/01/2021",30009914,175.5,0,"Services","Other Vending Services Suppliers","II","BACS","None",2020-10-01 00:00:00,"2020","10","09978","G7511","Millmead House","D6004","Services"
"GUILDFORD BOROUGH COUNCIL","Millmead House","Hallmark Vending Ltd","461450","05/01/2021",30009914,175.5,0,"Services","Other Vending Services Suppliers","II","BACS","None",2020-10-01 00:00:00,"2020","10","09978","G7511","Millmead House","D6004","Services"
"GUILDFORD BOROUGH COUNCIL","Building Control","Matchtech Group UK Ltd","933930","26/01/2021",30009916,27.45,0,"Agency","Other Recruitment Agencies And Service Providers","II","BACS","None",2020-12-30 00:00:00,"2020","10","3498903","D5700","Building Control - Fee","A5191","Agency"
"GUILDFORD BOROUGH COUNCIL","Countryside and Parks Services","EDF Energy","656190","07/01/2021",30009920,48.1,0,"Utilities","Mains Electricity Suppliers","II","BACS","None",2020-07-09 00:00:00,"2020","10","671096308930/090720","A1810","Burchatts Farm Barn","B2001","Utilities"
"GUILDFORD BOROUGH COUNCIL","Countryside and Parks Services","EDF Energy","656190","07/01/2021",30009920,48.1,0,"Utilities","Mains Electricity Suppliers","II","BACS","None",2020-07-09 00:00:00,"2020","10","671096308930/090720","A1810","Burchatts Farm Barn","B2001","Utilities"
"GUILDFORD BOROUGH COUNCIL","Parks Countryside Management","EDF Energy","656190","07/01/2021",30009920,48.1,0,"Utilities","Mains Electricity Suppliers","II","BACS","None",2020-07-09 00:00:00,"2020","10","671096308930/090720","A1810","Burchatts Farm Barn","B2001","Utilities"
"GUILDFORD BOROUGH COUNCIL","Countryside and Parks Services","EDF Energy","656190","07/01/2021",30009920,26.91,0,"Utilities","Mains Electricity Suppliers","II","BACS","None",2020-07-09 00:00:00,"2020","10","671096308930/090720","A1810","Burchatts Farm Barn","B2001","Utilities"
"GUILDFORD BOROUGH COUNCIL","Countryside and Parks Services","EDF Energy","656190","07/01/2021",30009920,26.91,0,"Utilities","Mains Electricity Suppliers","II","BACS","None",2020-07-09 00:00:00,"2020","10","671096308930/090720","A1810","Burchatts Farm Barn","B2001","Utilities"
"GUILDFORD BOROUGH COUNCIL","Parks Countryside Management","EDF Energy","656190","07/01/2021",30009920,26.91,0,"Utilities","Mains Electricity Suppliers","II","BACS","None",2020-07-09 00:00:00,"2020","10","671096308930/090720","A1810","Burchatts Farm Barn","B2001","Utilities"
"GUILDFORD BOROUGH COUNCIL","Leisure Management Contract","Wealden Leisure Limited","702140","07/01/2021",30009923,3039.7,0,"Hire","Sports And Leisure Centres","II","BACS","None",2020-10-22 00:00:00,"2020","10","194620","A7560","Ash Manor","D1001","Hire"
"GUILDFORD BOROUGH COUNCIL","Other Property","Melliss LLP","829530","14/01/2021",30009926,850,0,"Asset Maintenance","Other Construction Consultants","II","BACS","None",2020-12-22 00:00:00,"2020","10","008727","G7515","Old Millmead House","B1001","Asset Maintenance"
"GUILDFORD BOROUGH COUNCIL","Crematorium","Teleshore (UK) Ltd","969701","19/01/2021",30009927,250,0,"Materials","","II","BACS","None",2020-10-15 00:00:00,"2020","10","30588","A1500","Crematorium","D2003","Materials"
"GUILDFORD BOROUGH COUNCIL","Crematorium","Teleshore (UK) Ltd","969701","19/01/2021",30009927,10,0,"Materials","","II","BACS","None",2020-10-15 00:00:00,"2020","10","30588","A1500","Crematorium","D2003","Materials"
"GUILDFORD BOROUGH COUNCIL","Vehicle Maintenance","Southern Electromotive Distribution Ltd","760300","26/01/2021",30009928,44.66,0,"Repair And Maintenance Of Vehicles","Car And Van Servicing And Maintenance Providers","II","BACS","None",2020-12-30 00:00:00,"2020","10","403413","K5551","Fleet Workshops","C1002","Repair And Maintenance Of Vehicles"
"GUILDFORD BOROUGH COUNCIL","Countryside and Parks Services","Landmark Chambers","1000109","12/01/2021",30009929,600,0,"Consultancy","","II","BACS","None",2020-12-18 00:00:00,"2020","10","INVTJ46","A1900","Parks Management And Admin","D6001","Consultancy"
"GUILDFORD BOROUGH COUNCIL","Tenant Services","Town and Country Cleaners Ltd","690490","05/01/2021",30009930,80,0,"Cleaning Contractors","Commercial Cleaners","II","BACS","None",2020-10-21 00:00:00,"2020","10","77633","M1151","Tenants Services (BHS)","D6006","Cleaning Contractors"
"GUILDFORD BOROUGH COUNCIL","Homelessness Support","Top Mill Limited","898090","21/01/2021",30009931,210,0,"Emergency Accomodation","Hotels","II","BACS","None",2020-12-28 00:00:00,"2020","10","4024","C3311","Homelessness","D8009","Emergency Accomodation"
"GUILDFORD BOROUGH COUNCIL","Leisure Management Contract","A.S.L. Ltd (CIS)","667000","05/01/2021",30009933,240,0,"Asset Maintenance","Sewerage And Drainage Service Providers","II","BACS","None",2020-10-14 00:00:00,"2020","10","67528","A7550","Lido","B1001","Asset Maintenance"
"GUILDFORD BOROUGH COUNCIL","Lead Specialist - HR","Wealden Leisure Limited","702140","05/01/2021",30009934,38.4,0,"Pension Added Years","Sports And Leisure Centres","II","BACS","None",2020-09-15 00:00:00,"2020","10","193135","G2555","HR Services","A7180","Pension Added Years"
"GUILDFORD BOROUGH COUNCIL","Industrial Estates","Promission Limited","955040","05/01/2021",30009937,3239.26,0,"Consultancy","","II","BACS","None",2020-09-28 00:00:00,"2020","10","3479","P72047","10 Midleton Void Works","D6001","Consultancy"
"GUILDFORD BOROUGH COUNCIL","Lead Specialist - Finance","Hays Specialist Recruitment Limited","156250","26/01/2021",30009939,2238.95,0,"Agency","Other Recruitment Agencies And Service Providers","II","BACS","None",2020-12-30 00:00:00,"2020","10","1011029976","G3565","Finance Specialists","A5191","Agency"
"GUILDFORD BOROUGH COUNCIL","Homelessness Support","Top Mill Limited","898090","21/01/2021",30009940,420,0,"Emergency Accomodation","Hotels","II","BACS","None",2020-12-28 00:00:00,"2020","10","4021","C3311","Homelessness","D8009","Emergency Accomodation"
"GUILDFORD BOROUGH COUNCIL","Private Sector Housing Maintenance","Travis Perkins Trading Co Ltd","828600","07/01/2021",30009950,233.24,0,"Materials","Builders Merchants","II","BACS","None",2020-09-11 00:00:00,"2020","10","0124 AXF354","C5136","Handyperson Service","D2003","Materials"
"GUILDFORD BOROUGH COUNCIL","Lead Specialist - ICT","Bolderwood Solutions Ltd","892850","26/01/2021",30009964,4050,0,"Agency","Computer Systems Integrators","II","BACS","None",2020-12-31 00:00:00,"2020","10","GBC-0070","G3548","ICT Technical & Infrastructure","A5191","Agency"
"GUILDFORD BOROUGH COUNCIL","Crematorium","The Yaboo Co Ltd","792870","26/01/2021",30009965,905,0,"Services","Media Production Agencies","II","BACS","None",2020-12-31 00:00:00,"2020","10","53661","A1500","Crematorium","D6004","Services"
"GUILDFORD BOROUGH COUNCIL","Lead Specialist - ICT","Orchard Information Systems Ltd","629000","05/01/2021",30009966,770.03,0,"ICT Software","Computer Systems Integrators","II","BACS","None",2020-12-01 00:00:00,"2020","10","SLMR/00014045","G3548","ICT Technical & Infrastructure","D7002","ICT Software"
"GUILDFORD BOROUGH COUNCIL","Resources Caseworker","Hays Specialist Recruitment Limited","156250","14/01/2021",30009967,771.08,0,"Agency","Other Recruitment Agencies And Service Providers","II","BACS","None",2020-12-21 00:00:00,"2020","10","1010956993","G3550","Resources Caseworker","A5191","Agency"
"GUILDFORD BOROUGH COUNCIL","Development Control","Vivid Resourcing Limited","856800","05/01/2021",30009968,1806,0,"Agency","Other Recruitment Agencies And Service Providers","II","BACS","None",2020-10-28 00:00:00,"2020","10","51787","D5100","Development Control - Fee Earn","A5191","Agency"
"GUILDFORD BOROUGH COUNCIL","Lead Specialist - Finance","Hays Specialist Recruitment Limited","156250","05/01/2021",30009969,2005,0,"Agency","Other Recruitment Agencies And Service Providers","II","BACS","None",2020-12-11 00:00:00,"2020","10","1010996156","G3593","Procurement Services","A5191","Agency"
"GUILDFORD BOROUGH COUNCIL","Resources Caseworker","Hays Specialist Recruitment Limited","156250","14/01/2021",30009970,771.08,0,"Agency","Other Recruitment Agencies And Service Providers","II","BACS","None",2020-12-21 00:00:00,"2020","10","1011006456","G3550","Resources Caseworker","A5191","Agency"
"GUILDFORD BOROUGH COUNCIL","Car Leasing Holding Code (Service)","Alphabet (GB) Ltd","878400","05/01/2021",30009971,212.1,0,"Car Leasing","Fleet Management Agencies","II","BACS","None",2020-11-30 00:00:00,"2020","10","80254605","G1131","Car Leasing Holding Code","C3002","Car Leasing"
"GUILDFORD BOROUGH COUNCIL","Lead Specialist - Finance","Hays Specialist Recruitment Limited","156250","12/01/2021",30009972,2005,0,"Agency","Other Recruitment Agencies And Service Providers","II","BACS","None",2020-12-17 00:00:00,"2020","10","1011007871","G3593","Procurement Services","A5191","Agency"
"GUILDFORD BOROUGH COUNCIL","Industrial Estates","Network Rail Infrastructure Ltd","144690","14/01/2021",30009973,1043.22,0,"Consultants Fees","Rail Companies","II","BACS","None",2020-12-22 00:00:00,"2020","10","1273898","P72037","Midleton Ind Est Redevelop","1221","Consultants Fees"
"GUILDFORD BOROUGH COUNCIL","Public Relations","Diamond Logistics Ltd","170200","19/01/2021",30009974,61.6,0,"Postage","General Logistics Contractors","II","BACS","None",2020-12-26 00:00:00,"2020","10","10002596","F5551","Public Relations & Marketing","D5003","Postage"
"GUILDFORD BOROUGH COUNCIL","Crematorium","The Yaboo Co Ltd","792870","26/01/2021",30009975,329,0,"Services","Media Production Agencies","II","BACS","None",2020-12-31 00:00:00,"2020","10","53660","A1500","Crematorium","D6004","Services"
"GUILDFORD BOROUGH COUNCIL","Lead Specialist - ICT","Softcat Limited","668140","14/01/2021",30009976,180.19,0,"ICT Software","It Support Service Providers","II","BACS","None",2020-12-21 00:00:00,"2020","10","INV02782294","G3548","ICT Technical & Infrastructure","D7002","ICT Software"
"GUILDFORD BOROUGH COUNCIL","Lead Specialist - ICT","Softcat Limited","668140","14/01/2021",30009976,67.67,0,"ICT Software","It Support Service Providers","II","BACS","None",2020-12-21 00:00:00,"2020","10","INV02782294","G3548","ICT Technical & Infrastructure","D7002","ICT Software"
"GUILDFORD BOROUGH COUNCIL","Resources Caseworker","Hays Specialist Recruitment Limited","156250","14/01/2021",30009977,750.24,0,"Agency","Other Recruitment Agencies And Service Providers","II","BACS","None",2020-12-21 00:00:00,"2020","10","1010979288","G3550","Resources Caseworker","A5191","Agency"
"GUILDFORD BOROUGH COUNCIL","Inventories","Saint-Gobain Building Distribution Limited (Jewson)","271200","12/01/2021",30009978,8656.5,0,"Purchases","Builders Merchants","II","BACS","None",2020-12-20 00:00:00,"2020","10","0652/00789332","I01001","Stocks","2591","Purchases"
"GUILDFORD BOROUGH COUNCIL","Building Maintenance","Certsure LLP","619300","05/01/2021",30009979,15,0,"Grants And Subscriptions","Professional Associations","II","BACS","None",2020-12-11 00:00:00,"2020","10","0086952111","K1515","Building Maintenance","D9001","Grants And Subscriptions"
"GUILDFORD BOROUGH COUNCIL","Resources Caseworker","Hays Specialist Recruitment Limited","156250","26/01/2021",30009980,771.08,0,"Agency","Other Recruitment Agencies And Service Providers","II","BACS","None",2020-12-31 00:00:00,"2020","10","1011020646","G3550","Resources Caseworker","A5191","Agency"
"GUILDFORD BOROUGH COUNCIL","Car Leasing Holding Code (Service)","Alphabet (GB) Ltd","878400","05/01/2021",30009981,311.4,0,"Car Leasing","Fleet Management Agencies","II","BACS","None",2020-11-30 00:00:00,"2020","10","80254601","G1131","Car Leasing Holding Code","C3002","Car Leasing"
"GUILDFORD BOROUGH COUNCIL","Lead Specialist - ICT","Vision Office Technical Services Ltd","991940","26/01/2021",30009983,1238.79,0,"Printing, Photocopying And Reprographics Internal","","II","BACS","None",2020-12-31 00:00:00,"2020","10","100130983","G3548","ICT Technical & Infrastructure","D5006","Printing, Photocopying And Reprographics Internal"
"GUILDFORD BOROUGH COUNCIL","Business Improvement","Gravitas Recruitment Group","1000035","12/01/2021",30009984,2320,0,"Agency","","II","BACS","None",2021-01-03 00:00:00,"2020","10","INV164593","G3531","Future Guildford","A5191","Agency"
"GUILDFORD BOROUGH COUNCIL","Audit Management","Gravitas Recruitment Group","1000035","12/01/2021",30009984,2320,0,"Agency","","II","BACS","None",2021-01-03 00:00:00,"2020","10","INV164593","G3531","Future Guildford","A5191","Agency"
"GUILDFORD BOROUGH COUNCIL","Resources Caseworker","Rentokil Initial UK Ltd","557280","05/01/2021",30009985,536.58,0,"Services","","II","BACS","None",2020-12-11 00:00:00,"2020","10","33706002","G7511","Millmead House","D6004","Services"
"GUILDFORD BOROUGH COUNCIL","Millmead House","Rentokil Initial UK Ltd","557280","05/01/2021",30009985,536.58,0,"Services","","II","BACS","None",2020-12-11 00:00:00,"2020","10","33706002","G7511","Millmead House","D6004","Services"
"GUILDFORD BOROUGH COUNCIL","Guildhall","Rentokil Initial UK Ltd","557280","05/01/2021",30009985,11.7,0,"Services","","II","BACS","None",2020-12-11 00:00:00,"2020","10","33706002","F3311","Guildhall","D6004","Services"
"GUILDFORD BOROUGH COUNCIL","Countryside and Parks Services","Rentokil Initial UK Ltd","557280","05/01/2021",30009985,3.9,0,"Services","","II","BACS","None",2020-12-11 00:00:00,"2020","10","33706002","A1600","Stoke Park Depot","D6004","Services"
"GUILDFORD BOROUGH COUNCIL","Woking Road Depot","Rentokil Initial UK Ltd","557280","05/01/2021",30009985,53.82,0,"Services","","II","BACS","None",2020-12-11 00:00:00,"2020","10","33706002","B4452","Woking Road Depot","D6004","Services"
"GUILDFORD BOROUGH COUNCIL","Park and Ride Service","Rentokil Initial UK Ltd","557280","05/01/2021",30009985,77.22,0,"Services","","II","BACS","None",2020-12-11 00:00:00,"2020","10","33706002","B5201","Artington Park & Ride","D6004","Services"
"GUILDFORD BOROUGH COUNCIL","Park and Ride Service","Rentokil Initial UK Ltd","557280","05/01/2021",30009985,35.1,0,"Services","","II","BACS","None",2020-12-11 00:00:00,"2020","10","33706002","B5205","Merrow Park And Ride","D6004","Services"
"GUILDFORD BOROUGH COUNCIL","Day Services","Rentokil Initial UK Ltd","557280","05/01/2021",30009985,152.1,0,"Services","","II","BACS","None",2020-12-11 00:00:00,"2020","10","33706002","C8100","Community Hubs","D6004","Services"
"GUILDFORD BOROUGH COUNCIL","Citizens Advice Bureau","Rentokil Initial UK Ltd","557280","05/01/2021",30009985,3.9,0,"Services","","II","BACS","None",2020-12-11 00:00:00,"2020","10","33706002","C2122","Guildford CAB","D6004","Services"
"GUILDFORD BOROUGH COUNCIL","Day Services","Rentokil Initial UK Ltd","557280","05/01/2021",30009985,179.1,0,"Services","","II","BACS","None",2020-12-11 00:00:00,"2020","10","33706002","C8100","Community Hubs","D6004","Services"
"GUILDFORD BOROUGH COUNCIL","Guildford Museum","Rentokil Initial UK Ltd","557280","05/01/2021",30009985,22.43,0,"Services","","II","BACS","None",2020-12-11 00:00:00,"2020","10","33706002","A5511","Museum","D6004","Services"
"GUILDFORD BOROUGH COUNCIL","Guildford House","Rentokil Initial UK Ltd","557280","05/01/2021",30009985,19.5,0,"Services","","II","BACS","None",2020-12-11 00:00:00,"2020","10","33706002","A4511","Guildford House Administration","D6004","Services"
"GUILDFORD BOROUGH COUNCIL","Crematorium","Rentokil Initial UK Ltd","557280","05/01/2021",30009985,43.88,0,"Services","","II","BACS","None",2020-12-11 00:00:00,"2020","10","33706002","A1500","Crematorium","D6004","Services"
"GUILDFORD BOROUGH COUNCIL","Off Street Parking","Rentokil Initial UK Ltd","557280","05/01/2021",30009985,15.6,0,"Services","","II","BACS","None",2020-12-11 00:00:00,"2020","10","33706002","B2111","Car Parks - Administration","D6004","Services"
"GUILDFORD BOROUGH COUNCIL","Public Conveniences","Rentokil Initial UK Ltd","557280","05/01/2021",30009985,29.25,0,"Services","","II","BACS","None",2020-12-11 00:00:00,"2020","10","33706002","K6500","Public Conveniences","D6004","Services"
"GUILDFORD BOROUGH COUNCIL","Public Conveniences","Rentokil Initial UK Ltd","557280","05/01/2021",30009985,175.5,0,"Services","","II","BACS","None",2020-12-11 00:00:00,"2020","10","33706002","K6500","Public Conveniences","D6004","Services"
"GUILDFORD BOROUGH COUNCIL","Public Conveniences","Rentokil Initial UK Ltd","557280","05/01/2021",30009985,64.35,0,"Services","","II","BACS","None",2020-12-11 00:00:00,"2020","10","33706002","K6500","Public Conveniences","D6004","Services"
"GUILDFORD BOROUGH COUNCIL","Public Conveniences","Rentokil Initial UK Ltd","557280","05/01/2021",30009985,17.55,0,"Services","","II","BACS","None",2020-12-11 00:00:00,"2020","10","33706002","K6500","Public Conveniences","D6004","Services"
"GUILDFORD BOROUGH COUNCIL","Public Conveniences","Rentokil Initial UK Ltd","557280","05/01/2021",30009985,22.43,0,"Services","","II","BACS","None",2020-12-11 00:00:00,"2020","10","33706002","K6500","Public Conveniences","D6004","Services"
"GUILDFORD BOROUGH COUNCIL","Public Conveniences","Rentokil Initial UK Ltd","557280","05/01/2021",30009985,34.13,0,"Services","","II","BACS","None",2020-12-11 00:00:00,"2020","10","33706002","K6500","Public Conveniences","D6004","Services"
"GUILDFORD BOROUGH COUNCIL","Public Conveniences","Rentokil Initial UK Ltd","557280","05/01/2021",30009985,3.9,0,"Services","","II","BACS","None",2020-12-11 00:00:00,"2020","10","33706002","K6500","Public Conveniences","D6004","Services"
"GUILDFORD BOROUGH COUNCIL","Public Conveniences","Rentokil Initial UK Ltd","557280","05/01/2021",30009985,85.8,0,"Services","","II","BACS","None",2020-12-11 00:00:00,"2020","10","33706002","K6500","Public Conveniences","D6004","Services"
"GUILDFORD BOROUGH COUNCIL","Public Conveniences","Rentokil Initial UK Ltd","557280","05/01/2021",30009985,18.53,0,"Services","","II","BACS","None",2020-12-11 00:00:00,"2020","10","33706002","K6500","Public Conveniences","D6004","Services"
"GUILDFORD BOROUGH COUNCIL","Public Conveniences","Rentokil Initial UK Ltd","557280","05/01/2021",30009985,85.8,0,"Services","","II","BACS","None",2020-12-11 00:00:00,"2020","10","33706002","K6500","Public Conveniences","D6004","Services"
"GUILDFORD BOROUGH COUNCIL","Public Conveniences","Rentokil Initial UK Ltd","557280","05/01/2021",30009985,43.88,0,"Services","","II","BACS","None",2020-12-11 00:00:00,"2020","10","33706002","K6500","Public Conveniences","D6004","Services"
"GUILDFORD BOROUGH COUNCIL","Public Conveniences","Rentokil Initial UK Ltd","557280","05/01/2021",30009985,25.35,0,"Services","","II","BACS","None",2020-12-11 00:00:00,"2020","10","33706002","K6500","Public Conveniences","D6004","Services"
"GUILDFORD BOROUGH COUNCIL","Public Conveniences","Rentokil Initial UK Ltd","557280","05/01/2021",30009985,56.55,0,"Services","","II","BACS","None",2020-12-11 00:00:00,"2020","10","33706002","K6500","Public Conveniences","D6004","Services"
"GUILDFORD BOROUGH COUNCIL","Public Conveniences","Rentokil Initial UK Ltd","557280","05/01/2021",30009985,66.3,0,"Services","","II","BACS","None",2020-12-11 00:00:00,"2020","10","33706002","K6500","Public Conveniences","D6004","Services"
"GUILDFORD BOROUGH COUNCIL","Tenant Services","Rentokil Initial UK Ltd","557280","05/01/2021",30009985,21.45,0,"Services","","II","BACS","None",2020-12-11 00:00:00,"2020","10","33706002","M1151","Tenants Services (BHS)","D6004","Services"
"GUILDFORD BOROUGH COUNCIL","Supported Housing Management","Rentokil Initial UK Ltd","557280","05/01/2021",30009985,3.9,0,"Services","","II","BACS","None",2020-12-11 00:00:00,"2020","10","33706002","M3691","Supp Hsg-William Swayne (SHS)","D6004","Services"
"GUILDFORD BOROUGH COUNCIL","Sheltered Housing","Rentokil Initial UK Ltd","557280","05/01/2021",30009985,690.17,0,"Services","","II","BACS","None",2020-12-11 00:00:00,"2020","10","33706002","M1515","Sheltered Accomodation","D6004","Services"
"GUILDFORD BOROUGH COUNCIL","Car Leasing Holding Code (Service)","Alphabet (GB) Ltd","878400","05/01/2021",30009986,125.9,0,"Car Leasing","Fleet Management Agencies","II","BACS","None",2020-11-12 00:00:00,"2020","10","80253743","G1131","Car Leasing Holding Code","C3002","Car Leasing"
"GUILDFORD BOROUGH COUNCIL","Inventories","Saint-Gobain Building Distribution Limited (Jewson)","271200","05/01/2021",30009987,6741.22,0,"Purchases","Builders Merchants","II","BACS","None",2020-06-12 00:00:00,"2020","10","0652/00789165","I01001","Stocks","2591","Purchases"
"GUILDFORD BOROUGH COUNCIL","Resources Caseworker","Hays Specialist Recruitment Limited","156250","14/01/2021",30009988,750.24,0,"Agency","Other Recruitment Agencies And Service Providers","II","BACS","None",2020-12-21 00:00:00,"2020","10","1010985359","G3550","Resources Caseworker","A5191","Agency"
"GUILDFORD BOROUGH COUNCIL","Crematorium","The Yaboo Co Ltd","792870","26/01/2021",30009990,240,0,"Services","Media Production Agencies","II","BACS","None",2020-12-31 00:00:00,"2020","10","53664","A1500","Crematorium","D6004","Services"
"GUILDFORD BOROUGH COUNCIL","Car Leasing Holding Code (Service)","Alphabet (GB) Ltd","878400","05/01/2021",30009991,173.4,0,"Car Leasing","Fleet Management Agencies","II","BACS","None",2020-11-30 00:00:00,"2020","10","80254604","G1131","Car Leasing Holding Code","C3002","Car Leasing"
"GUILDFORD BOROUGH COUNCIL","Spectrum","Southern Industrial Roofing Ltd","259720","05/01/2021",30009992,1666.7,0,"Contractor Payments","Roofers","II","BACS","None",2020-12-21 00:00:00,"2020","10","5871","P22062","Spectrum Roof","1233","Contractor Payments"
"GUILDFORD BOROUGH COUNCIL","Lead Specialist - Finance","Hays Specialist Recruitment Limited","156250","05/01/2021",30009993,2375,0,"Agency","Other Recruitment Agencies And Service Providers","II","BACS","None",2020-11-19 00:00:00,"2020","10","1010943918","G3593","Procurement Services","A5191","Agency"
"GUILDFORD BOROUGH COUNCIL","Homelessness Support","Chase Inventory Services Ltd","427810","26/01/2021",30009994,75,0,"Services","Removal Service Providers","II","BACS","None",2020-12-30 00:00:00,"2020","10","105435","C3311","Homelessness","D6004","Services"
"GUILDFORD BOROUGH COUNCIL","Resources Caseworker","Hays Specialist Recruitment Limited","156250","26/01/2021",30009995,468.9,0,"Agency","Other Recruitment Agencies And Service Providers","II","BACS","None",2020-12-31 00:00:00,"2020","10","1011034245","G3550","Resources Caseworker","A5191","Agency"
"GUILDFORD BOROUGH COUNCIL","Crematorium","The Yaboo Co Ltd","792870","26/01/2021",30009996,425,0,"Services","Media Production Agencies","II","BACS","None",2020-12-31 00:00:00,"2020","10","53665","A1500","Crematorium","D6004","Services"
"GUILDFORD BOROUGH COUNCIL","Crematorium","The Yaboo Co Ltd","792870","26/01/2021",30009997,1200,0,"Services","Media Production Agencies","II","BACS","None",2020-12-31 00:00:00,"2020","10","53663","A1500","Crematorium","D6004","Services"
"GUILDFORD BOROUGH COUNCIL","Corporate Services","Penna Plc","674100","07/01/2021",30009998,147.02,0,"Vacancy And Interview Costs","Human Resources Consultants","II","BACS","None",2020-07-27 00:00:00,"2020","10","617953","F1111","Corporate Services","A7120","Vacancy And Interview Costs"
"GUILDFORD BOROUGH COUNCIL","Grants","Surrey County Council","230230","14/01/2021",30010001,410.37,0,"Consultancy","Local Government [Uk Only]","II","BACS","None",2020-12-22 00:00:00,"2020","10","9500248376","N51019","BCF Non Grant Expenditure","D6001","Consultancy"
"GUILDFORD BOROUGH COUNCIL","Car Leasing Holding Code (Service)","Alphabet (GB) Ltd","878400","05/01/2021",30010002,110,0,"Car Leasing","Fleet Management Agencies","II","BACS","None",2020-11-19 00:00:00,"2020","10","80253936","G1131","Car Leasing Holding Code","C3002","Car Leasing"
"GUILDFORD BOROUGH COUNCIL","Car Leasing Holding Code (Service)","Alphabet (GB) Ltd","878400","05/01/2021",30010003,266.1,0,"Car Leasing","Fleet Management Agencies","II","BACS","None",2020-11-30 00:00:00,"2020","10","80254603","G1131","Car Leasing Holding Code","C3002","Car Leasing"
"GUILDFORD BOROUGH COUNCIL","Crematorium","The Yaboo Co Ltd","792870","26/01/2021",30010004,1050,0,"Services","Media Production Agencies","II","BACS","None",2020-12-31 00:00:00,"2020","10","53662","A1500","Crematorium","D6004","Services"
"GUILDFORD BOROUGH COUNCIL","Crematorium","The Yaboo Co Ltd","792870","21/01/2021",30010005,649,0,"Services","Media Production Agencies","II","BACS","None",2020-12-28 00:00:00,"2020","10","23691","A1500","Crematorium","D6004","Services"
"GUILDFORD BOROUGH COUNCIL","Car Leasing Holding Code (Service)","Alphabet (GB) Ltd","878400","05/01/2021",30010006,322.2,0,"Car Leasing","Fleet Management Agencies","II","BACS","None",2020-11-30 00:00:00,"2020","10","80254602","G1131","Car Leasing Holding Code","C3002","Car Leasing"
"GUILDFORD BOROUGH COUNCIL","Fleet Management","C-Trace Ltd","886780","26/01/2021",30010009,132.83,0,"Repair And Maintenance Of Vehicles","Software As A Service Providers","II","BACS","None",2020-12-31 00:00:00,"2020","10","202000146","V1009","Fleet Refuse Freighters","C1002","Repair And Maintenance Of Vehicles"
"GUILDFORD BOROUGH COUNCIL","Fleet Management","C-Trace Ltd","886780","26/01/2021",30010009,132.83,0,"Repair And Maintenance Of Vehicles","Software As A Service Providers","II","BACS","None",2020-12-31 00:00:00,"2020","10","202000146","V1009","Fleet Refuse Freighters","C1002","Repair And Maintenance Of Vehicles"
"GUILDFORD BOROUGH COUNCIL","Fleet Management","C-Trace Ltd","886780","26/01/2021",30010009,132.83,0,"Repair And Maintenance Of Vehicles","Software As A Service Providers","II","BACS","None",2020-12-31 00:00:00,"2020","10","202000146","V1009","Fleet Refuse Freighters","C1002","Repair And Maintenance Of Vehicles"
"GUILDFORD BOROUGH COUNCIL","Fleet Management","C-Trace Ltd","886780","26/01/2021",30010009,132.83,0,"Repair And Maintenance Of Vehicles","Software As A Service Providers","II","BACS","None",2020-12-31 00:00:00,"2020","10","202000146","V1009","Fleet Refuse Freighters","C1002","Repair And Maintenance Of Vehicles"
"GUILDFORD BOROUGH COUNCIL","Development Control","Vivid Resourcing Limited","856800","12/01/2021",30010011,1970.01,0,"Agency","Other Recruitment Agencies And Service Providers","II","BACS","None",2020-12-16 00:00:00,"2020","10","53527","D5100","Development Control - Fee Earn","A5191","Agency"
"GUILDFORD BOROUGH COUNCIL","Countryside and Parks Services","Chambers Waste Management Plc","127500","12/01/2021",30010012,306,0,"Hire","Other Waste Disposal Suppliers","II","BACS","None",2020-12-20 00:00:00,"2020","10","P450387","A1820","Allotments","D1001","Hire"
"GUILDFORD BOROUGH COUNCIL","Parks Countryside Management","Chambers Waste Management Plc","127500","12/01/2021",30010012,306,0,"Hire","Other Waste Disposal Suppliers","II","BACS","None",2020-12-20 00:00:00,"2020","10","P450387","A1820","Allotments","D1001","Hire"
"GUILDFORD BOROUGH COUNCIL","Countryside and Parks Services","Chambers Waste Management Plc","127500","12/01/2021",30010012,306,0,"Hire","Other Waste Disposal Suppliers","II","BACS","None",2020-12-20 00:00:00,"2020","10","P450387","A1820","Allotments","D1001","Hire"
"GUILDFORD BOROUGH COUNCIL","Licensing","Risk Security Solutions Limited (RSS)","1000118","07/01/2021",30010013,1911,0,"Contractors","","II","BACS","None",2020-12-07 00:00:00,"2020","10","RSS-0479","H2100","Licensing Services","D6012","Contractors"
"GUILDFORD BOROUGH COUNCIL","Non Reportable Activity","Community Foundation For Surrey","774460","02/02/2021",30010014,878.5,0,"Materials","Community Partnerships","II","BACS","None",2021-01-04 00:00:00,"2020","10","Community Foundation for Surrey","G1188","Community Lottery Holding Acc","D2003","Materials"
"GUILDFORD BOROUGH COUNCIL","Resources Caseworker","Berendsen Workwear Ltd T/A Elis","817300","12/01/2021",30010016,-20.44,0,"Services","Linen And Blanket Suppliers","II","BACS","None",2020-12-16 00:00:00,"2020","10","CN0236999","G7511","Millmead House","D6004","Services"
"GUILDFORD BOROUGH COUNCIL","Millmead House","Berendsen Workwear Ltd T/A Elis","817300","12/01/2021",30010016,-20.44,0,"Services","Linen And Blanket Suppliers","II","BACS","None",2020-12-16 00:00:00,"2020","10","CN0236999","G7511","Millmead House","D6004","Services"
"GUILDFORD BOROUGH COUNCIL","Grants","Bentley Mobility Services Limited","929000","07/01/2021",30010158,5010,0,"Outgoing VAT on sales to EU Member states","Mobility Disability Equipment Suppliers","II","BACS","None",2020-01-29 00:00:00,"2020","10","Grant reference 1882","N51019","BCF Non Grant Expenditure","1311","Outgoing VAT on sales to EU Member states"
"GUILDFORD BOROUGH COUNCIL","Grants","Bentley Mobility Services Limited","929000","07/01/2021",30010158,5010,0,"Outgoing VAT on sales to EU Member states","Mobility Disability Equipment Suppliers","II","BACS","None",2020-01-29 00:00:00,"2020","10","Grant reference 1882","N51019","BCF Non Grant Expenditure","1311","Outgoing VAT on sales to EU Member states"
"GUILDFORD BOROUGH COUNCIL","Grants","Bentley Mobility Services Limited","929000","07/01/2021",30010158,5010,0,"Grants To Private Owners","Mobility Disability Equipment Suppliers","II","BACS","None",2020-01-29 00:00:00,"2020","10","Grant reference 1882","N51019","BCF Non Grant Expenditure","1311","Grants To Private Owners"
"GUILDFORD BOROUGH COUNCIL","Investment Properties","JC Electrics (Guildford) Ltd","748360","07/01/2021",30010161,3975.4,0,"Asset Maintenance","Electrical Wiring And Parts Suppliers","II","BACS","None",2020-03-30 00:00:00,"2020","10","S975","B6111","Investment Property","B1001","Asset Maintenance"
"GUILDFORD BOROUGH COUNCIL","Strategic Support","Keyworker Housing Association Ltd","874950","02/02/2021",30010162,-411.68,0,"Asset Maintenance","Housing Associations","II","BACS","None",2021-01-05 00:00:00,"2020","10","Rental Income Dec 20","M6666","King Edward Ct 120 Walnut Tree","B1001","Asset Maintenance"
"GUILDFORD BOROUGH COUNCIL","Strategic Support","Keyworker Housing Association Ltd","874950","02/02/2021",30010162,-1317.39,0,"Income Recovery","Housing Associations","II","BACS","None",2021-01-05 00:00:00,"2020","10","Rental Income Dec 20","M6666","King Edward Ct 120 Walnut Tree","K2003","Income Recovery"
"GUILDFORD BOROUGH COUNCIL","Strategic Support","Keyworker Housing Association Ltd","874950","02/02/2021",30010162,16467.33,0,"Services","Housing Associations","II","BACS","None",2021-01-05 00:00:00,"2020","10","Rental Income Dec 20","M6666","King Edward Ct 120 Walnut Tree","D6004","Services"
"GUILDFORD BOROUGH COUNCIL","Grants","Stannah Stairlifts Ltd (Grants only)","766700","02/02/2021",30010163,4965,0,"Outgoing VAT on sales to EU Member states","Stairlift Suppliers","II","BACS","None",2021-01-05 00:00:00,"2020","10","Grant ref 1667","N51019","BCF Non Grant Expenditure","1311","Outgoing VAT on sales to EU Member states"
"GUILDFORD BOROUGH COUNCIL","Grants","Stannah Stairlifts Ltd (Grants only)","766700","02/02/2021",30010163,4965,0,"Outgoing VAT on sales to EU Member states","Stairlift Suppliers","II","BACS","None",2021-01-05 00:00:00,"2020","10","Grant ref 1667","N51019","BCF Non Grant Expenditure","1311","Outgoing VAT on sales to EU Member states"
"GUILDFORD BOROUGH COUNCIL","Grants","Stannah Stairlifts Ltd (Grants only)","766700","02/02/2021",30010163,4965,0,"Grants To Private Owners","Stairlift Suppliers","II","BACS","None",2021-01-05 00:00:00,"2020","10","Grant ref 1667","N51019","BCF Non Grant Expenditure","1311","Grants To Private Owners"
"GUILDFORD BOROUGH COUNCIL","Planning Policy","Royal Town Planning Institute (Subscriptions only)","816100","07/01/2021",30010164,315,0,"Staff Costs","Trade Associations And Regulatory Bodies","II","BACS","None",2020-11-01 00:00:00,"2020","10","R21407","D5300","Policy","A7100","Staff Costs"
"GUILDFORD BOROUGH COUNCIL","Woking Road Depot","CTG Enterprises Ltd","795800","07/01/2021",30010165,140,0,"Services","Other Cleaning And Janitorial Service Providers","II","BACS","None",2020-10-01 00:00:00,"2020","10","GU1684G","B4452","Woking Road Depot","D6004","Services"
"GUILDFORD BOROUGH COUNCIL","Countryside and Parks Services","British Gas Trading Ltd","341270","07/01/2021",30010166,2.33,0,"Utilities","Mains Utility Multiple Service Providers","II","BACS","None",2020-12-01 00:00:00,"2020","10","851008555395/011220","A1270","Woodbridge Road","B2001","Utilities"
"GUILDFORD BOROUGH COUNCIL","Countryside and Parks Services","British Gas Trading Ltd","341270","07/01/2021",30010166,2.33,0,"Utilities","Mains Utility Multiple Service Providers","II","BACS","None",2020-12-01 00:00:00,"2020","10","851008555395/011220","A1270","Woodbridge Road","B2001","Utilities"
"GUILDFORD BOROUGH COUNCIL","Parks Countryside Management","British Gas Trading Ltd","341270","07/01/2021",30010166,2.33,0,"Utilities","Mains Utility Multiple Service Providers","II","BACS","None",2020-12-01 00:00:00,"2020","10","851008555395/011220","A1270","Woodbridge Road","B2001","Utilities"
"GUILDFORD BOROUGH COUNCIL","Countryside and Parks Services","British Gas Trading Ltd","341270","07/01/2021",30010166,32.05,0,"Utilities","Mains Utility Multiple Service Providers","II","BACS","None",2020-12-01 00:00:00,"2020","10","851008555395/011220","A1270","Woodbridge Road","B2001","Utilities"
"GUILDFORD BOROUGH COUNCIL","Countryside and Parks Services","British Gas Trading Ltd","341270","07/01/2021",30010166,32.05,0,"Utilities","Mains Utility Multiple Service Providers","II","BACS","None",2020-12-01 00:00:00,"2020","10","851008555395/011220","A1270","Woodbridge Road","B2001","Utilities"
"GUILDFORD BOROUGH COUNCIL","Parks Countryside Management","British Gas Trading Ltd","341270","07/01/2021",30010166,32.05,0,"Utilities","Mains Utility Multiple Service Providers","II","BACS","None",2020-12-01 00:00:00,"2020","10","851008555395/011220","A1270","Woodbridge Road","B2001","Utilities"
"GUILDFORD BOROUGH COUNCIL","Industrial Estates","Ermc Limited","698460","26/01/2021",30010167,-1025,0,"Consultants Fees","Construction Project Management Consultants","II","BACS","None",2020-12-31 00:00:00,"2020","10","CN08414","P72037","Midleton Ind Est Redevelop","1221","Consultants Fees"
"GUILDFORD BOROUGH COUNCIL","Vehicle Maintenance","Riverside Truck Rental Ltd","993650","26/01/2021",30010168,5750,0,"External Vehicle Hire","","II","BACS","None",2020-12-31 00:00:00,"2020","10","IV683895","K5551","Fleet Workshops","C3001","External Vehicle Hire"
"GUILDFORD BOROUGH COUNCIL","Street Cleansing","CTG Enterprises Ltd","795800","26/01/2021",30010169,153,0,"Services","Other Cleaning And Janitorial Service Providers","II","BACS","None",2021-01-01 00:00:00,"2020","10","GU1720GBC","K4551","Street Cleansing","D6004","Services"
"GUILDFORD BOROUGH COUNCIL","Vehicle Maintenance","Rivus Fleet Solutions Limited","985450","07/01/2021",30010170,55,0,"Vehicle Operating Costs","","II","BACS","None",2020-08-05 00:00:00,"2020","10","SIV200800000037","K5551","Fleet Workshops","C1001","Vehicle Operating Costs"
"GUILDFORD BOROUGH COUNCIL","Vehicle Maintenance","Rivus Fleet Solutions Limited","985450","07/01/2021",30010170,113,0,"Vehicle Operating Costs","","II","BACS","None",2020-08-05 00:00:00,"2020","10","SIV200800000037","K5551","Fleet Workshops","C1001","Vehicle Operating Costs"
"GUILDFORD BOROUGH COUNCIL","Vehicle Maintenance","Kendall Cars Limited","284700","19/01/2021",30010171,483.67,0,"External Vehicle Hire","Car, Van And Truck Hire Companies","II","BACS","None",2020-12-24 00:00:00,"2020","10","1880370","K5551","Fleet Workshops","C3001","External Vehicle Hire"
"GUILDFORD BOROUGH COUNCIL","Telephony Holding Account (Service)","EE Limited (Airtime Payments)","853640","21/01/2021",30010172,7487.15,0,"Telephones & Broadband","Mobile Communications Service Providers","II","BACS","None",2020-12-03 00:00:00,"2020","10","01285832992","G1151","Telephony Holding Account","D7004","Telephones & Broadband"
"GUILDFORD BOROUGH COUNCIL","Resources Caseworker","Royal Mail Group Ltd (Chesterfield)","878030","14/01/2021",30010173,0.78,0,"Postage","","II","BACS","None",2020-12-21 00:00:00,"2020","10","9062128731","G3550","Resources Caseworker","D5003","Postage"
"GUILDFORD BOROUGH COUNCIL","Equity Share Administration","Clarke Gammon Wellers","150290","02/02/2021",30010174,300,0,"Valuers Fees","Property Letting And Estate Agents","II","BACS","None",2021-01-04 00:00:00,"2020","10","14670","M1181","Sale Of Council Houses (BHS)","D6002","Valuers Fees"
"GUILDFORD BOROUGH COUNCIL","Industrial Estates","Artelia Projects UK Limited","874420","26/01/2021",30010175,2775.33,0,"Consultants Fees","Civil Engineers","II","BACS","None",2020-12-31 00:00:00,"2020","10","PIN009710","P72037","Midleton Ind Est Redevelop","1221","Consultants Fees"
"GUILDFORD BOROUGH COUNCIL","Licensing","Mink Farm Boarding Kennels and Cattery","968950","26/01/2021",30010176,2163.58,0,"Services","Animal Boarding Service Providers","II","BACS","None",2020-12-31 00:00:00,"2020","10","42092","H2100","Licensing Services","D6004","Services"
"GUILDFORD BOROUGH COUNCIL","Affordable Hsg - Site Prep Etc","3R Finance Ltd","1000077","14/01/2021",30010177,248.6,0,"Consultants Fees","","II","BACS","None",2020-12-22 00:00:00,"2020","10","INV-41779","N55035","17 Wharf Lane","1221","Consultants Fees"
"GUILDFORD BOROUGH COUNCIL","New Build","3R Finance Ltd","1000077","14/01/2021",30010177,372.9,0,"Consultants Fees","","II","BACS","None",2020-12-22 00:00:00,"2020","10","INV-41779","N30026","Banders Rise","1221","Consultants Fees"
"GUILDFORD BOROUGH COUNCIL","New Build","3R Finance Ltd","1000077","14/01/2021",30010177,367.4,0,"Consultants Fees","","II","BACS","None",2020-12-22 00:00:00,"2020","10","INV-41779","N30028","Dunmore Garden Land","1221","Consultants Fees"
"GUILDFORD BOROUGH COUNCIL","Affordable Hsg - Site Prep Etc","3R Finance Ltd","1000077","14/01/2021",30010177,248.6,0,"Consultants Fees","","II","BACS","None",2020-12-22 00:00:00,"2020","10","INV-41779","N55034","27 Broomfield","1221","Consultants Fees"
"GUILDFORD BOROUGH COUNCIL","Resources Caseworker","Hays Specialist Recruitment Limited","156250","26/01/2021",30010178,506.94,0,"Agency","Other Recruitment Agencies And Service Providers","II","BACS","None",2020-12-31 00:00:00,"2020","10","1011035002","G3550","Resources Caseworker","A5191","Agency"
"GUILDFORD BOROUGH COUNCIL","Planning Policy","Royal Town Planning Institute (Subscriptions only)","816100","07/01/2021",30010179,315,0,"Staff Costs","Trade Associations And Regulatory Bodies","II","BACS","None",2020-11-01 00:00:00,"2020","10","90002996","D5300","Policy","A7100","Staff Costs"
"GUILDFORD BOROUGH COUNCIL","Lead Specialist - Finance","Hays Specialist Recruitment Limited","156250","26/01/2021",30010180,415,0,"Agency","Other Recruitment Agencies And Service Providers","II","BACS","None",2020-12-31 00:00:00,"2020","10","1010995822","G3593","Procurement Services","A5191","Agency"
"GUILDFORD BOROUGH COUNCIL","Business Improvement","Housing Partners Limited","529510","26/01/2021",30010181,1730,0,"Consultancy","Other Information Service Providers","II","BACS","None",2020-12-31 00:00:00,"2020","10","20398","G3531","Future Guildford","D6001","Consultancy"
"GUILDFORD BOROUGH COUNCIL","Audit Management","Housing Partners Limited","529510","26/01/2021",30010181,1730,0,"Consultancy","Other Information Service Providers","II","BACS","None",2020-12-31 00:00:00,"2020","10","20398","G3531","Future Guildford","D6001","Consultancy"
"GUILDFORD BOROUGH COUNCIL","Resources Caseworker","Restore Datashred Limited","753320","07/01/2021",30010182,26.9,0,"Services","Confidential Waste Disposal Providers","II","BACS","None",2020-10-16 00:00:00,"2020","10","1188230","G7511","Millmead House","D6004","Services"
"GUILDFORD BOROUGH COUNCIL","Millmead House","Restore Datashred Limited","753320","07/01/2021",30010182,26.9,0,"Services","Confidential Waste Disposal Providers","II","BACS","None",2020-10-16 00:00:00,"2020","10","1188230","G7511","Millmead House","D6004","Services"
"GUILDFORD BOROUGH COUNCIL","Woking Road Depot","Restore Datashred Limited","753320","07/01/2021",30010182,32.28,0,"Services","Confidential Waste Disposal Providers","II","BACS","None",2020-10-16 00:00:00,"2020","10","1188230","B4452","Woking Road Depot","D6004","Services"
"GUILDFORD BOROUGH COUNCIL","Guildford House","Restore Datashred Limited","753320","07/01/2021",30010182,32.28,0,"Services","Confidential Waste Disposal Providers","II","BACS","None",2020-10-16 00:00:00,"2020","10","1188230","A4511","Guildford House Administration","D6004","Services"
"GUILDFORD BOROUGH COUNCIL","Crematorium","Restore Datashred Limited","753320","07/01/2021",30010182,32.28,0,"Services","Confidential Waste Disposal Providers","II","BACS","None",2020-10-16 00:00:00,"2020","10","1188230","A1500","Crematorium","D6004","Services"
"GUILDFORD BOROUGH COUNCIL","Guildford Museum","Restore Datashred Limited","753320","07/01/2021",30010182,32.28,0,"Services","Confidential Waste Disposal Providers","II","BACS","None",2020-10-16 00:00:00,"2020","10","1188230","A5511","Museum","D6004","Services"
"GUILDFORD BOROUGH COUNCIL","Countryside and Parks Services","Restore Datashred Limited","753320","07/01/2021",30010182,32.28,0,"Services","Confidential Waste Disposal Providers","II","BACS","None",2020-10-16 00:00:00,"2020","10","1188230","A1900","Parks Management And Admin","D6004","Services"
"GUILDFORD BOROUGH COUNCIL","Lead Specialist - Finance","Hays Specialist Recruitment Limited","156250","26/01/2021",30010183,1245,0,"Agency","Other Recruitment Agencies And Service Providers","II","BACS","None",2020-12-31 00:00:00,"2020","10","1010985871","G3593","Procurement Services","A5191","Agency"
"GUILDFORD BOROUGH COUNCIL","Taxi Licensing","Civica UK Ltd","963100","23/02/2021",30010184,-98.43,0,"ICT Software","Computer Systems Integrators","II","BACS","None",2020-12-31 00:00:00,"2020","10","M/HB081944","H1108","Hackney Carriage & Private Hire Vehicles","D7002","ICT Software"
"GUILDFORD BOROUGH COUNCIL","Taxi Licensing","Civica UK Ltd","963100","23/02/2021",30010184,-98.43,0,"ICT Software","Computer Systems Integrators","II","BACS","None",2020-12-31 00:00:00,"2020","10","M/HB081944","H1104","Hackney Carriage Private Hire Drivers","D7002","ICT Software"
"GUILDFORD BOROUGH COUNCIL","Private Sector Housing Maintenance","Civica UK Ltd","963100","23/02/2021",30010184,-98.41,0,"ICT Software","Computer Systems Integrators","II","BACS","None",2020-12-31 00:00:00,"2020","10","M/HB081944","C5122","Private Sector Housing Standard","D7002","ICT Software"
"GUILDFORD BOROUGH COUNCIL","Private Sector Housing","Civica UK Ltd","963100","23/02/2021",30010184,-98.41,0,"ICT Software","Computer Systems Integrators","II","BACS","None",2020-12-31 00:00:00,"2020","10","M/HB081944","C5122","Private Sector Housing Standard","D7002","ICT Software"
"GUILDFORD BOROUGH COUNCIL","Environmental Health","Civica UK Ltd","963100","23/02/2021",30010184,-98.43,0,"ICT Software","Computer Systems Integrators","II","BACS","None",2020-12-31 00:00:00,"2020","10","M/HB081944","C1113","Environmental Control","D7002","ICT Software"
"GUILDFORD BOROUGH COUNCIL","Food Safety","Civica UK Ltd","963100","23/02/2021",30010184,-98.43,0,"ICT Software","Computer Systems Integrators","II","BACS","None",2020-12-31 00:00:00,"2020","10","M/HB081944","C1111","Food And Safety Service","D7002","ICT Software"
"GUILDFORD BOROUGH COUNCIL","Woking Road Depot","CTG Enterprises Ltd","795800","26/01/2021",30010185,180,0,"Services","Other Cleaning And Janitorial Service Providers","II","BACS","None",2021-01-01 00:00:00,"2020","10","GU1721GBC","B4452","Woking Road Depot","D6004","Services"
"GUILDFORD BOROUGH COUNCIL","Industrial Estates","Ermc Limited","698460","26/01/2021",30010186,650,0,"Consultants Fees","Construction Project Management Consultants","II","BACS","None",2020-12-31 00:00:00,"2020","10","08714","P72037","Midleton Ind Est Redevelop","1221","Consultants Fees"
"GUILDFORD BOROUGH COUNCIL","Off Street Parking","Royal Mail Group Ltd (Chesterfield)","878030","12/01/2021",30010187,23.65,0,"Postage","","II","BACS","None",2020-12-17 00:00:00,"2020","10","9062111600","B2111","Car Parks - Administration","D5003","Postage"
"GUILDFORD BOROUGH COUNCIL","Income Collection","Allpay Ltd","914220","26/01/2021",30010188,1193.69,0,"Bank Charges","Other Financial Service Providers","II","BACS","None",2020-12-31 00:00:00,"2020","10","0000670739","M1121","Income Collection (BHS)","D8002","Bank Charges"
"GUILDFORD BOROUGH COUNCIL","Planning Policy","One Stop Conservation Ltd","928820","14/01/2021",30010189,1137.5,0,"Consultancy","Conservation Organisations","II","BACS","None",2020-12-21 00:00:00,"2020","10","20/166","D5300","Policy","D6001","Consultancy"
"GUILDFORD BOROUGH COUNCIL","Countryside and Parks Services","I & J Bushell Ltd (CIS)","804030","07/01/2021",30010190,300,0,"Grounds Maintenance","Other Farming And Agricultural Activities","II","BACS","None",2020-12-31 00:00:00,"2020","10","042963","A1300","Trees And Countryside","B6001","Grounds Maintenance"
"GUILDFORD BOROUGH COUNCIL","Parks Countryside Management","I & J Bushell Ltd (CIS)","804030","07/01/2021",30010190,300,0,"Grounds Maintenance","Other Farming And Agricultural Activities","II","BACS","None",2020-12-31 00:00:00,"2020","10","042963","A1300","Trees And Countryside","B6001","Grounds Maintenance"
"GUILDFORD BOROUGH COUNCIL","Countryside and Parks Services","I & J Bushell Ltd (CIS)","804030","07/01/2021",30010190,645,0,"Grounds Maintenance","Other Farming And Agricultural Activities","II","BACS","None",2020-12-31 00:00:00,"2020","10","042963","A1300","Trees And Countryside","B6001","Grounds Maintenance"
"GUILDFORD BOROUGH COUNCIL","Parks Countryside Management","I & J Bushell Ltd (CIS)","804030","07/01/2021",30010190,645,0,"Grounds Maintenance","Other Farming And Agricultural Activities","II","BACS","None",2020-12-31 00:00:00,"2020","10","042963","A1300","Trees And Countryside","B6001","Grounds Maintenance"
"GUILDFORD BOROUGH COUNCIL","Woking Road Depot","Royal Mail Group Ltd (Chesterfield)","878030","07/01/2021",30010191,5.49,0,"Postage","","II","BACS","None",2020-11-14 00:00:00,"2020","10","9062108792","B4452","Woking Road Depot","D5003","Postage"
"GUILDFORD BOROUGH COUNCIL","Resources Caseworker","Hays Specialist Recruitment Limited","156250","26/01/2021",30010192,771.67,0,"Agency","Other Recruitment Agencies And Service Providers","II","BACS","None",2020-12-31 00:00:00,"2020","10","1010958889","G3550","Resources Caseworker","A5191","Agency"
"GUILDFORD BOROUGH COUNCIL","Off Street Parking","Hub Parking Technology","757270","14/01/2021",30010193,450,0,"Equipment","Parking Management Providers","II","BACS","None",2020-12-21 00:00:00,"2020","10","SIN348062","B2216","General Upkeep- Urban Car Pks","D2001","Equipment"
"GUILDFORD BOROUGH COUNCIL","Business Improvement","E-Personnel Recruitment Ltd","720390","07/01/2021",30010194,611.25,0,"Consultancy","Other Recruitment Agencies And Service Providers","II","BACS","None",2020-11-10 00:00:00,"2020","10","14795","G3531","Future Guildford","D6001","Consultancy"
"GUILDFORD BOROUGH COUNCIL","Audit Management","E-Personnel Recruitment Ltd","720390","07/01/2021",30010194,611.25,0,"Consultancy","Other Recruitment Agencies And Service Providers","II","BACS","None",2020-11-10 00:00:00,"2020","10","14795","G3531","Future Guildford","D6001","Consultancy"
"GUILDFORD BOROUGH COUNCIL","Resources Caseworker","Restore Datashred Limited","753320","07/01/2021",30010195,24.13,0,"Services","Confidential Waste Disposal Providers","II","BACS","None",2020-09-30 00:00:00,"2020","10","1179733","G7511","Millmead House","D6004","Services"
"GUILDFORD BOROUGH COUNCIL","Millmead House","Restore Datashred Limited","753320","07/01/2021",30010195,24.13,0,"Services","Confidential Waste Disposal Providers","II","BACS","None",2020-09-30 00:00:00,"2020","10","1179733","G7511","Millmead House","D6004","Services"
"GUILDFORD BOROUGH COUNCIL","Lead Specialist - HR","Restore Datashred Limited","753320","07/01/2021",30010195,2.75,0,"Services","Confidential Waste Disposal Providers","II","BACS","None",2020-09-30 00:00:00,"2020","10","1179733","G2555","HR Services","D6004","Services"
"GUILDFORD BOROUGH COUNCIL","Resources Caseworker","Restore Datashred Limited","753320","07/01/2021",30010195,8.04,0,"Services","Confidential Waste Disposal Providers","II","BACS","None",2020-09-30 00:00:00,"2020","10","1179733","G7511","Millmead House","D6004","Services"
"GUILDFORD BOROUGH COUNCIL","Millmead House","Restore Datashred Limited","753320","07/01/2021",30010195,8.04,0,"Services","Confidential Waste Disposal Providers","II","BACS","None",2020-09-30 00:00:00,"2020","10","1179733","G7511","Millmead House","D6004","Services"
"GUILDFORD BOROUGH COUNCIL","Lead Specialist - Finance","Restore Datashred Limited","753320","07/01/2021",30010195,4.77,0,"Services","Confidential Waste Disposal Providers","II","BACS","None",2020-09-30 00:00:00,"2020","10","1179733","G3565","Finance Specialists","D6004","Services"
"GUILDFORD BOROUGH COUNCIL","Lead Specialist - HR","Restore Datashred Limited","753320","07/01/2021",30010195,2.53,0,"Services","Confidential Waste Disposal Providers","II","BACS","None",2020-09-30 00:00:00,"2020","10","1179733","G3595","Payroll Specialist","D6004","Services"
"GUILDFORD BOROUGH COUNCIL","Resources Caseworker","Restore Datashred Limited","753320","07/01/2021",30010195,10.28,0,"Services","Confidential Waste Disposal Providers","II","BACS","None",2020-09-30 00:00:00,"2020","10","1179733","G3550","Resources Caseworker","D6004","Services"
"GUILDFORD BOROUGH COUNCIL","Development Control","Restore Datashred Limited","753320","07/01/2021",30010195,1.19,0,"Services","Confidential Waste Disposal Providers","II","BACS","None",2020-09-30 00:00:00,"2020","10","1179733","D5100","Development Control - Fee Earn","D6004","Services"
"GUILDFORD BOROUGH COUNCIL","Council Tax","Restore Datashred Limited","753320","07/01/2021",30010195,2.11,0,"Services","Confidential Waste Disposal Providers","II","BACS","None",2020-09-30 00:00:00,"2020","10","1179733","F6141","Council Tax Collectn Expenses","D6004","Services"
"GUILDFORD BOROUGH COUNCIL","Elections","Restore Datashred Limited","753320","07/01/2021",30010195,8.08,0,"Services","Confidential Waste Disposal Providers","II","BACS","None",2020-09-30 00:00:00,"2020","10","1179733","F2151","Elections","D6004","Services"
"GUILDFORD BOROUGH COUNCIL","Private Sector Housing Maintenance","Restore Datashred Limited","753320","07/01/2021",30010195,1.52,0,"Services","Confidential Waste Disposal Providers","II","BACS","None",2020-09-30 00:00:00,"2020","10","1179733","C5122","Private Sector Housing Standard","D6004","Services"
"GUILDFORD BOROUGH COUNCIL","Private Sector Housing","Restore Datashred Limited","753320","07/01/2021",30010195,1.52,0,"Services","Confidential Waste Disposal Providers","II","BACS","None",2020-09-30 00:00:00,"2020","10","1179733","C5122","Private Sector Housing Standard","D6004","Services"
"GUILDFORD BOROUGH COUNCIL","Housing Surveying","Restore Datashred Limited","753320","07/01/2021",30010195,0.07,0,"Services","Confidential Waste Disposal Providers","II","BACS","None",2020-09-30 00:00:00,"2020","10","1179733","G6525","Housing Surveying Services","D6004","Services"
"GUILDFORD BOROUGH COUNCIL","Council and Committee Support","Restore Datashred Limited","753320","07/01/2021",30010195,5.16,0,"Services","Confidential Waste Disposal Providers","II","BACS","None",2020-09-30 00:00:00,"2020","10","1179733","G4565","Committee Services","D6004","Services"
"GUILDFORD BOROUGH COUNCIL","Lead Specialist - Legal","Restore Datashred Limited","753320","07/01/2021",30010195,4.87,0,"Services","Confidential Waste Disposal Providers","II","BACS","None",2020-09-30 00:00:00,"2020","10","1179733","G4525","Legal Services","D6004","Services"
"GUILDFORD BOROUGH COUNCIL","Electoral Registration","Restore Datashred Limited","753320","07/01/2021",30010195,4.75,0,"Services","Confidential Waste Disposal Providers","II","BACS","None",2020-09-30 00:00:00,"2020","10","1179733","F2511","Electoral Registration","D6004","Services"
"GUILDFORD BOROUGH COUNCIL","Audit Management","Restore Datashred Limited","753320","07/01/2021",30010195,1.85,0,"Services","Confidential Waste Disposal Providers","II","BACS","None",2020-09-30 00:00:00,"2020","10","1179733","G3525","Internal Audit","D6004","Services"
"GUILDFORD BOROUGH COUNCIL","Corporate Services","Restore Datashred Limited","753320","07/01/2021",30010195,10.63,0,"Services","Confidential Waste Disposal Providers","II","BACS","None",2020-09-30 00:00:00,"2020","10","1179733","F1111","Corporate Services","D6004","Services"
"GUILDFORD BOROUGH COUNCIL","Business Rates","Restore Datashred Limited","753320","07/01/2021",30010195,3.23,0,"Services","Confidential Waste Disposal Providers","II","BACS","None",2020-09-30 00:00:00,"2020","10","1179733","F6151","Business Rates Collection Exps","D6004","Services"
"GUILDFORD BOROUGH COUNCIL","Democratic Representation","Restore Datashred Limited","753320","07/01/2021",30010195,3.93,0,"Services","Confidential Waste Disposal Providers","II","BACS","None",2020-09-30 00:00:00,"2020","10","1179733","F2121","Councillor Services","D6004","Services"
"GUILDFORD BOROUGH COUNCIL","Environmental Health","Restore Datashred Limited","753320","07/01/2021",30010195,4.35,0,"Services","Confidential Waste Disposal Providers","II","BACS","None",2020-09-30 00:00:00,"2020","10","1179733","C1113","Environmental Control","D6004","Services"
"GUILDFORD BOROUGH COUNCIL","Housing Benefits","Restore Datashred Limited","753320","07/01/2021",30010195,35.13,0,"Services","Confidential Waste Disposal Providers","II","BACS","None",2020-09-30 00:00:00,"2020","10","1179733","C4511","Housing Benefits Admin.","D6004","Services"
"GUILDFORD BOROUGH COUNCIL","Food Safety","Restore Datashred Limited","753320","07/01/2021",30010195,5.01,0,"Services","Confidential Waste Disposal Providers","II","BACS","None",2020-09-30 00:00:00,"2020","10","1179733","C1111","Food And Safety Service","D6004","Services"
"GUILDFORD BOROUGH COUNCIL","Income Collection","Restore Datashred Limited","753320","07/01/2021",30010195,0.08,0,"Services","Confidential Waste Disposal Providers","II","BACS","None",2020-09-30 00:00:00,"2020","10","1179733","M1121","Income Collection (BHS)","D6004","Services"
"GUILDFORD BOROUGH COUNCIL","Tenant Selection","Restore Datashred Limited","753320","07/01/2021",30010195,0.93,0,"Services","Confidential Waste Disposal Providers","II","BACS","None",2020-09-30 00:00:00,"2020","10","1179733","M1131","Advice,Regs,Tenant Select(SHS)","D6004","Services"
"GUILDFORD BOROUGH COUNCIL","Responsive & Planned Maintenance","Restore Datashred Limited","753320","07/01/2021",30010195,3.2,0,"Services","Confidential Waste Disposal Providers","II","BACS","None",2020-09-30 00:00:00,"2020","10","1179733","M5111","Repairs-Admin (BHS)","D6004","Services"
"GUILDFORD BOROUGH COUNCIL","Resources Caseworker","Hays Specialist Recruitment Limited","156250","26/01/2021",30010196,816.73,0,"Agency","Other Recruitment Agencies And Service Providers","II","BACS","None",2020-12-31 00:00:00,"2020","10","1010989150","G3550","Resources Caseworker","A5191","Agency"
"GUILDFORD BOROUGH COUNCIL","Development Control","Nicholas Pearson Associates Ltd","750350","07/01/2021",30010197,1250,0,"Consultancy","Landscaping Contractors","II","BACS","None",2020-10-13 00:00:00,"2020","10","11123/2","D5100","Development Control - Fee Earn","D6001","Consultancy"
"GUILDFORD BOROUGH COUNCIL","Executive - Miscellaneous","Gleeds Advisory Ltd","1000172","26/01/2021",30010198,9000,0,"Consultants Fees","","II","BACS","None",2020-12-31 00:00:00,"2020","10","LNDM0039/001","P79025","Guildford Park Redevelopment","1221","Consultants Fees"
"GUILDFORD BOROUGH COUNCIL","Crematorium","The Columbaria Company","802600","07/01/2021",30010199,176.5,0,"Stock For Re-Sale","Stonemasons","II","BACS","None",2020-10-02 00:00:00,"2020","10","INV0074035","A1500","Crematorium","D2004","Stock For Re-Sale"
"GUILDFORD BOROUGH COUNCIL","Business Improvement","Housing Partners Limited","529510","26/01/2021",30010200,16511,0,"Consultancy","Other Information Service Providers","II","BACS","None",2020-12-31 00:00:00,"2020","10","20401","G3531","Future Guildford","D6001","Consultancy"
"GUILDFORD BOROUGH COUNCIL","Audit Management","Housing Partners Limited","529510","26/01/2021",30010200,16511,0,"Consultancy","Other Information Service Providers","II","BACS","None",2020-12-31 00:00:00,"2020","10","20401","G3531","Future Guildford","D6001","Consultancy"
"GUILDFORD BOROUGH COUNCIL","G Live","HQ Theatre Guildford Limited","652890","02/02/2021",30010201,27382.91,0,"Services","Theatres","II","BACS","None",2021-01-04 00:00:00,"2020","10","SIN004442","A2141","G Live","D6004","Services"
"GUILDFORD BOROUGH COUNCIL","Industrial Estates","Artelia Projects UK Limited","874420","26/01/2021",30010202,4787,0,"Consultants Fees","Civil Engineers","II","BACS","None",2020-12-31 00:00:00,"2020","10","PIN009709","P72037","Midleton Ind Est Redevelop","1221","Consultants Fees"
"GUILDFORD BOROUGH COUNCIL","Climate Change","Systemslink 2000 Limited","692900","14/01/2021",30010203,4265,0,"ICT Support & Maintenance","Software Developers","II","BACS","None",2020-12-21 00:00:00,"2020","10","19286","B3911","Climate Change Strategy","D7003","ICT Support & Maintenance"
"GUILDFORD BOROUGH COUNCIL","Building Maintenance","Drain & Sewer Services","108390","07/01/2021",30010204,125,0,"Services","Sewerage And Drainage Service Providers","II","BACS","None",2020-10-14 00:00:00,"2020","10","88481","K1515","Building Maintenance","D6004","Services"
"GUILDFORD BOROUGH COUNCIL","Vehicle Maintenance","Fluid Systems Ltd T/A Pirtek (Guildford)","667001","07/01/2021",30010205,323.27,0,"Repair And Maintenance Of Vehicles","","II","BACS","None",2020-09-30 00:00:00,"2020","10","GUI2066","K5551","Fleet Workshops","C1002","Repair And Maintenance Of Vehicles"
"GUILDFORD BOROUGH COUNCIL","Vehicle Maintenance","Southern Electromotive Distribution Ltd","760300","02/02/2021",30010206,49.35,0,"Repair And Maintenance Of Vehicles","Car And Van Servicing And Maintenance Providers","II","BACS","None",2021-01-04 00:00:00,"2020","10","403463","K5551","Fleet Workshops","C1002","Repair And Maintenance Of Vehicles"
"GUILDFORD BOROUGH COUNCIL","Development Control","Surrey Wildlife Trust Ltd (Woking)","129780","07/01/2021",30010207,2850,0,"Consultancy","Charities And Voluntary Organisations","II","BACS","None",2020-10-08 00:00:00,"2020","10","14815","D5100","Development Control - Fee Earn","D6001","Consultancy"
"GUILDFORD BOROUGH COUNCIL","Planning Policy","APSE","105080","07/01/2021",30010208,650,0,"Consultancy","Trade Associations And Regulatory Bodies","II","BACS","None",2020-12-15 00:00:00,"2020","10","2021/1629","D5400","Local Plan","D6001","Consultancy"
"GUILDFORD BOROUGH COUNCIL","Building Maintenance","Chambers Waste Management Plc","127500","12/01/2021",30010209,1547.49,0,"Services","Other Waste Disposal Suppliers","II","BACS","None",2020-12-20 00:00:00,"2020","10","P450389","K1515","Building Maintenance","D6004","Services"
"GUILDFORD BOROUGH COUNCIL","Property","Babec Ltd","845990","02/02/2021",30010210,130,0,"Consultants Fees","Environmental Consultants","II","BACS","None",2021-01-04 00:00:00,"2020","10","INV-01008","P74072","Tyting Farm- Removal Of Barns","1221","Consultants Fees"
"GUILDFORD BOROUGH COUNCIL","Climate Change","APSE","105080","07/01/2021",30010211,994.19,0,"Consultancy","Trade Associations And Regulatory Bodies","II","BACS","None",2020-03-13 00:00:00,"2020","10","1920/2784","B3911","Climate Change Strategy","D6001","Consultancy"
"GUILDFORD BOROUGH COUNCIL","G Live","HQ Theatre Guildford Limited","652890","02/02/2021",30010212,21281.91,0,"Management Fees","Theatres","II","BACS","None",2021-01-04 00:00:00,"2020","10","SIN004441","A2141","G Live","D8003","Management Fees"
"GUILDFORD BOROUGH COUNCIL","Investment Properties","EDF Energy","656190","07/01/2021",30010213,8.87,0,"Utilities","Mains Electricity Suppliers","II","BACS","None",2020-12-09 00:00:00,"2020","10","E34071833010","B6111","Investment Property","B2001","Utilities"
"GUILDFORD BOROUGH COUNCIL","Vehicle Maintenance","Rivus Fleet Solutions Limited","985450","07/01/2021",30010214,55,0,"Vehicle Operating Costs","","II","BACS","None",2020-08-05 00:00:00,"2020","10","SIV200800000070","K5551","Fleet Workshops","C1001","Vehicle Operating Costs"
"GUILDFORD BOROUGH COUNCIL","Vehicle Maintenance","Rivus Fleet Solutions Limited","985450","07/01/2021",30010214,91,0,"Vehicle Operating Costs","","II","BACS","None",2020-08-05 00:00:00,"2020","10","SIV200800000070","K5551","Fleet Workshops","C1001","Vehicle Operating Costs"
"GUILDFORD BOROUGH COUNCIL","Building Maintenance","Chambers Waste Management Plc","127500","12/01/2021",30010215,104.6,0,"Services","Other Waste Disposal Suppliers","II","BACS","None",2020-12-20 00:00:00,"2020","10","P450386","K1515","Building Maintenance","D6004","Services"
"GUILDFORD BOROUGH COUNCIL","Environmental Health","SDK Environmental Ltd","800110","26/01/2021",30010216,2771.67,0,"Contractors","Pest And Vermin Control Service Providers","II","BACS","None",2020-12-31 00:00:00,"2020","10","45691","C1113","Environmental Control","D6012","Contractors"
"GUILDFORD BOROUGH COUNCIL","Street Cleansing","CTG Enterprises Ltd","795800","26/01/2021",30010217,999.6,0,"Services","Other Cleaning And Janitorial Service Providers","II","BACS","None",2021-01-01 00:00:00,"2020","10","GU1719GBC","K4551","Street Cleansing","D6004","Services"
"GUILDFORD BOROUGH COUNCIL","Lead Specialist - Finance","Hays Specialist Recruitment Limited","156250","26/01/2021",30010218,2075,0,"Agency","Other Recruitment Agencies And Service Providers","II","BACS","None",2020-12-31 00:00:00,"2020","10","1010956364","G3593","Procurement Services","A5191","Agency"
"GUILDFORD BOROUGH COUNCIL","Street Cleansing","CTG Enterprises Ltd","795800","26/01/2021",30010219,2575,0,"Services","Other Cleaning And Janitorial Service Providers","II","BACS","None",2021-01-01 00:00:00,"2020","10","GU1725GBC","K4551","Street Cleansing","D6004","Services"
"GUILDFORD BOROUGH COUNCIL","Lead Specialist - Finance","Hays Specialist Recruitment Limited","156250","26/01/2021",30010220,2075,0,"Agency","Other Recruitment Agencies And Service Providers","II","BACS","None",2020-12-31 00:00:00,"2020","10","1011020562","G3593","Procurement Services","A5191","Agency"
"GUILDFORD BOROUGH COUNCIL","Industrial Estates","Ermc Limited","698460","26/01/2021",30010221,375,0,"Consultants Fees","Construction Project Management Consultants","II","BACS","None",2020-12-31 00:00:00,"2020","10","08713","P72037","Midleton Ind Est Redevelop","1221","Consultants Fees"
"GUILDFORD BOROUGH COUNCIL","Vehicle Maintenance","Fluid Systems Ltd T/A Pirtek (Guildford)","667001","07/01/2021",30010222,207.81,0,"Repair And Maintenance Of Vehicles","","II","BACS","None",2020-11-16 00:00:00,"2020","10","GUI2576","K5551","Fleet Workshops","C1002","Repair And Maintenance Of Vehicles"
"GUILDFORD BOROUGH COUNCIL","Industrial Estates","E.On","178880","28/01/2021",30010223,81.21,0,"Utilities","Mains Utility Multiple Service Providers","II","BACS","None",2020-08-04 00:00:00,"2020","10","H18C63074E","B5341","Midleton Industrial Estate","B2001","Utilities"
"GUILDFORD BOROUGH COUNCIL","Resources Caseworker","Hays Specialist Recruitment Limited","156250","26/01/2021",30010224,619.59,0,"Agency","Other Recruitment Agencies And Service Providers","II","BACS","None",2020-12-31 00:00:00,"2020","10","1010978422","G3550","Resources Caseworker","A5191","Agency"
"GUILDFORD BOROUGH COUNCIL","Crematorium","Dr A Bryett","174500","02/02/2021",30010225,3876,0,"Services","","II","BACS","None",2021-01-04 00:00:00,"2020","10","15","A1500","Crematorium","D6004","Services"
"GUILDFORD BOROUGH COUNCIL","Planning Policy","One Stop Conservation Ltd","928820","07/01/2021",30010226,2161.25,0,"Consultancy","Conservation Organisations","II","BACS","None",2020-12-02 00:00:00,"2020","10","20/164","D5300","Policy","D6001","Consultancy"
"GUILDFORD BOROUGH COUNCIL","Homelessness Support","Project 114 Ltd","847120","02/02/2021",30010227,1890,0,"Emergency Accomodation","Property Letting And Estate Agents","II","BACS","None",2021-01-04 00:00:00,"2020","10","3130","C3311","Homelessness","D8009","Emergency Accomodation"
"GUILDFORD BOROUGH COUNCIL","Vehicle Maintenance","Fluid Systems Ltd T/A Pirtek (Guildford)","667001","14/01/2021",30010228,69.11,0,"Repair And Maintenance Of Vehicles","","II","BACS","None",2020-09-23 00:00:00,"2020","10","GUI2089","K5551","Fleet Workshops","C1002","Repair And Maintenance Of Vehicles"
"GUILDFORD BOROUGH COUNCIL","Development Control","Alexander Advertising (International) Ltd","454730","12/01/2021",30010229,759.22,0,"Advertising, Publicity & Promotion","Full Service Marketing Agencies","II","BACS","None",2020-12-18 00:00:00,"2020","10","1287G21","D5100","Development Control - Fee Earn","D5002","Advertising, Publicity & Promotion"
"GUILDFORD BOROUGH COUNCIL","Lead Specialist - HR","GB Group Plc","914540","19/01/2021",30010230,40,0,"Vacancy And Interview Costs","","II","BACS","None",2020-11-30 00:00:00,"2020","10","376845","G2555","HR Services","A7120","Vacancy And Interview Costs"
"GUILDFORD BOROUGH COUNCIL","Lead Specialist - HR","GB Group Plc","914540","19/01/2021",30010230,27,0,"Vacancy And Interview Costs","","II","BACS","None",2020-11-30 00:00:00,"2020","10","376845","G2555","HR Services","A7120","Vacancy And Interview Costs"
"GUILDFORD BOROUGH COUNCIL","Vehicle Maintenance","Manbat Ltd","252180","02/02/2021",30010231,43.93,0,"Repair And Maintenance Of Vehicles","Third Party Supplier","II","BACS","None",2021-01-04 00:00:00,"2020","10","21100696","K5551","Fleet Workshops","C1002","Repair And Maintenance Of Vehicles"
"GUILDFORD BOROUGH COUNCIL","Tenant Services","Town and Country Cleaners Ltd","690490","26/01/2021",30010232,6333.34,0,"Cleaning Contractors","Commercial Cleaners","II","BACS","None",2020-12-30 00:00:00,"2020","10","78051","M1151","Tenants Services (BHS)","D6006","Cleaning Contractors"
"GUILDFORD BOROUGH COUNCIL","Lead Specialist - ICT","Embridge Consulting (UK) LTD","1000018","07/01/2021",30010233,2631.55,0,"Consultancy","","II","BACS","None",2020-11-30 00:00:00,"2020","10","11754","G3548","ICT Technical & Infrastructure","D6001","Consultancy"
"GUILDFORD BOROUGH COUNCIL","Lead Specialist - Finance","Hays Specialist Recruitment Limited","156250","26/01/2021",30010234,2075,0,"Agency","Other Recruitment Agencies And Service Providers","II","BACS","None",2020-12-31 00:00:00,"2020","10","1010973605","G3593","Procurement Services","A5191","Agency"
"GUILDFORD BOROUGH COUNCIL","Tourism & Development","A T Graphicsltd C/O Coach Tours UK","174870","12/01/2021",30010235,200,0,"Advertising, Publicity & Promotion","Graphic Design And Creative Agencies","II","BACS","None",2020-12-18 00:00:00,"2020","10","10538","F5545","Tourism","D5002","Advertising, Publicity & Promotion"
"GUILDFORD BOROUGH COUNCIL","Vehicle Maintenance","Rivus Fleet Solutions Limited","985450","07/01/2021",30010236,91,0,"Vehicle Operating Costs","","II","BACS","None",2020-08-05 00:00:00,"2020","10","SIV200800000086","K5551","Fleet Workshops","C1001","Vehicle Operating Costs"
"GUILDFORD BOROUGH COUNCIL","Vehicle Maintenance","Rivus Fleet Solutions Limited","985450","07/01/2021",30010236,55,0,"Vehicle Operating Costs","","II","BACS","None",2020-08-05 00:00:00,"2020","10","SIV200800000086","K5551","Fleet Workshops","C1001","Vehicle Operating Costs"
"GUILDFORD BOROUGH COUNCIL","Development Control","Alexander Advertising (International) Ltd","454730","07/01/2021",30010237,379.61,0,"Advertising, Publicity & Promotion","Full Service Marketing Agencies","II","BACS","None",2020-12-11 00:00:00,"2020","10","1227R21","D5100","Development Control - Fee Earn","D5002","Advertising, Publicity & Promotion"
"GUILDFORD BOROUGH COUNCIL","Resources Caseworker","Hays Specialist Recruitment Limited","156250","26/01/2021",30010238,518.21,0,"Agency","Other Recruitment Agencies And Service Providers","II","BACS","None",2020-12-31 00:00:00,"2020","10","1011007992","G3550","Resources Caseworker","A5191","Agency"
"GUILDFORD BOROUGH COUNCIL","Development Control","Concept Group Ltd","856810","07/01/2021",30010239,332.5,0,"Service fees","Other Office Equipment Suppliers","II","BACS","None",2020-09-30 00:00:00,"2020","10","995265","D5100","Development Control - Fee Earn","D8011","Service fees"
"GUILDFORD BOROUGH COUNCIL","Building Control","Concept Group Ltd","856810","07/01/2021",30010239,332.5,0,"Service fees","Other Office Equipment Suppliers","II","BACS","None",2020-09-30 00:00:00,"2020","10","995265","D5700","Building Control - Fee","D8011","Service fees"
"GUILDFORD BOROUGH COUNCIL","Inventories","Saint-Gobain Building Distribution Limited (Jewson)","271200","12/01/2021",30010240,-1.85,0,"Purchases","Builders Merchants","II","BACS","None",2020-12-15 00:00:00,"2020","10","0652/00196051","I01001","Stocks","2591","Purchases"
"GUILDFORD BOROUGH COUNCIL","Vehicle Maintenance","Fluid Systems Ltd T/A Pirtek (Guildford)","667001","07/01/2021",30010241,109.53,0,"Repair And Maintenance Of Vehicles","","II","BACS","None",2020-10-26 00:00:00,"2020","10","GUI2348","K5551","Fleet Workshops","C1002","Repair And Maintenance Of Vehicles"
"GUILDFORD BOROUGH COUNCIL","Vehicle Maintenance","Handsfree Group Limited","945250","26/01/2021",30010242,36,0,"Vehicle Operating Costs","Third Party Supplier","II","BACS","None",2021-01-01 00:00:00,"2020","10","2012654","K5551","Fleet Workshops","C1001","Vehicle Operating Costs"
"GUILDFORD BOROUGH COUNCIL","Tenant Selection","HML Independent Medical Advice Ltd","372840","26/01/2021",30010243,332.37,0,"Services","Other Medical Professionals","II","BACS","None",2020-12-31 00:00:00,"2020","10","GU/3753/20","M1131","Advice,Regs,Tenant Select(SHS)","D6004","Services"
"GUILDFORD BOROUGH COUNCIL","Resources Caseworker","Hays Specialist Recruitment Limited","156250","26/01/2021",30010244,653.38,0,"Agency","Other Recruitment Agencies And Service Providers","II","BACS","None",2020-12-31 00:00:00,"2020","10","1011023282","G3550","Resources Caseworker","A5191","Agency"
"GUILDFORD BOROUGH COUNCIL","Vehicle Maintenance","Southern Electromotive Distribution Ltd","760300","02/02/2021",30010245,29.35,0,"Repair And Maintenance Of Vehicles","Car And Van Servicing And Maintenance Providers","II","BACS","None",2021-01-04 00:00:00,"2020","10","403465","K5551","Fleet Workshops","C1002","Repair And Maintenance Of Vehicles"
"GUILDFORD BOROUGH COUNCIL","Lead Specialist - Finance","Hays Specialist Recruitment Limited","156250","26/01/2021",30010246,2075,0,"Agency","Other Recruitment Agencies And Service Providers","II","BACS","None",2020-12-31 00:00:00,"2020","10","1011008589","G3593","Procurement Services","A5191","Agency"
"GUILDFORD BOROUGH COUNCIL","Development Control","Vivid Resourcing Limited","856800","07/01/2021",30010247,2150.74,0,"Agency","Other Recruitment Agencies And Service Providers","II","BACS","None",2020-09-16 00:00:00,"2020","10","50351","D5100","Development Control - Fee Earn","A5191","Agency"
"GUILDFORD BOROUGH COUNCIL","Electoral Registration","Amazon Payments Europe S.C.A.","951330","07/01/2021",30010248,59.96,0,"Stationery & Paper","Other Retailers","II","BACS","None",2020-07-31 00:00:00,"2020","10","INV-GB-135859311-2020-585","F2511","Electoral Registration","D5007","Stationery & Paper"
"GUILDFORD BOROUGH COUNCIL","Vehicle Maintenance","Rivus Fleet Solutions Limited","985450","07/01/2021",30010249,55,0,"Vehicle Operating Costs","","II","BACS","None",2020-08-05 00:00:00,"2020","10","SIV200800000026","K5551","Fleet Workshops","C1001","Vehicle Operating Costs"
"GUILDFORD BOROUGH COUNCIL","Vehicle Maintenance","Rivus Fleet Solutions Limited","985450","07/01/2021",30010249,113,0,"Vehicle Operating Costs","","II","BACS","None",2020-08-05 00:00:00,"2020","10","SIV200800000026","K5551","Fleet Workshops","C1001","Vehicle Operating Costs"
"GUILDFORD BOROUGH COUNCIL","Planning Policy","Mrs AM Cummins","949810","07/01/2021",30010250,601.25,0,"Consultancy","Other Environmental Equipment And Service Providers","II","BACS","None",2020-10-28 00:00:00,"2020","10","2118","D5300","Policy","D6001","Consultancy"
"GUILDFORD BOROUGH COUNCIL","Off Street Parking","Addison Glass & Windscreens Ltd","459000","02/02/2021",30010251,327.66,0,"Asset Maintenance","Window And Door Installers","II","BACS","None",2021-01-04 00:00:00,"2020","10","1708796","B2257","Leapale Road Mscp","B1001","Asset Maintenance"
"GUILDFORD BOROUGH COUNCIL","Major Projects","Gleeds Advisory Ltd","1000172","26/01/2021",30010252,15000,0,"Consultancy","","II","BACS","None",2020-12-31 00:00:00,"2020","10","LNDM0037/001","F5530","Major Projects","D6001","Consultancy"
"GUILDFORD BOROUGH COUNCIL","Public Conveniences","CUBE INTERIORS & REFURBISHMENT LTD","825330","29/04/2021",30010253,-1564.59,0,"Asset Maintenance","Interior Designers","II","BACS","None",2019-03-19 00:00:00,"2020","10","1","K6500","Public Conveniences","B1001","Asset Maintenance"
"GUILDFORD BOROUGH COUNCIL","Development Control","Vivid Resourcing Limited","856800","14/01/2021",30010254,2261.51,0,"Agency","Other Recruitment Agencies And Service Providers","II","BACS","None",2020-12-22 00:00:00,"2020","10","53747","D5100","Development Control - Fee Earn","A5191","Agency"
"GUILDFORD BOROUGH COUNCIL","New Build","3R Finance Ltd","1000077","21/01/2021",30010255,227.9,0,"Consultants Fees","","II","BACS","None",2020-12-29 00:00:00,"2020","10","INV-41962","N30026","Banders Rise","1221","Consultants Fees"
"GUILDFORD BOROUGH COUNCIL","Affordable Hsg - Site Prep Etc","3R Finance Ltd","1000077","21/01/2021",30010255,148.6,0,"Consultants Fees","","II","BACS","None",2020-12-29 00:00:00,"2020","10","INV-41962","N55035","17 Wharf Lane","1221","Consultants Fees"
"GUILDFORD BOROUGH COUNCIL","New Build","3R Finance Ltd","1000077","21/01/2021",30010255,217.4,0,"Consultants Fees","","II","BACS","None",2020-12-29 00:00:00,"2020","10","INV-41962","N30028","Dunmore Garden Land","1221","Consultants Fees"
"GUILDFORD BOROUGH COUNCIL","Affordable Hsg - Site Prep Etc","3R Finance Ltd","1000077","21/01/2021",30010255,148.6,0,"Consultants Fees","","II","BACS","None",2020-12-29 00:00:00,"2020","10","INV-41962","N55034","27 Broomfield","1221","Consultants Fees"
"GUILDFORD BOROUGH COUNCIL","Other Short Term Creditors","Specialist Adaptive Services Ltd","803110","07/01/2021",30010257,8071,0,"Payments","Fixed Disability Equipment Suppliers","II","BACS","None",2020-12-17 00:00:00,"2020","10","Special Aaptive Services","L02088","Care & Repair Client Fund","2489","Payments"
"GUILDFORD BOROUGH COUNCIL","Responsive & Planned Maintenance","Des Bone Limited","169401","07/01/2021",30010258,120,0,"Cleaning Contractors","","II","BACS","None",2020-03-12 00:00:00,"2020","10","14830","M5113","Repairs-Responsive (BHS)","D6006","Cleaning Contractors"
"GUILDFORD BOROUGH COUNCIL","Off Street Parking","Concrete Repairs Ltd","722880","07/01/2021",30010259,90,0,"Asset Maintenance","Concrete Cutting, Drilling And Maintenance Contractors","II","BACS","None",2020-11-30 00:00:00,"2020","10","INV/016630","B2216","General Upkeep- Urban Car Pks","B1001","Asset Maintenance"
"GUILDFORD BOROUGH COUNCIL","Off Street Parking","Concrete Repairs Ltd","722880","07/01/2021",30010259,90,0,"Asset Maintenance","Concrete Cutting, Drilling And Maintenance Contractors","II","BACS","None",2020-11-30 00:00:00,"2020","10","INV/016630","B2216","General Upkeep- Urban Car Pks","B1001","Asset Maintenance"
"GUILDFORD BOROUGH COUNCIL","Off Street Parking","Concrete Repairs Ltd","722880","07/01/2021",30010259,90,0,"Asset Maintenance","Concrete Cutting, Drilling And Maintenance Contractors","II","BACS","None",2020-11-30 00:00:00,"2020","10","INV/016630","B2216","General Upkeep- Urban Car Pks","B1001","Asset Maintenance"
"GUILDFORD BOROUGH COUNCIL","Off Street Parking","Concrete Repairs Ltd","722880","07/01/2021",30010259,90,0,"Asset Maintenance","Concrete Cutting, Drilling And Maintenance Contractors","II","BACS","None",2020-11-30 00:00:00,"2020","10","INV/016630","B2216","General Upkeep- Urban Car Pks","B1001","Asset Maintenance"
"GUILDFORD BOROUGH COUNCIL","Off Street Parking","Concrete Repairs Ltd","722880","07/01/2021",30010259,90,0,"Asset Maintenance","Concrete Cutting, Drilling And Maintenance Contractors","II","BACS","None",2020-11-30 00:00:00,"2020","10","INV/016630","B2216","General Upkeep- Urban Car Pks","B1001","Asset Maintenance"
"GUILDFORD BOROUGH COUNCIL","Off Street Parking","Concrete Repairs Ltd","722880","07/01/2021",30010259,90,0,"Asset Maintenance","Concrete Cutting, Drilling And Maintenance Contractors","II","BACS","None",2020-11-30 00:00:00,"2020","10","INV/016630","B2216","General Upkeep- Urban Car Pks","B1001","Asset Maintenance"
"GUILDFORD BOROUGH COUNCIL","Off Street Parking","Concrete Repairs Ltd","722880","07/01/2021",30010259,90,0,"Asset Maintenance","Concrete Cutting, Drilling And Maintenance Contractors","II","BACS","None",2020-11-30 00:00:00,"2020","10","INV/016630","B2216","General Upkeep- Urban Car Pks","B1001","Asset Maintenance"
"GUILDFORD BOROUGH COUNCIL","Doors and Windows","Ebrit Services Ltd (CIS)","878300","07/01/2021",30010260,120,0,"Miscellaneous Expenses","Asbestos Removal Service Providers","II","BACS","None",2020-10-28 00:00:00,"2020","10","215561","N45071","Replacement of external doors 2020-21","1444","Miscellaneous Expenses"
"GUILDFORD BOROUGH COUNCIL","Doors and Windows","Ebrit Services Ltd (CIS)","878300","07/01/2021",30010261,120,0,"Miscellaneous Expenses","Asbestos Removal Service Providers","II","BACS","None",2020-10-28 00:00:00,"2020","10","215562","N45071","Replacement of external doors 2020-21","1444","Miscellaneous Expenses"
"GUILDFORD BOROUGH COUNCIL","Doors and Windows","Ebrit Services Ltd (CIS)","878300","07/01/2021",30010262,120,0,"Miscellaneous Expenses","Asbestos Removal Service Providers","II","BACS","None",2020-10-28 00:00:00,"2020","10","215563","N45071","Replacement of external doors 2020-21","1444","Miscellaneous Expenses"
"GUILDFORD BOROUGH COUNCIL","Doors and Windows","Ebrit Services Ltd (CIS)","878300","07/01/2021",30010263,120,0,"Miscellaneous Expenses","Asbestos Removal Service Providers","II","BACS","None",2020-10-28 00:00:00,"2020","10","215564","N45071","Replacement of external doors 2020-21","1444","Miscellaneous Expenses"
"GUILDFORD BOROUGH COUNCIL","Doors and Windows","Ebrit Services Ltd (CIS)","878300","07/01/2021",30010264,120,0,"Miscellaneous Expenses","Asbestos Removal Service Providers","II","BACS","None",2020-10-28 00:00:00,"2020","10","215565","N45071","Replacement of external doors 2020-21","1444","Miscellaneous Expenses"
"GUILDFORD BOROUGH COUNCIL","Doors and Windows","Ebrit Services Ltd (CIS)","878300","07/01/2021",30010265,120,0,"Miscellaneous Expenses","Asbestos Removal Service Providers","II","BACS","None",2020-10-28 00:00:00,"2020","10","215566","N45071","Replacement of external doors 2020-21","1444","Miscellaneous Expenses"
"GUILDFORD BOROUGH COUNCIL","Doors and Windows","Ebrit Services Ltd (CIS)","878300","07/01/2021",30010266,120,0,"Miscellaneous Expenses","Asbestos Removal Service Providers","II","BACS","None",2020-10-28 00:00:00,"2020","10","215567","N45071","Replacement of external doors 2020-21","1444","Miscellaneous Expenses"
"GUILDFORD BOROUGH COUNCIL","Doors and Windows","Ebrit Services Ltd (CIS)","878300","07/01/2021",30010267,120,0,"Miscellaneous Expenses","Asbestos Removal Service Providers","II","BACS","None",2020-10-28 00:00:00,"2020","10","215568","N45071","Replacement of external doors 2020-21","1444","Miscellaneous Expenses"
"GUILDFORD BOROUGH COUNCIL","Doors and Windows","Ebrit Services Ltd (CIS)","878300","07/01/2021",30010268,120,0,"Miscellaneous Expenses","Asbestos Removal Service Providers","II","BACS","None",2020-10-28 00:00:00,"2020","10","215569","N45071","Replacement of external doors 2020-21","1444","Miscellaneous Expenses"
"GUILDFORD BOROUGH COUNCIL","Doors and Windows","Ebrit Services Ltd (CIS)","878300","07/01/2021",30010269,120,0,"Miscellaneous Expenses","Asbestos Removal Service Providers","II","BACS","None",2020-10-28 00:00:00,"2020","10","215570","N45071","Replacement of external doors 2020-21","1444","Miscellaneous Expenses"
"GUILDFORD BOROUGH COUNCIL","Doors and Windows","Ebrit Services Ltd (CIS)","878300","07/01/2021",30010270,120,0,"Miscellaneous Expenses","Asbestos Removal Service Providers","II","BACS","None",2020-10-28 00:00:00,"2020","10","215571","N45071","Replacement of external doors 2020-21","1444","Miscellaneous Expenses"
"GUILDFORD BOROUGH COUNCIL","Doors and Windows","Ebrit Services Ltd (CIS)","878300","07/01/2021",30010271,120,0,"Miscellaneous Expenses","Asbestos Removal Service Providers","II","BACS","None",2020-10-28 00:00:00,"2020","10","215572","N45071","Replacement of external doors 2020-21","1444","Miscellaneous Expenses"
"GUILDFORD BOROUGH COUNCIL","Doors and Windows","Ebrit Services Ltd (CIS)","878300","07/01/2021",30010272,120,0,"Miscellaneous Expenses","Asbestos Removal Service Providers","II","BACS","None",2020-10-28 00:00:00,"2020","10","215573","N45071","Replacement of external doors 2020-21","1444","Miscellaneous Expenses"
"GUILDFORD BOROUGH COUNCIL","Doors and Windows","Ebrit Services Ltd (CIS)","878300","07/01/2021",30010273,120,0,"Miscellaneous Expenses","Asbestos Removal Service Providers","II","BACS","None",2020-10-28 00:00:00,"2020","10","215574","N45071","Replacement of external doors 2020-21","1444","Miscellaneous Expenses"
"GUILDFORD BOROUGH COUNCIL","Doors and Windows","Ebrit Services Ltd (CIS)","878300","07/01/2021",30010274,120,0,"Miscellaneous Expenses","Asbestos Removal Service Providers","II","BACS","None",2020-10-28 00:00:00,"2020","10","215575","N45071","Replacement of external doors 2020-21","1444","Miscellaneous Expenses"
"GUILDFORD BOROUGH COUNCIL","Responsive & Planned Maintenance","K&T Heating Services Ltd (CIS)","930000","07/01/2021",30010275,9927.93,0,"Asset Maintenance","Plumbing, Heating And Ac (Hvac) Contractors","II","BACS","None",2010-10-30 00:00:00,"2020","10","SI39632","M5114","Repairs-Cyclical (BHS)","B1001","Asset Maintenance"
"GUILDFORD BOROUGH COUNCIL","Responsive & Planned Maintenance","Cranleigh Aerials Limited","698990","07/01/2021",30010276,75,0,"Building Expenses","Audio And Visual Equipment Suppliers","II","BACS","None",2020-03-18 00:00:00,"2020","10","704991","M5113","Repairs-Responsive (BHS)","B1002","Building Expenses"
"GUILDFORD BOROUGH COUNCIL","Off Street Parking","Cranleigh Aerials Limited","698990","07/01/2021",30010277,31,0,"Asset Maintenance","Audio And Visual Equipment Suppliers","II","BACS","None",2020-10-21 00:00:00,"2020","10","705168","B2216","General Upkeep- Urban Car Pks","B1001","Asset Maintenance"
"GUILDFORD BOROUGH COUNCIL","Off Street Parking","Cranleigh Aerials Limited","698990","07/01/2021",30010277,125,0,"Asset Maintenance","Audio And Visual Equipment Suppliers","II","BACS","None",2020-10-21 00:00:00,"2020","10","705168","B2216","General Upkeep- Urban Car Pks","B1001","Asset Maintenance"
"GUILDFORD BOROUGH COUNCIL","Responsive & Planned Maintenance","Paul Phelan","261400","07/01/2021",30010278,59.5,0,"Asset Maintenance","Sewerage And Drainage Service Providers","II","BACS","None",2020-08-28 00:00:00,"2020","10","82267","M5106","Repairs-Shelt-Responsive (BHS)","B1001","Asset Maintenance"
"GUILDFORD BOROUGH COUNCIL","Responsive & Planned Maintenance","Paul Phelan","261400","07/01/2021",30010279,64.5,0,"Asset Maintenance","Sewerage And Drainage Service Providers","II","BACS","None",2020-11-27 00:00:00,"2020","10","82671","M5113","Repairs-Responsive (BHS)","B1001","Asset Maintenance"
"GUILDFORD BOROUGH COUNCIL","Responsive & Planned Maintenance","Paul Phelan","261400","07/01/2021",30010280,59.5,0,"Asset Maintenance","Sewerage And Drainage Service Providers","II","BACS","None",2020-11-30 00:00:00,"2020","10","82679","M5113","Repairs-Responsive (BHS)","B1001","Asset Maintenance"
"GUILDFORD BOROUGH COUNCIL","Responsive & Planned Maintenance","Paul Phelan","261400","07/01/2021",30010281,76,0,"Asset Maintenance","Sewerage And Drainage Service Providers","II","BACS","None",2020-11-30 00:00:00,"2020","10","82680","M5113","Repairs-Responsive (BHS)","B1001","Asset Maintenance"
"GUILDFORD BOROUGH COUNCIL","Responsive & Planned Maintenance","Paul Phelan","261400","07/01/2021",30010282,59.5,0,"Asset Maintenance","Sewerage And Drainage Service Providers","II","BACS","None",2020-11-30 00:00:00,"2020","10","82681","M5113","Repairs-Responsive (BHS)","B1001","Asset Maintenance"
"GUILDFORD BOROUGH COUNCIL","Responsive & Planned Maintenance","Paul Phelan","261400","07/01/2021",30010283,64.5,0,"Asset Maintenance","Sewerage And Drainage Service Providers","II","BACS","None",2020-11-30 00:00:00,"2020","10","82690","M5113","Repairs-Responsive (BHS)","B1001","Asset Maintenance"
"GUILDFORD BOROUGH COUNCIL","Responsive & Planned Maintenance","Paul Phelan","261400","07/01/2021",30010284,76,0,"Asset Maintenance","Sewerage And Drainage Service Providers","II","BACS","None",2020-11-30 00:00:00,"2020","10","82691","M5113","Repairs-Responsive (BHS)","B1001","Asset Maintenance"
"GUILDFORD BOROUGH COUNCIL","Responsive & Planned Maintenance","Paul Phelan","261400","07/01/2021",30010285,76,0,"Asset Maintenance","Sewerage And Drainage Service Providers","II","BACS","None",2020-11-30 00:00:00,"2020","10","82693","M5113","Repairs-Responsive (BHS)","B1001","Asset Maintenance"
"GUILDFORD BOROUGH COUNCIL","Responsive & Planned Maintenance","Paul Phelan","261400","07/01/2021",30010286,63.5,0,"Asset Maintenance","Sewerage And Drainage Service Providers","II","BACS","None",2020-11-30 00:00:00,"2020","10","82694","M5113","Repairs-Responsive (BHS)","B1001","Asset Maintenance"
"GUILDFORD BOROUGH COUNCIL","Flats Communal Services","Paul Phelan","261400","07/01/2021",30010287,59.5,0,"Asset Maintenance","Sewerage And Drainage Service Providers","II","BACS","None",2020-02-12 00:00:00,"2020","10","82698","M2646","Bishops Court 1-40 (40)","B1001","Asset Maintenance"
"GUILDFORD BOROUGH COUNCIL","Community Development","Community Foundation For Surrey","774460","02/02/2021",30010288,8021.5,0,"Grants And Subscriptions","Community Partnerships","II","BACS","None",2021-01-06 00:00:00,"2020","10","Guildford Philanthropy - Match Funding","F1127","Community Development","D9001","Grants And Subscriptions"
"GUILDFORD BOROUGH COUNCIL","Energy Holding Account (Service)","Npower Ltd (PO Box 8201)","956130","07/01/2021",30010291,164.47,0,"Utilities","Mains Electricity Suppliers","II","BACS","None",2020-11-12 00:00:00,"2020","10","LGWJTB6R","G1141","Energy Services Holding Account","B2001","Utilities"
"GUILDFORD BOROUGH COUNCIL","Energy Holding Account (Service)","Npower Ltd (PO Box 8201)","956130","07/01/2021",30010291,166.49,0,"Utilities","Mains Electricity Suppliers","II","BACS","None",2020-11-12 00:00:00,"2020","10","LGWJTB6R","G1141","Energy Services Holding Account","B2001","Utilities"
"GUILDFORD BOROUGH COUNCIL","Energy Holding Account (Service)","Npower Ltd (PO Box 8201)","956130","12/01/2021",30010292,450.7,0,"Utilities","Mains Electricity Suppliers","II","BACS","None",2020-12-02 00:00:00,"2020","10","LGWJ732N","G1141","Energy Services Holding Account","B2001","Utilities"
"GUILDFORD BOROUGH COUNCIL","Energy Holding Account (Service)","Npower Ltd (PO Box 8201)","956130","12/01/2021",30010292,2812.82,0,"Utilities","Mains Electricity Suppliers","II","BACS","None",2020-12-02 00:00:00,"2020","10","LGWJ732N","G1141","Energy Services Holding Account","B2001","Utilities"
"GUILDFORD BOROUGH COUNCIL","Tenant Services","The Public Trustee","178720","07/01/2021",30010293,40,0,"Services","Other Legal Service Providers","II","BACS","None",2021-01-05 00:00:00,"2020","10","Public Trustee - Keith William Parry","M1151","Tenants Services (BHS)","D6004","Services"
"GUILDFORD BOROUGH COUNCIL","Energy Holding Account (Service)","Npower Ltd (PO Box 8201)","956130","12/01/2021",30010294,5005.91,0,"Utilities","Mains Electricity Suppliers","II","BACS","None",2020-12-01 00:00:00,"2020","10","LGWJ74CN","G1141","Energy Services Holding Account","B2001","Utilities"
"GUILDFORD BOROUGH COUNCIL","Energy Holding Account (Service)","Water Plus Limited","988920","07/01/2021",30010295,1248.61,0,"Utilities","","II","BACS","None",2020-12-04 00:00:00,"2020","10","INVO4382893","G1141","Energy Services Holding Account","B2001","Utilities"
"GUILDFORD BOROUGH COUNCIL","Lead Specialist - Legal","Thomson Reuters","673650","07/01/2021",30010296,96,0,"Publications","","II","BACS","None",2020-11-26 00:00:00,"2020","10","6138444285","G4525","Legal Services","D5001","Publications"
"GUILDFORD BOROUGH COUNCIL","Energy Holding Account (Service)","Npower Ltd (PO Box 8201)","956130","26/01/2021",30010297,1757.24,0,"Utilities","Mains Electricity Suppliers","II","BACS","None",2020-11-12 00:00:00,"2020","10","LGWJTBWB","G1141","Energy Services Holding Account","B2001","Utilities"
"GUILDFORD BOROUGH COUNCIL","Planning Policy","Cornerstone Barristers","442390","07/01/2021",30010298,975,0,"Services","Barristers","II","BACS","None",2020-12-07 00:00:00,"2020","10","INVJF46-1612","D5400","Local Plan","D6004","Services"
"GUILDFORD BOROUGH COUNCIL","Environmental Works","The Heritage Fruit Tree Company","1000092","12/01/2021",30010299,53.91,0,"Materials","","II","BACS","None",2020-12-04 00:00:00,"2020","10","535","M4615","Env Wks To Estate (BHS)","D2003","Materials"
"GUILDFORD BOROUGH COUNCIL","Countryside and Parks Services","The Heritage Fruit Tree Company","1000092","12/01/2021",30010299,29.95,0,"Materials","","II","BACS","None",2020-12-04 00:00:00,"2020","10","535","A1300","Trees And Countryside","D2003","Materials"
"GUILDFORD BOROUGH COUNCIL","Parks Countryside Management","The Heritage Fruit Tree Company","1000092","12/01/2021",30010299,29.95,0,"Materials","","II","BACS","None",2020-12-04 00:00:00,"2020","10","535","A1300","Trees And Countryside","D2003","Materials"
"GUILDFORD BOROUGH COUNCIL","Countryside and Parks Services","The Heritage Fruit Tree Company","1000092","12/01/2021",30010299,215.64,0,"Materials","","II","BACS","None",2020-12-04 00:00:00,"2020","10","535","A1300","Trees And Countryside","D2003","Materials"
"GUILDFORD BOROUGH COUNCIL","Parks Countryside Management","The Heritage Fruit Tree Company","1000092","12/01/2021",30010299,215.64,0,"Materials","","II","BACS","None",2020-12-04 00:00:00,"2020","10","535","A1300","Trees And Countryside","D2003","Materials"
"GUILDFORD BOROUGH COUNCIL","Countryside and Parks Services","The Heritage Fruit Tree Company","1000092","12/01/2021",30010299,29.95,0,"Postage","","II","BACS","None",2020-12-04 00:00:00,"2020","10","535","A1300","Trees And Countryside","D5003","Postage"
"GUILDFORD BOROUGH COUNCIL","Parks Countryside Management","The Heritage Fruit Tree Company","1000092","12/01/2021",30010299,29.95,0,"Postage","","II","BACS","None",2020-12-04 00:00:00,"2020","10","535","A1300","Trees And Countryside","D5003","Postage"
"GUILDFORD BOROUGH COUNCIL","Day Services","Storage On Site Ltd","987880","02/02/2021",30010300,39.8,0,"Miscellaneous Expenses","","II","BACS","None",2021-01-04 00:00:00,"2020","10","475506","C8100","Community Hubs","1444","Miscellaneous Expenses"
"GUILDFORD BOROUGH COUNCIL","Vehicle Maintenance","Go Plant Fleet Services Ltd","979090","26/01/2021",30010301,4052.01,0,"Vehicle Operating Costs","Third Party Supplier","II","BACS","None",2020-12-31 00:00:00,"2020","10","INV00017140","K5551","Fleet Workshops","C1001","Vehicle Operating Costs"
"GUILDFORD BOROUGH COUNCIL","Building Maintenance","AMG Electrical - Closed see account 1000451","268000","07/01/2021",30010302,2647.22,0,"Materials","Electricians","II","BACS","None",2020-12-22 00:00:00,"2020","10","2012-53","K1515","Building Maintenance","D2003","Materials"
"GUILDFORD BOROUGH COUNCIL","Building Maintenance","AMG Electrical - Closed see account 1000451","268000","07/01/2021",30010302,2078.1,0,"Materials","Electricians","II","BACS","None",2020-12-22 00:00:00,"2020","10","2012-53","K1515","Building Maintenance","D2003","Materials"
"GUILDFORD BOROUGH COUNCIL","Homelessness Support","Croydon Court Ltd","996150","26/01/2021",30010303,210,0,"Emergency Accomodation","","II","BACS","None",2020-12-31 00:00:00,"2020","10","C7283","C3311","Homelessness","D8009","Emergency Accomodation"
"GUILDFORD BOROUGH COUNCIL","Other Property","Water2business","976470","26/01/2021",30010305,92.97,0,"Utilities","","II","BACS","None",2020-12-31 00:00:00,"2020","10","900521790","B6550","Multiplex Cinema, Bedford Road","B2001","Utilities"
"GUILDFORD BOROUGH COUNCIL","Vehicle Maintenance","Fluid Systems Ltd T/A Pirtek (Guildford)","667001","14/01/2021",30010306,84.4,0,"Repair And Maintenance Of Vehicles","","II","BACS","None",2020-09-09 00:00:00,"2020","10","GUI1795","K5551","Fleet Workshops","C1002","Repair And Maintenance Of Vehicles"
"GUILDFORD BOROUGH COUNCIL","Planning Policy","Surrey Wildlife Trust Ltd (Woking)","129780","02/02/2021",30010307,47.83,0,"Staff Costs","Charities And Voluntary Organisations","II","BACS","None",2021-01-04 00:00:00,"2020","10","1570211641","D5300","Policy","A7100","Staff Costs"
"GUILDFORD BOROUGH COUNCIL","Vehicle Maintenance","Fluid Systems Ltd T/A Pirtek (Guildford)","667001","07/01/2021",30010308,119.62,0,"Repair And Maintenance Of Vehicles","","II","BACS","None",2020-09-16 00:00:00,"2020","10","GUI1901","K5551","Fleet Workshops","C1002","Repair And Maintenance Of Vehicles"
"GUILDFORD BOROUGH COUNCIL","Building Control","JJ Surveying Ltd","877460","02/02/2021",30010309,389.05,0,"Consultancy","Surveyors And Inspectors","II","BACS","None",2021-01-05 00:00:00,"2020","10","1236","D5700","Building Control - Fee","D6001","Consultancy"
"GUILDFORD BOROUGH COUNCIL","Miscellaneous Expenses","Raynor Foods Ltd","920270","07/01/2021",30010310,111.51,0,"Equipment","Other Food Suppliers","II","BACS","None",2020-09-11 00:00:00,"2020","10","279774","F7539","COVID-19","D2001","Equipment"
"GUILDFORD BOROUGH COUNCIL","Tenant Services","Scottishpower (Glasgow)","534210","07/01/2021",30010311,33.68,0,"Utilities","Mains Electricity Suppliers","II","BACS","None",2020-09-25 00:00:00,"2020","10","16095096825JULY-SEPT20","M1151","Tenants Services (BHS)","B2001","Utilities"
"GUILDFORD BOROUGH COUNCIL","Tenant Selection","Language Line Limited","292900","26/01/2021",30010312,354.8,0,"Expenses","Translation And Interpretation Service Providers","II","BACS","None",2020-12-31 00:00:00,"2020","10","0405569-2020-12","M1131","Advice,Regs,Tenant Select(SHS)","D8004","Expenses"
"GUILDFORD BOROUGH COUNCIL","Crematorium","Ant Structures Ltd","933760","26/01/2021",30010313,1652,0,"Contractor Payments","Scaffolders","II","BACS","None",2020-12-31 00:00:00,"2020","10","3896","P05012","Broadwater Cottage","1233","Contractor Payments"
"GUILDFORD BOROUGH COUNCIL","Countryside and Parks Services","Turfleet Hire","1000024","02/02/2021",30010314,1125,0,"Grounds Maintenance","","II","BACS","None",2021-01-05 00:00:00,"2020","10","413749","A1300","Trees And Countryside","B6001","Grounds Maintenance"
"GUILDFORD BOROUGH COUNCIL","Parks Countryside Management","Turfleet Hire","1000024","02/02/2021",30010314,1125,0,"Grounds Maintenance","","II","BACS","None",2021-01-05 00:00:00,"2020","10","413749","A1300","Trees And Countryside","B6001","Grounds Maintenance"
"GUILDFORD BOROUGH COUNCIL","Car Leasing Holding Code (Service)","Car Hire (Day Of Swansea) Ltd","856090","12/01/2021",30010315,-338.98,0,"Car Leasing","Car, Van And Truck Hire Companies","II","BACS","None",2020-09-17 00:00:00,"2020","10","CR00013625","G1131","Car Leasing Holding Code","C3002","Car Leasing"
"GUILDFORD BOROUGH COUNCIL","Taxi Licensing","HML Independent Medical Advice Ltd","372840","26/01/2021",30010316,250,0,"Consultancy","Other Medical Professionals","II","BACS","None",2020-12-31 00:00:00,"2020","10","GUDL/3768/20","H1104","Hackney Carriage Private Hire Drivers","D6001","Consultancy"
"GUILDFORD BOROUGH COUNCIL","Countryside and Parks Services","Ant Structures Ltd","933760","26/01/2021",30010317,1080,0,"Asset Maintenance","Scaffolders","II","BACS","None",2020-12-31 00:00:00,"2020","10","3887","A1600","Stoke Park Depot","B1001","Asset Maintenance"
"GUILDFORD BOROUGH COUNCIL","Vehicle Maintenance","Manbat Ltd","252180","02/02/2021",30010318,107,0,"Repair And Maintenance Of Vehicles","Third Party Supplier","II","BACS","None",2021-01-05 00:00:00,"2020","10","21101526","K5551","Fleet Workshops","C1002","Repair And Maintenance Of Vehicles"
"GUILDFORD BOROUGH COUNCIL","Private Sector Housing Maintenance","Royal Mail Group Ltd (Chesterfield)","878030","14/01/2021",30010319,10.19,0,"Postage","","II","BACS","None",2020-12-22 00:00:00,"2020","10","9062150320","C5132","Care And Repair (Detr)","D5003","Postage"
"GUILDFORD BOROUGH COUNCIL","Countryside and Parks Services","East Horsley Village Hall","181700","02/02/2021",30010320,176.16,0,"Utilities","Community Centres","II","BACS","None",2021-01-05 00:00:00,"2020","10","144","A1295","East Horsley Bowls Ground And Pavilion","B2001","Utilities"
"GUILDFORD BOROUGH COUNCIL","Homelessness Support","London Wembley Ltd","1000170","26/01/2021",30010321,1240,0,"Emergency Accomodation","","II","BACS","None",2020-12-31 00:00:00,"2020","10","E4710","C3311","Homelessness","D8009","Emergency Accomodation"
"GUILDFORD BOROUGH COUNCIL","Private Sector Housing Maintenance","Royal Mail Group Ltd (Chesterfield)","878030","12/01/2021",30010322,6.04,0,"Postage","","II","BACS","None",2020-09-01 00:00:00,"2020","10","9061477793","C5132","Care And Repair (Detr)","D5003","Postage"
"GUILDFORD BOROUGH COUNCIL","Tourist Information Centre","Propeg Systems Limited","581750","07/01/2021",30010323,1595,0,"ICT Support & Maintenance","Computer Systems Integrators","II","BACS","None",2020-10-01 00:00:00,"2020","10","GUI2022","F5541","Tourist Information Centre","D7003","ICT Support & Maintenance"
"GUILDFORD BOROUGH COUNCIL","Crematorium","Alresford Marquee Hire Ltd","940750","02/02/2021",30010325,680,0,"Consultants Fees","Marquee Suppliers","II","BACS","None",2021-01-05 00:00:00,"2020","10","4059","P05009","Refurbish/Rebuild Crematorium","1221","Consultants Fees"
"GUILDFORD BOROUGH COUNCIL","Crematorium","Alresford Marquee Hire Ltd","940750","02/02/2021",30010325,680,0,"Consultants Fees","Marquee Suppliers","II","BACS","None",2021-01-05 00:00:00,"2020","10","4059","P05009","Refurbish/Rebuild Crematorium","1221","Consultants Fees"
"GUILDFORD BOROUGH COUNCIL","Crematorium","Alresford Marquee Hire Ltd","940750","02/02/2021",30010325,680,0,"Consultants Fees","Marquee Suppliers","II","BACS","None",2021-01-05 00:00:00,"2020","10","4059","P05009","Refurbish/Rebuild Crematorium","1221","Consultants Fees"
"GUILDFORD BOROUGH COUNCIL","Development Control","Arboricultural Association","616000","07/01/2021",30010326,133.92,0,"Staff Costs","Third Party Supplier","II","BACS","None",2020-12-02 00:00:00,"2020","10","46974","D5100","Development Control - Fee Earn","A7100","Staff Costs"
"GUILDFORD BOROUGH COUNCIL","Planning Policy","Royal Mail Group Ltd (Chesterfield)","878030","12/01/2021",30010327,1.95,0,"Postage","","II","BACS","None",2020-09-08 00:00:00,"2020","10","9061519312","D5300","Policy","D5003","Postage"
"GUILDFORD BOROUGH COUNCIL","Inventories","Edmundson Electrical Limited","183200","19/01/2021",30010328,17184.88,0,"Purchases","Electrical Wiring And Parts Suppliers","II","BACS","None",2020-12-24 00:00:00,"2020","10","201-185713","I01001","Stocks","2591","Purchases"
"GUILDFORD BOROUGH COUNCIL","Inventories","Edmundson Electrical Limited","183200","19/01/2021",30010328,94.4,0,"Purchases","Electrical Wiring And Parts Suppliers","II","BACS","None",2020-12-24 00:00:00,"2020","10","201-185713","I01001","Stocks","2591","Purchases"
"GUILDFORD BOROUGH COUNCIL","Tenant Services","Scottishpower (Glasgow)","534210","07/01/2021",30010329,4.74,0,"Utilities","Mains Electricity Suppliers","II","BACS","None",2020-09-25 00:00:00,"2020","10","16091084068SEPT20","M1151","Tenants Services (BHS)","B2001","Utilities"
"GUILDFORD BOROUGH COUNCIL","Housing Surveying","The Chartered Institute Of Building","128100","07/01/2021",30010330,294,0,"Staff Costs","Other Vehicle Equipment Providers","II","BACS","None",2020-12-01 00:00:00,"2020","10","198890","G6525","Housing Surveying Services","A7100","Staff Costs"
"GUILDFORD BOROUGH COUNCIL","Tenant Services","Royal Mail Group Ltd (Chesterfield)","878030","07/01/2021",30010331,26.08,0,"Postage","","II","BACS","None",2020-09-09 00:00:00,"2020","10","9061528367","M1151","Tenants Services (BHS)","D5003","Postage"
"GUILDFORD BOROUGH COUNCIL","Income Collection","Royal Mail Group Ltd (Chesterfield)","878030","07/01/2021",30010331,26.08,0,"Postage","","II","BACS","None",2020-09-09 00:00:00,"2020","10","9061528367","M1121","Income Collection (BHS)","D5003","Postage"
"GUILDFORD BOROUGH COUNCIL","Responsive & Planned Maintenance","Royal Mail Group Ltd (Chesterfield)","878030","07/01/2021",30010331,26.07,0,"Postage","","II","BACS","None",2020-09-09 00:00:00,"2020","10","9061528367","M5111","Repairs-Admin (BHS)","D5003","Postage"
"GUILDFORD BOROUGH COUNCIL","Other Short Term Creditors","My Staff Shop Limited","971670","07/01/2021",30010332,3050,0,"Payments","Other Business Service Providers","II","BACS","None",2021-01-05 00:00:00,"2020","10","5416","L08013","Sals Dedns - Childcare Voucher","2489","Payments"
"GUILDFORD BOROUGH COUNCIL","Other Property","JC Electrics (Guildford) Ltd","748360","07/01/2021",30010333,787.2,0,"Asset Maintenance","Electrical Wiring And Parts Suppliers","II","BACS","None",2020-01-12 00:00:00,"2020","10","TO448","B6100","Other Property Admin","B1001","Asset Maintenance"
"GUILDFORD BOROUGH COUNCIL","Responsive & Planned Maintenance","Pirbright Electrical Contractors Ltd","151880","07/01/2021",30010334,423,0,"Asset Maintenance","Electricians","II","BACS","None",2020-09-21 00:00:00,"2020","10","43895","M5113","Repairs-Responsive (BHS)","B1001","Asset Maintenance"
"GUILDFORD BOROUGH COUNCIL","Flats Communal Services","Pirbright Electrical Contractors Ltd","151880","07/01/2021",30010335,113,0,"Asset Maintenance","Electricians","II","BACS","None",2020-09-24 00:00:00,"2020","10","43909","M2748","Gt Goodwin Dr 159-173(8)","B1001","Asset Maintenance"
"GUILDFORD BOROUGH COUNCIL","Flats Communal Services","Pirbright Electrical Contractors Ltd","151880","07/01/2021",30010336,78,0,"Asset Maintenance","Electricians","II","BACS","None",2020-09-24 00:00:00,"2020","10","43910","M2762","Homestall 37-51   (8)","B1001","Asset Maintenance"
"GUILDFORD BOROUGH COUNCIL","Flats Communal Services","Pirbright Electrical Contractors Ltd","151880","07/01/2021",30010337,78,0,"Asset Maintenance","Electricians","II","BACS","None",2020-09-24 00:00:00,"2020","10","43911","M2628","Bargate Court 1-16 (16)","B1001","Asset Maintenance"
"GUILDFORD BOROUGH COUNCIL","Flats Communal Services","Pirbright Electrical Contractors Ltd","151880","07/01/2021",30010338,101,0,"Asset Maintenance","Electricians","II","BACS","None",2020-09-28 00:00:00,"2020","10","43912","M2779","Little Platt 22-36  (8)","B1001","Asset Maintenance"
"GUILDFORD BOROUGH COUNCIL","Off Street Parking","Otis Limited","629800","07/01/2021",30010339,199,0,"Asset Maintenance","Lift Contractors","II","BACS","None",2020-09-15 00:00:00,"2020","10","RTS11553386","B2219","Bedford Road Mscp","B1001","Asset Maintenance"
"GUILDFORD BOROUGH COUNCIL","Responsive & Planned Maintenance","White Barnes & Co Ltd","861100","07/01/2021",30010340,375,0,"Asset Maintenance","Floor Covering Suppliers","II","BACS","None",2020-10-20 00:00:00,"2020","10","15166","M5113","Repairs-Responsive (BHS)","B1001","Asset Maintenance"
"GUILDFORD BOROUGH COUNCIL","Off Street Parking","Concrete Repairs Ltd","722880","07/01/2021",30010341,90,0,"Asset Maintenance","Concrete Cutting, Drilling And Maintenance Contractors","II","BACS","None",2020-01-10 00:00:00,"2020","10","INV/016753","B2216","General Upkeep- Urban Car Pks","B1001","Asset Maintenance"
"GUILDFORD BOROUGH COUNCIL","Off Street Parking","Concrete Repairs Ltd","722880","07/01/2021",30010341,90,0,"Asset Maintenance","Concrete Cutting, Drilling And Maintenance Contractors","II","BACS","None",2020-01-10 00:00:00,"2020","10","INV/016753","B2216","General Upkeep- Urban Car Pks","B1001","Asset Maintenance"
"GUILDFORD BOROUGH COUNCIL","Off Street Parking","Concrete Repairs Ltd","722880","07/01/2021",30010341,90,0,"Asset Maintenance","Concrete Cutting, Drilling And Maintenance Contractors","II","BACS","None",2020-01-10 00:00:00,"2020","10","INV/016753","B2216","General Upkeep- Urban Car Pks","B1001","Asset Maintenance"
"GUILDFORD BOROUGH COUNCIL","Off Street Parking","Concrete Repairs Ltd","722880","07/01/2021",30010341,90,0,"Asset Maintenance","Concrete Cutting, Drilling And Maintenance Contractors","II","BACS","None",2020-01-10 00:00:00,"2020","10","INV/016753","B2216","General Upkeep- Urban Car Pks","B1001","Asset Maintenance"
"GUILDFORD BOROUGH COUNCIL","Off Street Parking","Concrete Repairs Ltd","722880","07/01/2021",30010341,90,0,"Asset Maintenance","Concrete Cutting, Drilling And Maintenance Contractors","II","BACS","None",2020-01-10 00:00:00,"2020","10","INV/016753","B2216","General Upkeep- Urban Car Pks","B1001","Asset Maintenance"
"GUILDFORD BOROUGH COUNCIL","Off Street Parking","Concrete Repairs Ltd","722880","07/01/2021",30010341,90,0,"Asset Maintenance","Concrete Cutting, Drilling And Maintenance Contractors","II","BACS","None",2020-01-10 00:00:00,"2020","10","INV/016753","B2216","General Upkeep- Urban Car Pks","B1001","Asset Maintenance"
"GUILDFORD BOROUGH COUNCIL","Off Street Parking","Concrete Repairs Ltd","722880","07/01/2021",30010341,90,0,"Asset Maintenance","Concrete Cutting, Drilling And Maintenance Contractors","II","BACS","None",2020-01-10 00:00:00,"2020","10","INV/016753","B2216","General Upkeep- Urban Car Pks","B1001","Asset Maintenance"
"GUILDFORD BOROUGH COUNCIL","Crematorium","Concrete Repairs Ltd","722880","07/01/2021",30010342,142.48,0,"Building Expenses","Concrete Cutting, Drilling And Maintenance Contractors","II","BACS","None",2020-10-31 00:00:00,"2020","10","INV/016756","A1500","Crematorium","B1002","Building Expenses"
"GUILDFORD BOROUGH COUNCIL","Guildford House","Concrete Repairs Ltd","722880","07/01/2021",30010342,47.49,0,"Building Expenses","Concrete Cutting, Drilling And Maintenance Contractors","II","BACS","None",2020-10-31 00:00:00,"2020","10","INV/016756","A4511","Guildford House Administration","B1002","Building Expenses"
"GUILDFORD BOROUGH COUNCIL","Guildford House","Concrete Repairs Ltd","722880","07/01/2021",30010342,110.82,0,"Building Expenses","Concrete Cutting, Drilling And Maintenance Contractors","II","BACS","None",2020-10-31 00:00:00,"2020","10","INV/016756","A4511","Guildford House Administration","B1002","Building Expenses"
"GUILDFORD BOROUGH COUNCIL","Guildford Museum","Concrete Repairs Ltd","722880","07/01/2021",30010342,47.49,0,"Building Expenses","Concrete Cutting, Drilling And Maintenance Contractors","II","BACS","None",2020-10-31 00:00:00,"2020","10","INV/016756","A5511","Museum","B1002","Building Expenses"
"GUILDFORD BOROUGH COUNCIL","Guildford Museum","Concrete Repairs Ltd","722880","07/01/2021",30010342,115.08,0,"Asset Maintenance","Concrete Cutting, Drilling And Maintenance Contractors","II","BACS","None",2020-10-31 00:00:00,"2020","10","INV/016756","A5511","Museum","B1001","Asset Maintenance"
"GUILDFORD BOROUGH COUNCIL","Guildford Museum","Concrete Repairs Ltd","722880","07/01/2021",30010342,113.97,0,"Building Expenses","Concrete Cutting, Drilling And Maintenance Contractors","II","BACS","None",2020-10-31 00:00:00,"2020","10","INV/016756","A5511","Museum","B1002","Building Expenses"
"GUILDFORD BOROUGH COUNCIL","Countryside and Parks Services","Concrete Repairs Ltd","722880","07/01/2021",30010342,142.48,0,"Building Expenses","Concrete Cutting, Drilling And Maintenance Contractors","II","BACS","None",2020-10-31 00:00:00,"2020","10","INV/016756","A1250","Stoke Park","B1002","Building Expenses"
"GUILDFORD BOROUGH COUNCIL","Countryside and Parks Services","Concrete Repairs Ltd","722880","07/01/2021",30010342,47.49,0,"Asset Maintenance","Concrete Cutting, Drilling And Maintenance Contractors","II","BACS","None",2020-10-31 00:00:00,"2020","10","INV/016756","A1250","Stoke Park","B1001","Asset Maintenance"
"GUILDFORD BOROUGH COUNCIL","Guildford Museum","Concrete Repairs Ltd","722880","07/01/2021",30010342,47.49,0,"Building Expenses","Concrete Cutting, Drilling And Maintenance Contractors","II","BACS","None",2020-10-31 00:00:00,"2020","10","INV/016756","A5511","Museum","B1002","Building Expenses"
"GUILDFORD BOROUGH COUNCIL","Leisure and Community","Concrete Repairs Ltd","722880","07/01/2021",30010342,91.99,0,"Building Expenses","Concrete Cutting, Drilling And Maintenance Contractors","II","BACS","None",2020-10-31 00:00:00,"2020","10","INV/016756","A8141","Park Barn Youth and Community Centre","B1002","Building Expenses"
"GUILDFORD BOROUGH COUNCIL","Investment Properties","Concrete Repairs Ltd","722880","07/01/2021",30010342,110.82,0,"Building Expenses","Concrete Cutting, Drilling And Maintenance Contractors","II","BACS","None",2020-10-31 00:00:00,"2020","10","INV/016756","B6111","Investment Property","B1002","Building Expenses"
"GUILDFORD BOROUGH COUNCIL","Day Services","Concrete Repairs Ltd","722880","07/01/2021",30010342,47.49,0,"Building Expenses","Concrete Cutting, Drilling And Maintenance Contractors","II","BACS","None",2020-10-30 00:00:00,"2020","10","INV/016756","C8100","Community Hubs","B1002","Building Expenses"
"GUILDFORD BOROUGH COUNCIL","Flats Communal Services","Concrete Repairs Ltd","722880","07/01/2021",30010342,142.78,0,"Asset Maintenance","Concrete Cutting, Drilling And Maintenance Contractors","II","BACS","None",2020-10-30 00:00:00,"2020","10","INV/016756","M3511","Walnut Tree Close Eq. Share","B1001","Asset Maintenance"
"GUILDFORD BOROUGH COUNCIL","Responsive & Planned Maintenance","Concrete Repairs Ltd","722880","07/01/2021",30010342,47.49,0,"Building Expenses","Concrete Cutting, Drilling And Maintenance Contractors","II","BACS","None",2020-10-30 00:00:00,"2020","10","INV/016756","M5113","Repairs-Responsive (BHS)","B1002","Building Expenses"
"GUILDFORD BOROUGH COUNCIL","Responsive & Planned Maintenance","Concrete Repairs Ltd","722880","07/01/2021",30010342,47.49,0,"Building Expenses","Concrete Cutting, Drilling And Maintenance Contractors","II","BACS","None",2020-10-30 00:00:00,"2020","10","INV/016756","M5113","Repairs-Responsive (BHS)","B1002","Building Expenses"
"GUILDFORD BOROUGH COUNCIL","Responsive & Planned Maintenance","Concrete Repairs Ltd","722880","07/01/2021",30010342,47.49,0,"Building Expenses","Concrete Cutting, Drilling And Maintenance Contractors","II","BACS","None",2020-10-30 00:00:00,"2020","10","INV/016756","M5113","Repairs-Responsive (BHS)","B1002","Building Expenses"
"GUILDFORD BOROUGH COUNCIL","Responsive & Planned Maintenance","Concrete Repairs Ltd","722880","07/01/2021",30010342,110.82,0,"Building Expenses","Concrete Cutting, Drilling And Maintenance Contractors","II","BACS","None",2020-10-30 00:00:00,"2020","10","INV/016756","M5113","Repairs-Responsive (BHS)","B1002","Building Expenses"
"GUILDFORD BOROUGH COUNCIL","Responsive & Planned Maintenance","Concrete Repairs Ltd","722880","07/01/2021",30010342,47.49,0,"Building Expenses","Concrete Cutting, Drilling And Maintenance Contractors","II","BACS","None",2020-10-30 00:00:00,"2020","10","INV/016756","M5113","Repairs-Responsive (BHS)","B1002","Building Expenses"
"GUILDFORD BOROUGH COUNCIL","Off Street Parking","Monatrix Ltd","851140","07/01/2021",30010343,682,0,"Asset Maintenance","Closed Circuit Television (Cctv) Suppliers","II","BACS","None",2020-01-12 00:00:00,"2020","10","14634","B2291","York Road Mscp","B1001","Asset Maintenance"
"GUILDFORD BOROUGH COUNCIL","Crematorium","Integrated Water Services Ltd","875170","07/01/2021",30010344,495,0,"Asset Maintenance","Water Treatment Service Providers","II","BACS","None",2020-11-26 00:00:00,"2020","10","CD200201359","A1500","Crematorium","B1001","Asset Maintenance"
"GUILDFORD BOROUGH COUNCIL","Responsive & Planned Maintenance","K&T Heating Services Ltd (CIS)","930000","07/01/2021",30010345,9927.93,0,"Asset Maintenance","Plumbing, Heating And Ac (Hvac) Contractors","II","BACS","None",2020-11-30 00:00:00,"2020","10","SI40475","M5114","Repairs-Cyclical (BHS)","B1001","Asset Maintenance"
"GUILDFORD BOROUGH COUNCIL","Responsive & Planned Maintenance","Town and Country Cleaning Limited","1000136","07/01/2021",30010346,150,0,"Asset Maintenance","","II","BACS","None",2020-03-12 00:00:00,"2020","10","23679","M5114","Repairs-Cyclical (BHS)","B1001","Asset Maintenance"
"GUILDFORD BOROUGH COUNCIL","Responsive & Planned Maintenance","Pennington Choices Limited","937390","07/01/2021",30010347,44.92,0,"Asset Maintenance","Construction Project Management Consultants","II","BACS","None",2020-11-30 00:00:00,"2020","10","33041","M5114","Repairs-Cyclical (BHS)","B1001","Asset Maintenance"
"GUILDFORD BOROUGH COUNCIL","Responsive & Planned Maintenance","Pennington Choices Limited","937390","07/01/2021",30010347,44.92,0,"Asset Maintenance","Construction Project Management Consultants","II","BACS","None",2020-11-30 00:00:00,"2020","10","33041","M5114","Repairs-Cyclical (BHS)","B1001","Asset Maintenance"
"GUILDFORD BOROUGH COUNCIL","Responsive & Planned Maintenance","Pennington Choices Limited","937390","07/01/2021",30010347,44.92,0,"Asset Maintenance","Construction Project Management Consultants","II","BACS","None",2020-11-30 00:00:00,"2020","10","33041","M5114","Repairs-Cyclical (BHS)","B1001","Asset Maintenance"
"GUILDFORD BOROUGH COUNCIL","Responsive & Planned Maintenance","Pennington Choices Limited","937390","07/01/2021",30010347,44.92,0,"Asset Maintenance","Construction Project Management Consultants","II","BACS","None",2020-11-30 00:00:00,"2020","10","33041","M5114","Repairs-Cyclical (BHS)","B1001","Asset Maintenance"
"GUILDFORD BOROUGH COUNCIL","Responsive & Planned Maintenance","Pennington Choices Limited","937390","07/01/2021",30010347,44.92,0,"Asset Maintenance","Construction Project Management Consultants","II","BACS","None",2020-11-30 00:00:00,"2020","10","33041","M5114","Repairs-Cyclical (BHS)","B1001","Asset Maintenance"
"GUILDFORD BOROUGH COUNCIL","Responsive & Planned Maintenance","Pennington Choices Limited","937390","07/01/2021",30010347,44.92,0,"Asset Maintenance","Construction Project Management Consultants","II","BACS","None",2020-11-30 00:00:00,"2020","10","33041","M5114","Repairs-Cyclical (BHS)","B1001","Asset Maintenance"
"GUILDFORD BOROUGH COUNCIL","Responsive & Planned Maintenance","Pennington Choices Limited","937390","07/01/2021",30010347,44.92,0,"Asset Maintenance","Construction Project Management Consultants","II","BACS","None",2020-11-30 00:00:00,"2020","10","33041","M5114","Repairs-Cyclical (BHS)","B1001","Asset Maintenance"
"GUILDFORD BOROUGH COUNCIL","Responsive & Planned Maintenance","Pennington Choices Limited","937390","07/01/2021",30010347,44.92,0,"Asset Maintenance","Construction Project Management Consultants","II","BACS","None",2020-11-30 00:00:00,"2020","10","33041","M5114","Repairs-Cyclical (BHS)","B1001","Asset Maintenance"
"GUILDFORD BOROUGH COUNCIL","Responsive & Planned Maintenance","Pennington Choices Limited","937390","07/01/2021",30010347,44.92,0,"Asset Maintenance","Construction Project Management Consultants","II","BACS","None",2020-11-30 00:00:00,"2020","10","33041","M5114","Repairs-Cyclical (BHS)","B1001","Asset Maintenance"
"GUILDFORD BOROUGH COUNCIL","Responsive & Planned Maintenance","Pennington Choices Limited","937390","07/01/2021",30010347,44.92,0,"Asset Maintenance","Construction Project Management Consultants","II","BACS","None",2020-11-30 00:00:00,"2020","10","33041","M5114","Repairs-Cyclical (BHS)","B1001","Asset Maintenance"
"GUILDFORD BOROUGH COUNCIL","Responsive & Planned Maintenance","Pennington Choices Limited","937390","07/01/2021",30010347,44.92,0,"Asset Maintenance","Construction Project Management Consultants","II","BACS","None",2020-11-30 00:00:00,"2020","10","33041","M5114","Repairs-Cyclical (BHS)","B1001","Asset Maintenance"
"GUILDFORD BOROUGH COUNCIL","Flats Communal Services","Kone Plc","904300","07/01/2021",30010348,127.62,0,"Asset Maintenance","Lift Contractors","II","BACS","None",2020-10-21 00:00:00,"2020","10","113253320","M2811","Mount Court 1 - 40 (40)","B1001","Asset Maintenance"
"GUILDFORD BOROUGH COUNCIL","Flats Communal Services","Kone Plc","904300","07/01/2021",30010349,127.62,0,"Asset Maintenance","Lift Contractors","II","BACS","None",2020-10-21 00:00:00,"2020","10","113253321","M2646","Bishops Court 1-40 (40)","B1001","Asset Maintenance"
"GUILDFORD BOROUGH COUNCIL","Responsive & Planned Maintenance","Kone Plc","904300","07/01/2021",30010350,382.86,0,"Asset Maintenance","Lift Contractors","II","BACS","None",2020-10-21 00:00:00,"2020","10","113253322","M5107","Repairs-Shelt-Cyclical (BHS)","B1001","Asset Maintenance"
"GUILDFORD BOROUGH COUNCIL","Responsive & Planned Maintenance","Kone Plc","904300","07/01/2021",30010351,63.81,0,"Asset Maintenance","Lift Contractors","II","BACS","None",2020-10-21 00:00:00,"2020","10","113253323","M5107","Repairs-Shelt-Cyclical (BHS)","B1001","Asset Maintenance"
"GUILDFORD BOROUGH COUNCIL","Flats Communal Services","Kone Plc","904300","07/01/2021",30010352,63.81,0,"Asset Maintenance","Lift Contractors","II","BACS","None",2020-10-21 00:00:00,"2020","10","113253324","M2736","Friary House 1-61 (61)","B1001","Asset Maintenance"
"GUILDFORD BOROUGH COUNCIL","Responsive & Planned Maintenance","Kone Plc","904300","07/01/2021",30010353,191.43,0,"Asset Maintenance","Lift Contractors","II","BACS","None",2020-10-21 00:00:00,"2020","10","113253325","M5107","Repairs-Shelt-Cyclical (BHS)","B1001","Asset Maintenance"
"GUILDFORD BOROUGH COUNCIL","Off Street Parking","Kone Plc","904300","07/01/2021",30010354,127.62,0,"Asset Maintenance","Lift Contractors","II","BACS","None",2020-10-21 00:00:00,"2020","10","113253327","B2216","General Upkeep- Urban Car Pks","B1001","Asset Maintenance"
"GUILDFORD BOROUGH COUNCIL","Off Street Parking","Kone Plc","904300","07/01/2021",30010355,63.81,0,"Asset Maintenance","Lift Contractors","II","BACS","None",2020-10-21 00:00:00,"2020","10","113253329","B2216","General Upkeep- Urban Car Pks","B1001","Asset Maintenance"
"GUILDFORD BOROUGH COUNCIL","Other Property","Kone Plc","904300","07/01/2021",30010356,63.81,0,"Asset Maintenance","Lift Contractors","II","BACS","None",2020-10-21 00:00:00,"2020","10","113253330","B6100","Other Property Admin","B1001","Asset Maintenance"
"GUILDFORD BOROUGH COUNCIL","Leisure and Community","Kone Plc","904300","07/01/2021",30010357,63.81,0,"Asset Maintenance","Lift Contractors","II","BACS","None",2020-10-21 00:00:00,"2020","10","113253332","A8161","Beverley Hall Community Centre","B1001","Asset Maintenance"
"GUILDFORD BOROUGH COUNCIL","Investment Properties","Kone Plc","904300","07/01/2021",30010358,63.81,0,"Asset Maintenance","Lift Contractors","II","BACS","None",2020-10-21 00:00:00,"2020","10","113253333","B6111","Investment Property","B1001","Asset Maintenance"
"GUILDFORD BOROUGH COUNCIL","Responsive & Planned Maintenance","Cranleigh Aerials Limited","698990","07/01/2021",30010359,215,0,"Building Expenses","Audio And Visual Equipment Suppliers","II","BACS","None",2020-10-21 00:00:00,"2020","10","705166","M5106","Repairs-Shelt-Responsive (BHS)","B1002","Building Expenses"
"GUILDFORD BOROUGH COUNCIL","Responsive & Planned Maintenance","Cranleigh Aerials Limited","698990","07/01/2021",30010359,475,0,"Building Expenses","Audio And Visual Equipment Suppliers","II","BACS","None",2020-10-21 00:00:00,"2020","10","705166","M5106","Repairs-Shelt-Responsive (BHS)","B1002","Building Expenses"
"GUILDFORD BOROUGH COUNCIL","Responsive & Planned Maintenance","Cranleigh Aerials Limited","698990","07/01/2021",30010360,75,0,"Building Expenses","Audio And Visual Equipment Suppliers","II","BACS","None",2020-10-29 00:00:00,"2020","10","705178","M5113","Repairs-Responsive (BHS)","B1002","Building Expenses"
"GUILDFORD BOROUGH COUNCIL","Responsive & Planned Maintenance","Stannah Limited (CIS)","913700","07/01/2021",30010361,44.9,0,"Asset Maintenance","Stairlift Suppliers","II","BACS","None",2020-09-22 00:00:00,"2020","10","1085230006","M5114","Repairs-Cyclical (BHS)","B1001","Asset Maintenance"
"GUILDFORD BOROUGH COUNCIL","Responsive & Planned Maintenance","Stannah Limited (CIS)","913700","07/01/2021",30010362,44.9,0,"Asset Maintenance","Stairlift Suppliers","II","BACS","None",2020-09-22 00:00:00,"2020","10","1085230018","M5114","Repairs-Cyclical (BHS)","B1001","Asset Maintenance"
"GUILDFORD BOROUGH COUNCIL","Responsive & Planned Maintenance","Stannah Limited (CIS)","913700","07/01/2021",30010363,44.9,0,"Asset Maintenance","Stairlift Suppliers","II","BACS","None",2020-09-22 00:00:00,"2020","10","1085230019","M5114","Repairs-Cyclical (BHS)","B1001","Asset Maintenance"
"GUILDFORD BOROUGH COUNCIL","Responsive & Planned Maintenance","Stannah Limited (CIS)","913700","07/01/2021",30010364,44.9,0,"Asset Maintenance","Stairlift Suppliers","II","BACS","None",2020-09-28 00:00:00,"2020","10","1085230547","M5114","Repairs-Cyclical (BHS)","B1001","Asset Maintenance"
"GUILDFORD BOROUGH COUNCIL","Responsive & Planned Maintenance","Stannah Limited (CIS)","913700","07/01/2021",30010365,44.9,0,"Asset Maintenance","Stairlift Suppliers","II","BACS","None",2020-09-28 00:00:00,"2020","10","1085231918","M5114","Repairs-Cyclical (BHS)","B1001","Asset Maintenance"
"GUILDFORD BOROUGH COUNCIL","Woking Road Depot","Stannah Limited (CIS)","913700","07/01/2021",30010366,204.46,0,"Asset Maintenance","Stairlift Suppliers","II","BACS","None",2020-09-29 00:00:00,"2020","10","1085232572","B4452","Woking Road Depot","B1001","Asset Maintenance"
"GUILDFORD BOROUGH COUNCIL","Woking Road Depot","Stannah Limited (CIS)","913700","07/01/2021",30010367,106.05,0,"Asset Maintenance","Stairlift Suppliers","II","BACS","None",2020-09-29 00:00:00,"2020","10","1085232596","B4452","Woking Road Depot","B1001","Asset Maintenance"
"GUILDFORD BOROUGH COUNCIL","Responsive & Planned Maintenance","Stannah Limited (CIS)","913700","07/01/2021",30010368,44.9,0,"Asset Maintenance","Stairlift Suppliers","II","BACS","None",2020-09-29 00:00:00,"2020","10","1085232598","M5114","Repairs-Cyclical (BHS)","B1001","Asset Maintenance"
"GUILDFORD BOROUGH COUNCIL","Responsive & Planned Maintenance","Stannah Limited (CIS)","913700","07/01/2021",30010369,44.02,0,"Asset Maintenance","Stairlift Suppliers","II","BACS","None",2020-09-29 00:00:00,"2020","10","1085232601","M5113","Repairs-Responsive (BHS)","B1001","Asset Maintenance"
"GUILDFORD BOROUGH COUNCIL","Responsive & Planned Maintenance","Stannah Limited (CIS)","913700","07/01/2021",30010370,198.35,0,"Asset Maintenance","Stairlift Suppliers","II","BACS","None",2020-01-10 00:00:00,"2020","10","1085233948","M5113","Repairs-Responsive (BHS)","B1001","Asset Maintenance"
"GUILDFORD BOROUGH COUNCIL","Responsive & Planned Maintenance","Stannah Limited (CIS)","913700","07/01/2021",30010371,44.9,0,"Asset Maintenance","Stairlift Suppliers","II","BACS","None",2020-02-10 00:00:00,"2020","10","1085234324","M5114","Repairs-Cyclical (BHS)","B1001","Asset Maintenance"
"GUILDFORD BOROUGH COUNCIL","Responsive & Planned Maintenance","Stannah Limited (CIS)","913700","07/01/2021",30010372,134.89,0,"Asset Maintenance","Stairlift Suppliers","II","BACS","None",2020-05-10 00:00:00,"2020","10","1085235090","M5113","Repairs-Responsive (BHS)","B1001","Asset Maintenance"
"GUILDFORD BOROUGH COUNCIL","Responsive & Planned Maintenance","Stannah Limited (CIS)","913700","07/01/2021",30010373,44.9,0,"Asset Maintenance","Stairlift Suppliers","II","BACS","None",2020-10-14 00:00:00,"2020","10","1085238498","M5114","Repairs-Cyclical (BHS)","B1001","Asset Maintenance"
"GUILDFORD BOROUGH COUNCIL","Responsive & Planned Maintenance","Stannah Limited (CIS)","913700","07/01/2021",30010374,44.9,0,"Asset Maintenance","Stairlift Suppliers","II","BACS","None",2020-10-14 00:00:00,"2020","10","1085238502","M5114","Repairs-Cyclical (BHS)","B1001","Asset Maintenance"
"GUILDFORD BOROUGH COUNCIL","Responsive & Planned Maintenance","Stannah Limited (CIS)","913700","07/01/2021",30010375,44.9,0,"Asset Maintenance","Stairlift Suppliers","II","BACS","None",2020-10-19 00:00:00,"2020","10","1085239628","M5114","Repairs-Cyclical (BHS)","B1001","Asset Maintenance"
"GUILDFORD BOROUGH COUNCIL","Responsive & Planned Maintenance","Stannah Limited (CIS)","913700","07/01/2021",30010376,106.51,0,"Asset Maintenance","Stairlift Suppliers","II","BACS","None",2020-10-19 00:00:00,"2020","10","1085239783","M5113","Repairs-Responsive (BHS)","B1001","Asset Maintenance"
"GUILDFORD BOROUGH COUNCIL","Responsive & Planned Maintenance","Stannah Limited (CIS)","913700","07/01/2021",30010377,150.07,0,"Asset Maintenance","Stairlift Suppliers","II","BACS","None",2020-10-19 00:00:00,"2020","10","1085239784","M5113","Repairs-Responsive (BHS)","B1001","Asset Maintenance"
"GUILDFORD BOROUGH COUNCIL","Responsive & Planned Maintenance","Stannah Limited (CIS)","913700","07/01/2021",30010378,125.93,0,"Asset Maintenance","Stairlift Suppliers","II","BACS","None",2020-10-19 00:00:00,"2020","10","1085239785","M5113","Repairs-Responsive (BHS)","B1001","Asset Maintenance"
"GUILDFORD BOROUGH COUNCIL","Responsive & Planned Maintenance","Stannah Limited (CIS)","913700","07/01/2021",30010379,125.93,0,"Asset Maintenance","Stairlift Suppliers","II","BACS","None",2020-10-19 00:00:00,"2020","10","1085239786","M5113","Repairs-Responsive (BHS)","B1001","Asset Maintenance"
"GUILDFORD BOROUGH COUNCIL","Responsive & Planned Maintenance","Stannah Limited (CIS)","913700","07/01/2021",30010380,44.9,0,"Asset Maintenance","Stairlift Suppliers","II","BACS","None",2020-10-30 00:00:00,"2020","10","1085244075","M5114","Repairs-Cyclical (BHS)","B1001","Asset Maintenance"
"GUILDFORD BOROUGH COUNCIL","Responsive & Planned Maintenance","Stannah Limited (CIS)","913700","07/01/2021",30010381,44.9,0,"Asset Maintenance","Stairlift Suppliers","II","BACS","None",2020-10-30 00:00:00,"2020","10","1085244076","M5114","Repairs-Cyclical (BHS)","B1001","Asset Maintenance"
"GUILDFORD BOROUGH COUNCIL","Responsive & Planned Maintenance","Stannah Limited (CIS)","913700","07/01/2021",30010382,44.9,0,"Asset Maintenance","Stairlift Suppliers","II","BACS","None",2020-10-30 00:00:00,"2020","10","1085244134","M5114","Repairs-Cyclical (BHS)","B1001","Asset Maintenance"
"GUILDFORD BOROUGH COUNCIL","Responsive & Planned Maintenance","Stannah Limited (CIS)","913700","07/01/2021",30010383,44.9,0,"Asset Maintenance","Stairlift Suppliers","II","BACS","None",2020-10-30 00:00:00,"2020","10","1085244137","M5114","Repairs-Cyclical (BHS)","B1001","Asset Maintenance"
"GUILDFORD BOROUGH COUNCIL","Responsive & Planned Maintenance","Stannah Limited (CIS)","913700","07/01/2021",30010384,150.07,0,"Asset Maintenance","Stairlift Suppliers","II","BACS","None",2020-10-30 00:00:00,"2020","10","1085244420","M5113","Repairs-Responsive (BHS)","B1001","Asset Maintenance"
"GUILDFORD BOROUGH COUNCIL","Responsive & Planned Maintenance","Stannah Limited (CIS)","913700","07/01/2021",30010385,106.05,0,"Asset Maintenance","Stairlift Suppliers","II","BACS","None",2020-10-30 00:00:00,"2020","10","1085244428","M5113","Repairs-Responsive (BHS)","B1001","Asset Maintenance"
"GUILDFORD BOROUGH COUNCIL","Responsive & Planned Maintenance","Stannah Limited (CIS)","913700","07/01/2021",30010386,44.9,0,"Asset Maintenance","Stairlift Suppliers","II","BACS","None",2020-10-30 00:00:00,"2020","10","1085244947","M5114","Repairs-Cyclical (BHS)","B1001","Asset Maintenance"
"GUILDFORD BOROUGH COUNCIL","Responsive & Planned Maintenance","Tunstall Healthcare (UK) Ltd","100310","07/01/2021",30010387,93.4,0,"Building Expenses","Community Alarm Suppliers","II","BACS","None",2020-09-11 00:00:00,"2020","10","INV/50359459","M5113","Repairs-Responsive (BHS)","B1002","Building Expenses"
"GUILDFORD BOROUGH COUNCIL","Responsive & Planned Maintenance","Tunstall Healthcare (UK) Ltd","100310","07/01/2021",30010388,128.13,0,"Building Expenses","Community Alarm Suppliers","II","BACS","None",2020-11-16 00:00:00,"2020","10","INV50359857","M5106","Repairs-Shelt-Responsive (BHS)","B1002","Building Expenses"
"GUILDFORD BOROUGH COUNCIL","Responsive & Planned Maintenance","Paul Phelan","261400","07/01/2021",30010389,59.5,0,"Asset Maintenance","Sewerage And Drainage Service Providers","II","BACS","None",2020-11-27 00:00:00,"2020","10","82672","M5113","Repairs-Responsive (BHS)","B1001","Asset Maintenance"
"GUILDFORD BOROUGH COUNCIL","Responsive & Planned Maintenance","Paul Phelan","261400","07/01/2021",30010390,76,0,"Asset Maintenance","Sewerage And Drainage Service Providers","II","BACS","None",2020-07-12 00:00:00,"2020","10","82721","M5113","Repairs-Responsive (BHS)","B1001","Asset Maintenance"
"GUILDFORD BOROUGH COUNCIL","Responsive & Planned Maintenance","Paul Phelan","261400","07/01/2021",30010391,59.5,0,"Asset Maintenance","Sewerage And Drainage Service Providers","II","BACS","None",2020-07-12 00:00:00,"2020","10","82722","M5113","Repairs-Responsive (BHS)","B1001","Asset Maintenance"
"GUILDFORD BOROUGH COUNCIL","Other Short Term Debtors","Masella Coupe Lettings","178430","12/01/2021",30010439,850,0,"Cash Paid","Property Letting And Estate Agents","II","BACS","None",2021-01-07 00:00:00,"2020","10","The Mews RIA","J01064","Housing H4U Scheme","2175","Cash Paid"
"GUILDFORD BOROUGH COUNCIL","Other Short Term Debtors","Seymours Lettings & Management","688330","12/01/2021",30010441,1200,0,"Cash Paid","Property Letting And Estate Agents","II","BACS","None",2021-01-07 00:00:00,"2020","10","Hawthorn Close RIA 070120","J01064","Housing H4U Scheme","2175","Cash Paid"
"GUILDFORD BOROUGH COUNCIL","Major Projects","Gleeds Advisory Ltd","1000172","26/01/2021",30010442,4200,0,"Consultancy","","II","BACS","None",2020-12-31 00:00:00,"2020","10","LNDM0030/007","F5530","Major Projects","D6001","Consultancy"
"GUILDFORD BOROUGH COUNCIL","Vehicle Maintenance","Berendsen Workwear Ltd T/A Elis","817300","26/01/2021",30010443,401.65,0,"Services","Linen And Blanket Suppliers","II","BACS","None",2021-01-01 00:00:00,"2020","10","SN3321771","K5551","Fleet Workshops","D6004","Services"
"GUILDFORD BOROUGH COUNCIL","Corporate Property Management","David Kingston Chartered Surveyors","970280","02/02/2021",30010444,1050,0,"Valuers Fees","Surveyors And Inspectors","II","BACS","None",2021-01-07 00:00:00,"2020","10","070121","G4575","Asset Management","D6002","Valuers Fees"
"GUILDFORD BOROUGH COUNCIL","Countryside and Parks Services","SMI Group Ltd","792570","02/02/2021",30010445,120,0,"Clothing & Uniform","Personal Protective Equipment (Ppe) Suppliers","II","BACS","None",2021-01-05 00:00:00,"2020","10","INV831007","A1100","Horticulture","D4001","Clothing & Uniform"
"GUILDFORD BOROUGH COUNCIL","Inventories","Saint-Gobain Building Distribution Limited (Jewson)","271200","12/01/2021",30010446,-184.86,0,"Purchases","Builders Merchants","II","BACS","None",2020-12-17 00:00:00,"2020","10","0374/00166482","I01001","Stocks","2591","Purchases"
"GUILDFORD BOROUGH COUNCIL","Vehicle Maintenance","PPK Services Ltd","472380","12/01/2021",30010447,180,0,"Repair And Maintenance Of Vehicles","Plant And Construction Equipment Suppliers","II","BACS","None",2020-09-15 00:00:00,"2020","10","39272","K5551","Fleet Workshops","C1002","Repair And Maintenance Of Vehicles"
"GUILDFORD BOROUGH COUNCIL","Council Tax","Morgan Hunt UK Limited","729420","26/01/2021",30010448,574.43,0,"Agency","Other Recruitment Agencies And Service Providers","II","BACS","None",2021-01-03 00:00:00,"2020","10","1210357","F6141","Council Tax Collectn Expenses","A5191","Agency"
"GUILDFORD BOROUGH COUNCIL","Business Improvement","Gravitas Recruitment Group","1000035","14/01/2021",30010449,1740,0,"Agency","","II","BACS","None",2021-01-06 00:00:00,"2020","10","INV164697","G3531","Future Guildford","A5191","Agency"
"GUILDFORD BOROUGH COUNCIL","Audit Management","Gravitas Recruitment Group","1000035","14/01/2021",30010449,1740,0,"Agency","","II","BACS","None",2021-01-06 00:00:00,"2020","10","INV164697","G3531","Future Guildford","A5191","Agency"
"GUILDFORD BOROUGH COUNCIL","Inventories","Akw Medi-Care Limited","178400","21/01/2021",30010450,61.24,0,"Purchases","Mobility Disability Equipment Suppliers","II","BACS","None",2020-12-18 00:00:00,"2020","10","1885637","I01001","Stocks","2591","Purchases"
"GUILDFORD BOROUGH COUNCIL","Building Maintenance","Cinnamon Construction Limited (CIS)","921860","12/01/2021",30010451,7981.5,0,"Services","General Builders","II","BACS","None",2021-01-04 00:00:00,"2020","10","X0068127/38","K1515","Building Maintenance","D6004","Services"
"GUILDFORD BOROUGH COUNCIL","Council Tax","IRRV","139410","02/02/2021",30010452,180,0,"Staff Costs","Professional Associations","II","BACS","None",2021-01-06 00:00:00,"2020","10","17106/IRRV2021","F6141","Council Tax Collectn Expenses","A7100","Staff Costs"
"GUILDFORD BOROUGH COUNCIL","Inventories","Saint-Gobain Building Distribution Limited (Jewson)","271200","12/01/2021",30010453,2606.56,0,"Purchases","Builders Merchants","II","BACS","None",2020-11-15 00:00:00,"2020","10","0357/00788698","I01001","Stocks","2591","Purchases"
"GUILDFORD BOROUGH COUNCIL","Car Leasing Holding Code (Service)","Car Hire (Day Of Swansea) Ltd","856090","12/01/2021",30010454,256.98,0,"Car Leasing","Car, Van And Truck Hire Companies","II","BACS","None",2020-12-01 00:00:00,"2020","10","INV00271864","G1131","Car Leasing Holding Code","C3002","Car Leasing"
"GUILDFORD BOROUGH COUNCIL","Car Leasing Holding Code (Service)","Car Hire (Day Of Swansea) Ltd","856090","12/01/2021",30010454,292.5,0,"Car Leasing","Car, Van And Truck Hire Companies","II","BACS","None",2020-12-01 00:00:00,"2020","10","INV00271864","G1131","Car Leasing Holding Code","C3002","Car Leasing"
"GUILDFORD BOROUGH COUNCIL","Civil Emergencies","Applied Resilience Limited","822600","02/02/2021",30010455,2188.75,0,"Specialist Services","Other Business Service Providers","II","BACS","None",2021-01-06 00:00:00,"2020","10","GBC79","F1511","Civil Emergencies","D6009","Specialist Services"
"GUILDFORD BOROUGH COUNCIL","Vehicle Maintenance","TGS (UK) Ltd","1000183","12/01/2021",30010456,321.32,0,"Repair And Maintenance Of Vehicles","","II","BACS","None",2020-11-19 00:00:00,"2020","10","110161","K5551","Fleet Workshops","C1002","Repair And Maintenance Of Vehicles"
"GUILDFORD BOROUGH COUNCIL","Inventories","Saint-Gobain Building Distribution Limited (Jewson)","271200","12/01/2021",30010457,-11.18,0,"Purchases","Builders Merchants","II","BACS","None",2020-12-17 00:00:00,"2020","10","0374/00166484","I01001","Stocks","2591","Purchases"
"GUILDFORD BOROUGH COUNCIL","Affordable Housing","Vivid Resourcing Limited","856800","02/02/2021",30010458,1123.5,0,"Agency","Other Recruitment Agencies And Service Providers","II","BACS","None",2021-01-06 00:00:00,"2020","10","54004","C4111","Affordable Housing Development","A5191","Agency"
"GUILDFORD BOROUGH COUNCIL","Vehicle Maintenance","Connections UK","145000","02/02/2021",30010459,273.25,0,"Repair And Maintenance Of Vehicles","Event Management Agencies","II","BACS","None",2021-01-06 00:00:00,"2020","10","3139","K5551","Fleet Workshops","C1002","Repair And Maintenance Of Vehicles"
"GUILDFORD BOROUGH COUNCIL","Tourism & Development","Publishing Events Ltd","957920","12/01/2021",30010460,295,0,"Advertising, Publicity & Promotion","Third Party Supplier","II","BACS","None",2020-11-19 00:00:00,"2020","10","79760","F5545","Tourism","D5002","Advertising, Publicity & Promotion"
"GUILDFORD BOROUGH COUNCIL","Lead Specialist - ICT","Systems Accountants Limited","975830","02/02/2021",30010461,545,0,"Consultancy","","II","BACS","None",2021-01-06 00:00:00,"2020","10","SAUK12397","G3545","ICT Specialist","D6001","Consultancy"
"GUILDFORD BOROUGH COUNCIL","Crematorium","Haverstock Associates LLP","881290","19/01/2021",30010462,2500,0,"Consultants Fees","Architects And Design Consultants","II","BACS","None",2020-12-23 00:00:00,"2020","10","7494","P05009","Refurbish/Rebuild Crematorium","1221","Consultants Fees"
"GUILDFORD BOROUGH COUNCIL","Car Leasing Holding Code (Service)","Car Hire (Day Of Swansea) Ltd","856090","26/01/2021",30010463,256.98,0,"Car Leasing","Car, Van And Truck Hire Companies","II","BACS","None",2021-01-01 00:00:00,"2020","10","INV00274964","G1131","Car Leasing Holding Code","C3002","Car Leasing"
"GUILDFORD BOROUGH COUNCIL","Car Leasing Holding Code (Service)","Car Hire (Day Of Swansea) Ltd","856090","26/01/2021",30010463,292.5,0,"Car Leasing","Car, Van And Truck Hire Companies","II","BACS","None",2021-01-01 00:00:00,"2020","10","INV00274964","G1131","Car Leasing Holding Code","C3002","Car Leasing"
"GUILDFORD BOROUGH COUNCIL","Miscellaneous Expenses","HSS Hire Service Group Limited","111310","12/01/2021",30010466,319.44,0,"Equipment","Plant And Construction Equipment Suppliers","II","BACS","None",2020-06-27 00:00:00,"2020","10","18298202","F7539","COVID-19","D2001","Equipment"
"GUILDFORD BOROUGH COUNCIL","Countryside and Parks Services","Quantified Tree Risk Assessment Limited","923250","12/01/2021",30010467,85.5,0,"Grounds Maintenance","Health And Safety Consultants","II","BACS","None",2020-11-18 00:00:00,"2020","10","10001","A1300","Trees And Countryside","B6001","Grounds Maintenance"
"GUILDFORD BOROUGH COUNCIL","Parks Countryside Management","Quantified Tree Risk Assessment Limited","923250","12/01/2021",30010467,85.5,0,"Grounds Maintenance","Health And Safety Consultants","II","BACS","None",2020-11-18 00:00:00,"2020","10","10001","A1300","Trees And Countryside","B6001","Grounds Maintenance"
"GUILDFORD BOROUGH COUNCIL","Tourism & Development","Crystal Design & Media Ltd","876030","12/01/2021",30010468,295,0,"Advertising, Publicity & Promotion","Digital Marketing Service Providers","II","BACS","None",2020-12-03 00:00:00,"2020","10","VIWP1039","F5545","Tourism","D5002","Advertising, Publicity & Promotion"
"GUILDFORD BOROUGH COUNCIL","Inventories","Saint-Gobain Building Distribution Limited (Jewson)","271200","12/01/2021",30010469,889.54,0,"Purchases","Builders Merchants","II","BACS","None",2020-11-08 00:00:00,"2020","10","0357/00788613","I01001","Stocks","2591","Purchases"
"GUILDFORD BOROUGH COUNCIL","Woking Road Depot","Zepbrook Ltd","927700","02/02/2021",30010470,170.87,0,"Catering","Other Food Suppliers","II","BACS","None",2021-01-07 00:00:00,"2020","10","SIN434429","B4452","Woking Road Depot","D3001","Catering"
"GUILDFORD BOROUGH COUNCIL","Woking Road Depot","Zepbrook Ltd","927700","02/02/2021",30010470,93.44,0,"Catering","Other Food Suppliers","II","BACS","None",2021-01-07 00:00:00,"2020","10","SIN434429","B4452","Woking Road Depot","D3001","Catering"
"GUILDFORD BOROUGH COUNCIL","Countryside and Parks Services","Healthmatic Ltd","523110","02/02/2021",30010471,1361,0,"Services","Computer Systems Integrators","II","BACS","None",2021-01-06 00:00:00,"2020","10","10456","A1300","Trees And Countryside","D6004","Services"
"GUILDFORD BOROUGH COUNCIL","Parks Countryside Management","Healthmatic Ltd","523110","02/02/2021",30010471,1361,0,"Services","Computer Systems Integrators","II","BACS","None",2021-01-06 00:00:00,"2020","10","10456","A1300","Trees And Countryside","D6004","Services"
"GUILDFORD BOROUGH COUNCIL","Countryside and Parks Services","Healthmatic Ltd","523110","02/02/2021",30010471,1530,0,"Services","Computer Systems Integrators","II","BACS","None",2021-01-06 00:00:00,"2020","10","10456","A1130","Castle Grounds","D6004","Services"
"GUILDFORD BOROUGH COUNCIL","Countryside and Parks Services","Healthmatic Ltd","523110","02/02/2021",30010471,1530,0,"Services","Computer Systems Integrators","II","BACS","None",2021-01-06 00:00:00,"2020","10","10456","A1250","Stoke Park","D6004","Services"
"GUILDFORD BOROUGH COUNCIL","Business Rates","IRRV","139410","02/02/2021",30010472,180,0,"Staff Costs","Professional Associations","II","BACS","None",2021-01-07 00:00:00,"2020","10","21415/IRRV2021","F6151","Business Rates Collection Exps","A7100","Staff Costs"
"GUILDFORD BOROUGH COUNCIL","Environmental Works","Redwood Tree Services Ltd","233190","02/02/2021",30010473,800,0,"Grounds Maintenance","Tree Work Contractors","II","BACS","None",2021-01-06 00:00:00,"2020","10","INV-0670","M4615","Env Wks To Estate (BHS)","B6001","Grounds Maintenance"
"GUILDFORD BOROUGH COUNCIL","Off Street Parking","Berendsen Workwear Ltd T/A Elis","817300","12/01/2021",30010474,22.26,0,"Services","Linen And Blanket Suppliers","II","BACS","None",2020-12-01 00:00:00,"2020","10","SN3310445","B2111","Car Parks - Administration","D6004","Services"
"GUILDFORD BOROUGH COUNCIL","Cemeteries","Berendsen Workwear Ltd T/A Elis","817300","12/01/2021",30010474,12,0,"Services","Linen And Blanket Suppliers","II","BACS","None",2020-12-01 00:00:00,"2020","10","SN3310445","A1410","Cemeteries - Admin","D6004","Services"
"GUILDFORD BOROUGH COUNCIL","Countryside and Parks Services","Berendsen Workwear Ltd T/A Elis","817300","12/01/2021",30010474,24,0,"Services","Linen And Blanket Suppliers","II","BACS","None",2020-12-01 00:00:00,"2020","10","SN3310445","A1600","Stoke Park Depot","D6004","Services"
"GUILDFORD BOROUGH COUNCIL","Guildford House","Berendsen Workwear Ltd T/A Elis","817300","12/01/2021",30010474,6.96,0,"Services","Linen And Blanket Suppliers","II","BACS","None",2020-12-01 00:00:00,"2020","10","SN3310445","A4511","Guildford House Administration","D6004","Services"
"GUILDFORD BOROUGH COUNCIL","Countryside and Parks Services","Berendsen Workwear Ltd T/A Elis","817300","12/01/2021",30010474,12,0,"Services","Linen And Blanket Suppliers","II","BACS","None",2020-12-01 00:00:00,"2020","10","SN3310445","A1230","Sutherland Memorial Park  Pavilion","D6004","Services"
"GUILDFORD BOROUGH COUNCIL","Woking Road Depot","Berendsen Workwear Ltd T/A Elis","817300","12/01/2021",30010474,194.57,0,"Services","Linen And Blanket Suppliers","II","BACS","None",2020-12-01 00:00:00,"2020","10","SN3310445","B4452","Woking Road Depot","D6004","Services"
"GUILDFORD BOROUGH COUNCIL","Food Safety","Berendsen Workwear Ltd T/A Elis","817300","12/01/2021",30010474,28.7,0,"Clothing & Uniform","Linen And Blanket Suppliers","II","BACS","None",2020-12-01 00:00:00,"2020","10","SN3310445","C1111","Food And Safety Service","D4001","Clothing & Uniform"
"GUILDFORD BOROUGH COUNCIL","Guildhall","Berendsen Workwear Ltd T/A Elis","817300","12/01/2021",30010474,128.28,0,"Services","Linen And Blanket Suppliers","II","BACS","None",2020-12-01 00:00:00,"2020","10","SN3310445","F3311","Guildhall","D6004","Services"
"GUILDFORD BOROUGH COUNCIL","Resources Caseworker","Berendsen Workwear Ltd T/A Elis","817300","12/01/2021",30010474,229.14,0,"Services","Linen And Blanket Suppliers","II","BACS","None",2020-12-01 00:00:00,"2020","10","SN3310445","G7511","Millmead House","D6004","Services"
"GUILDFORD BOROUGH COUNCIL","Millmead House","Berendsen Workwear Ltd T/A Elis","817300","12/01/2021",30010474,229.14,0,"Services","Linen And Blanket Suppliers","II","BACS","None",2020-12-01 00:00:00,"2020","10","SN3310445","G7511","Millmead House","D6004","Services"
"GUILDFORD BOROUGH COUNCIL","Development Control","Francis Taylor Building","972970","02/02/2021",30010475,3000,0,"Services","","II","BACS","None",2021-01-06 00:00:00,"2020","10","86593","D5100","Development Control - Fee Earn","D6004","Services"
"GUILDFORD BOROUGH COUNCIL","Equity Share Administration","Clarke Gammon Wellers","150290","21/01/2021",30010476,285,0,"Valuers Fees","Property Letting And Estate Agents","II","BACS","None",2020-12-29 00:00:00,"2020","10","14668","M1181","Sale Of Council Houses (BHS)","D6002","Valuers Fees"
"GUILDFORD BOROUGH COUNCIL","Lead Specialist - Finance","Adelante Software Ltd","789120","02/02/2021",30010478,678.7,0,"ICT Software","Software Developers","II","BACS","None",2021-01-05 00:00:00,"2020","10","118950","G3565","Finance Specialists","D7002","ICT Software"
"GUILDFORD BOROUGH COUNCIL","Affordable Housing","Vivid Resourcing Limited","856800","02/02/2021",30010479,401.25,0,"Agency","Other Recruitment Agencies And Service Providers","II","BACS","None",2021-01-06 00:00:00,"2020","10","54134","C4111","Affordable Housing Development","A5191","Agency"
"GUILDFORD BOROUGH COUNCIL","Countryside and Parks Services","Countryside Contracts Ltd (Hire/NON CIS)","713690","02/02/2021",30010480,33087,0,"Grounds Maintenance","Tree Work Contractors","II","BACS","None",2021-01-07 00:00:00,"2020","10","1912","A1300","Trees And Countryside","B6001","Grounds Maintenance"
"GUILDFORD BOROUGH COUNCIL","Parks Countryside Management","Countryside Contracts Ltd (Hire/NON CIS)","713690","02/02/2021",30010480,33087,0,"Grounds Maintenance","Tree Work Contractors","II","BACS","None",2021-01-07 00:00:00,"2020","10","1912","A1300","Trees And Countryside","B6001","Grounds Maintenance"
"GUILDFORD BOROUGH COUNCIL","Business Rates","IRRV","139410","02/02/2021",30010481,180,0,"Staff Costs","Professional Associations","II","BACS","None",2021-01-07 00:00:00,"2020","10","18705/IRRV2021","F6151","Business Rates Collection Exps","A7100","Staff Costs"
"GUILDFORD BOROUGH COUNCIL","Industrial Estates","Ermc Limited","698460","26/01/2021",30010482,650,0,"Consultants Fees","Construction Project Management Consultants","II","BACS","None",2020-12-31 00:00:00,"2020","10","08736","P72037","Midleton Ind Est Redevelop","1221","Consultants Fees"
"GUILDFORD BOROUGH COUNCIL","Off Street Parking","Brand Pest Control","202390","12/01/2021",30010483,295,0,"Cleaning Contractors","Pest And Vermin Control Service Providers","II","BACS","None",2020-09-01 00:00:00,"2020","10","1816","B2219","Bedford Road Mscp","D6006","Cleaning Contractors"
"GUILDFORD BOROUGH COUNCIL","Lead Specialist - ICT","Systems Accountants Limited","975830","02/02/2021",30010484,9810,0,"Consultancy","","II","BACS","None",2021-01-05 00:00:00,"2020","10","SAUK12365","G3545","ICT Specialist","D6001","Consultancy"
"GUILDFORD BOROUGH COUNCIL","Community Safety","Applied Resilience Limited","822600","02/02/2021",30010485,700.42,0,"Consultancy","Other Business Service Providers","II","BACS","None",2021-01-06 00:00:00,"2020","10","GBC80","F5724","Safer Guildford Partnership","D6001","Consultancy"
"GUILDFORD BOROUGH COUNCIL","Vehicle Maintenance","PPK Services Ltd","472380","12/01/2021",30010486,240,0,"Repair And Maintenance Of Vehicles","Plant And Construction Equipment Suppliers","II","BACS","None",2020-09-15 00:00:00,"2020","10","39273","K5551","Fleet Workshops","C1002","Repair And Maintenance Of Vehicles"
"GUILDFORD BOROUGH COUNCIL","Business Improvement","E-Personnel Recruitment Ltd","720390","02/02/2021",30010487,130.4,0,"Consultancy","Other Recruitment Agencies And Service Providers","II","BACS","None",2021-01-06 00:00:00,"2020","10","15677","G3531","Future Guildford","D6001","Consultancy"
"GUILDFORD BOROUGH COUNCIL","Audit Management","E-Personnel Recruitment Ltd","720390","02/02/2021",30010487,130.4,0,"Consultancy","Other Recruitment Agencies And Service Providers","II","BACS","None",2021-01-06 00:00:00,"2020","10","15677","G3531","Future Guildford","D6001","Consultancy"
"GUILDFORD BOROUGH COUNCIL","Property","Perfect Circle JV Ltd","919010","26/01/2021",30010488,5698.72,0,"Consultants Fees","Construction Project Management Consultants","II","BACS","None",2020-11-24 00:00:00,"2020","10","28442592","P74040","Slyfield Area Regeneration Project","1221","Consultants Fees"
"GUILDFORD BOROUGH COUNCIL","Guildhall","Berendsen Workwear Ltd T/A Elis","817300","26/01/2021",30010489,128.28,0,"Services","Linen And Blanket Suppliers","II","BACS","None",2021-01-01 00:00:00,"2020","10","SN3322716","F3311","Guildhall","D6004","Services"
"GUILDFORD BOROUGH COUNCIL","Resources Caseworker","Berendsen Workwear Ltd T/A Elis","817300","26/01/2021",30010489,208.7,0,"Services","Linen And Blanket Suppliers","II","BACS","None",2021-01-01 00:00:00,"2020","10","SN3322716","G7511","Millmead House","D6004","Services"
"GUILDFORD BOROUGH COUNCIL","Millmead House","Berendsen Workwear Ltd T/A Elis","817300","26/01/2021",30010489,208.7,0,"Services","Linen And Blanket Suppliers","II","BACS","None",2021-01-01 00:00:00,"2020","10","SN3322716","G7511","Millmead House","D6004","Services"
"GUILDFORD BOROUGH COUNCIL","Countryside and Parks Services","Berendsen Workwear Ltd T/A Elis","817300","26/01/2021",30010489,24,0,"Services","Linen And Blanket Suppliers","II","BACS","None",2021-01-01 00:00:00,"2020","10","SN3322716","A1600","Stoke Park Depot","D6004","Services"
"GUILDFORD BOROUGH COUNCIL","Guildford House","Berendsen Workwear Ltd T/A Elis","817300","26/01/2021",30010489,6.96,0,"Services","Linen And Blanket Suppliers","II","BACS","None",2021-01-01 00:00:00,"2020","10","SN3322716","A4511","Guildford House Administration","D6004","Services"
"GUILDFORD BOROUGH COUNCIL","Off Street Parking","Berendsen Workwear Ltd T/A Elis","817300","26/01/2021",30010489,22.26,0,"Services","Linen And Blanket Suppliers","II","BACS","None",2021-01-01 00:00:00,"2020","10","SN3322716","B2111","Car Parks - Administration","D6004","Services"
"GUILDFORD BOROUGH COUNCIL","Cemeteries","Berendsen Workwear Ltd T/A Elis","817300","26/01/2021",30010489,12,0,"Services","Linen And Blanket Suppliers","II","BACS","None",2021-01-01 00:00:00,"2020","10","SN3322716","A1410","Cemeteries - Admin","D6004","Services"
"GUILDFORD BOROUGH COUNCIL","Countryside and Parks Services","Berendsen Workwear Ltd T/A Elis","817300","26/01/2021",30010489,12,0,"Services","Linen And Blanket Suppliers","II","BACS","None",2021-01-01 00:00:00,"2020","10","SN3322716","A1230","Sutherland Memorial Park  Pavilion","D6004","Services"
"GUILDFORD BOROUGH COUNCIL","Woking Road Depot","Berendsen Workwear Ltd T/A Elis","817300","26/01/2021",30010489,194.57,0,"Services","Linen And Blanket Suppliers","II","BACS","None",2021-01-01 00:00:00,"2020","10","SN3322716","B4452","Woking Road Depot","D6004","Services"
"GUILDFORD BOROUGH COUNCIL","Food Safety","Berendsen Workwear Ltd T/A Elis","817300","26/01/2021",30010489,28.7,0,"Clothing & Uniform","Linen And Blanket Suppliers","II","BACS","None",2021-01-01 00:00:00,"2020","10","SN3322716","C1111","Food And Safety Service","D4001","Clothing & Uniform"
"GUILDFORD BOROUGH COUNCIL","Emergency Communications","PPP Taking Care","971860","26/01/2021",30010490,3661.17,0,"Specialist Services","","II","BACS","None",2020-12-31 00:00:00,"2020","10","S1527238","C2511","Careline/Telecare","D6009","Specialist Services"
"GUILDFORD BOROUGH COUNCIL","Off Street Parking","JC Electrics (Guildford) Ltd","748360","12/01/2021",30010491,1906,0,"Asset Maintenance","Electrical Wiring And Parts Suppliers","II","BACS","None",2020-07-12 00:00:00,"2020","10","T0477","B2254","Lawn Road Car Park","B1001","Asset Maintenance"
"GUILDFORD BOROUGH COUNCIL","Renovations","Central Linemarkings Ltd","125800","12/01/2021",30010492,200,0,"Contractor Payments","Road Marking Service Providers","II","BACS","None",2020-01-09 00:00:00,"2020","10","53627","N40282","Disabled adaptations 2020-21","1233","Contractor Payments"
"GUILDFORD BOROUGH COUNCIL","Modern Homes","Breyer Group Plc","129090","12/01/2021",30010493,12106.77,0,"Contractor Payments","General Builders","II","BACS","None",2020-02-12 00:00:00,"2020","10","50693","N42066","Kitchen & Bathroom refurb 2020-21","1233","Contractor Payments"
"GUILDFORD BOROUGH COUNCIL","Modern Homes","Breyer Group Plc","129090","12/01/2021",30010493,17797.09,0,"Contractor Payments","General Builders","II","BACS","None",2020-02-12 00:00:00,"2020","10","50693","N42067","Void properties 2020-21","1233","Contractor Payments"
"GUILDFORD BOROUGH COUNCIL","Modern Homes","Breyer Group Plc","129090","12/01/2021",30010494,7566.33,0,"Contractor Payments","General Builders","II","BACS","None",2020-02-12 00:00:00,"2020","10","50694","N42066","Kitchen & Bathroom refurb 2020-21","1233","Contractor Payments"
"GUILDFORD BOROUGH COUNCIL","Modern Homes","Breyer Group Plc","129090","12/01/2021",30010494,4611.66,0,"Contractor Payments","General Builders","II","BACS","None",2020-02-12 00:00:00,"2020","10","50694","N42067","Void properties 2020-21","1233","Contractor Payments"
"GUILDFORD BOROUGH COUNCIL","Modern Homes","Breyer Group Plc","129090","12/01/2021",30010495,20000,0,"Contractor Payments","General Builders","II","BACS","None",2020-02-12 00:00:00,"2020","10","50695","N48056","Structural works 2020-21","1233","Contractor Payments"
"GUILDFORD BOROUGH COUNCIL","Modern Homes","Breyer Group Plc","129090","12/01/2021",30010496,6110.14,0,"Contractor Payments","General Builders","II","BACS","None",2020-02-12 00:00:00,"2020","10","50696","N48056","Structural works 2020-21","1233","Contractor Payments"
"GUILDFORD BOROUGH COUNCIL","Modern Homes","Breyer Group Plc","129090","12/01/2021",30010497,964.37,0,"Contractor Payments","General Builders","II","BACS","None",2020-02-12 00:00:00,"2020","10","50697","N48056","Structural works 2020-21","1233","Contractor Payments"
"GUILDFORD BOROUGH COUNCIL","Modern Homes","Breyer Group Plc","129090","12/01/2021",30010498,5417.5,0,"Contractor Payments","General Builders","II","BACS","None",2020-02-12 00:00:00,"2020","10","50698","N48056","Structural works 2020-21","1233","Contractor Payments"
"GUILDFORD BOROUGH COUNCIL","Modern Homes","Breyer Group Plc","129090","12/01/2021",30010499,2553.13,0,"Contractor Payments","General Builders","II","BACS","None",2020-03-12 00:00:00,"2020","10","50699","N42067","Void properties 2020-21","1233","Contractor Payments"
"GUILDFORD BOROUGH COUNCIL","Modern Homes","Breyer Group Plc","129090","12/01/2021",30010500,7932.91,0,"Contractor Payments","General Builders","II","BACS","None",2020-12-16 00:00:00,"2020","10","50772","N42066","Kitchen & Bathroom refurb 2020-21","1233","Contractor Payments"
"GUILDFORD BOROUGH COUNCIL","Modern Homes","Breyer Group Plc","129090","12/01/2021",30010500,18598.33,0,"Contractor Payments","General Builders","II","BACS","None",2020-12-16 00:00:00,"2020","10","50772","N42067","Void properties 2020-21","1233","Contractor Payments"
"GUILDFORD BOROUGH COUNCIL","Responsive & Planned Maintenance","Bolton Gate Services Ltd","495400","12/01/2021",30010501,200,0,"Asset Maintenance","Security Shutter, Door And Gate Contractors","II","BACS","None",2020-08-14 00:00:00,"2020","10","SI0033860","M5106","Repairs-Shelt-Responsive (BHS)","B1001","Asset Maintenance"
"GUILDFORD BOROUGH COUNCIL","Day Services","Bolton Gate Services Ltd","495400","12/01/2021",30010502,319.5,0,"Asset Maintenance","Security Shutter, Door And Gate Contractors","II","BACS","None",2020-12-18 00:00:00,"2020","10","SI0041984","C8100","Community Hubs","B1001","Asset Maintenance"
"GUILDFORD BOROUGH COUNCIL","Modern Homes","T Gilmartin Limited","949710","12/01/2021",30010503,9107.24,0,"Contractor Payments","Asbestos Removal Service Providers","II","BACS","None",2020-02-11 00:00:00,"2020","10","159064","N42066","Kitchen & Bathroom refurb 2020-21","1233","Contractor Payments"
"GUILDFORD BOROUGH COUNCIL","Responsive & Planned Maintenance","Guildford Fencing Co (CIS)","788901","12/01/2021",30010504,210,0,"Asset Maintenance","","II","BACS","None",2020-12-14 00:00:00,"2020","10","13948","M5113","Repairs-Responsive (BHS)","B1001","Asset Maintenance"
"GUILDFORD BOROUGH COUNCIL","Responsive & Planned Maintenance","Guildford Fencing Co (CIS)","788901","12/01/2021",30010504,150,0,"Asset Maintenance","","II","BACS","None",2020-12-14 00:00:00,"2020","10","13948","M5113","Repairs-Responsive (BHS)","B1001","Asset Maintenance"
"GUILDFORD BOROUGH COUNCIL","Responsive & Planned Maintenance","C F Property Services","116200","12/01/2021",30010505,100,0,"Asset Maintenance","General Builders","II","BACS","None",2020-01-11 00:00:00,"2020","10","CO91","M5113","Repairs-Responsive (BHS)","B1001","Asset Maintenance"
"GUILDFORD BOROUGH COUNCIL","Responsive & Planned Maintenance","K&T Heating Services Ltd (CIS)","930000","12/01/2021",30010506,1045.03,0,"Asset Maintenance","Plumbing, Heating And Ac (Hvac) Contractors","II","BACS","None",2020-12-16 00:00:00,"2020","10","SI40960","M5114","Repairs-Cyclical (BHS)","B1001","Asset Maintenance"
"GUILDFORD BOROUGH COUNCIL","Responsive & Planned Maintenance","K&T Heating Services Ltd (CIS)","930000","12/01/2021",30010507,326.76,0,"Asset Maintenance","Plumbing, Heating And Ac (Hvac) Contractors","II","BACS","None",2020-12-16 00:00:00,"2020","10","SI40961","M5114","Repairs-Cyclical (BHS)","B1001","Asset Maintenance"
"GUILDFORD BOROUGH COUNCIL","Modern Homes","Perega Limited","144020","12/01/2021",30010508,197.5,0,"Contractor Payments","Other Construction Consultants","II","BACS","None",2020-12-14 00:00:00,"2020","10","11231","N48056","Structural works 2020-21","1233","Contractor Payments"
"GUILDFORD BOROUGH COUNCIL","Responsive & Planned Maintenance","Pennington Choices Limited","937390","12/01/2021",30010509,44.92,0,"Asset Maintenance","Construction Project Management Consultants","II","BACS","None",2020-09-30 00:00:00,"2020","10","32516","M5114","Repairs-Cyclical (BHS)","B1001","Asset Maintenance"
"GUILDFORD BOROUGH COUNCIL","Responsive & Planned Maintenance","Pennington Choices Limited","937390","12/01/2021",30010509,44.92,0,"Asset Maintenance","Construction Project Management Consultants","II","BACS","None",2020-09-30 00:00:00,"2020","10","32516","M5114","Repairs-Cyclical (BHS)","B1001","Asset Maintenance"
"GUILDFORD BOROUGH COUNCIL","Responsive & Planned Maintenance","Pennington Choices Limited","937390","12/01/2021",30010509,44.92,0,"Asset Maintenance","Construction Project Management Consultants","II","BACS","None",2020-09-30 00:00:00,"2020","10","32516","M5114","Repairs-Cyclical (BHS)","B1001","Asset Maintenance"
"GUILDFORD BOROUGH COUNCIL","Responsive & Planned Maintenance","Pennington Choices Limited","937390","12/01/2021",30010509,44.92,0,"Asset Maintenance","Construction Project Management Consultants","II","BACS","None",2020-09-30 00:00:00,"2020","10","32516","M5114","Repairs-Cyclical (BHS)","B1001","Asset Maintenance"
"GUILDFORD BOROUGH COUNCIL","Responsive & Planned Maintenance","Pennington Choices Limited","937390","12/01/2021",30010509,44.92,0,"Asset Maintenance","Construction Project Management Consultants","II","BACS","None",2020-09-30 00:00:00,"2020","10","32516","M5114","Repairs-Cyclical (BHS)","B1001","Asset Maintenance"
"GUILDFORD BOROUGH COUNCIL","Responsive & Planned Maintenance","Pennington Choices Limited","937390","12/01/2021",30010509,44.92,0,"Asset Maintenance","Construction Project Management Consultants","II","BACS","None",2020-09-30 00:00:00,"2020","10","32516","M5114","Repairs-Cyclical (BHS)","B1001","Asset Maintenance"
"GUILDFORD BOROUGH COUNCIL","Responsive & Planned Maintenance","Pennington Choices Limited","937390","12/01/2021",30010509,44.92,0,"Asset Maintenance","Construction Project Management Consultants","II","BACS","None",2020-09-30 00:00:00,"2020","10","32516","M5114","Repairs-Cyclical (BHS)","B1001","Asset Maintenance"
"GUILDFORD BOROUGH COUNCIL","Responsive & Planned Maintenance","Pennington Choices Limited","937390","12/01/2021",30010509,44.92,0,"Asset Maintenance","Construction Project Management Consultants","II","BACS","None",2020-09-30 00:00:00,"2020","10","32516","M5114","Repairs-Cyclical (BHS)","B1001","Asset Maintenance"
"GUILDFORD BOROUGH COUNCIL","Responsive & Planned Maintenance","Pennington Choices Limited","937390","12/01/2021",30010509,44.92,0,"Asset Maintenance","Construction Project Management Consultants","II","BACS","None",2020-09-30 00:00:00,"2020","10","32516","M5114","Repairs-Cyclical (BHS)","B1001","Asset Maintenance"
"GUILDFORD BOROUGH COUNCIL","Responsive & Planned Maintenance","Pennington Choices Limited","937390","12/01/2021",30010509,44.92,0,"Asset Maintenance","Construction Project Management Consultants","II","BACS","None",2020-09-30 00:00:00,"2020","10","32516","M5114","Repairs-Cyclical (BHS)","B1001","Asset Maintenance"
"GUILDFORD BOROUGH COUNCIL","Responsive & Planned Maintenance","Pennington Choices Limited","937390","12/01/2021",30010509,44.92,0,"Asset Maintenance","Construction Project Management Consultants","II","BACS","None",2020-09-30 00:00:00,"2020","10","32516","M5114","Repairs-Cyclical (BHS)","B1001","Asset Maintenance"
"GUILDFORD BOROUGH COUNCIL","Responsive & Planned Maintenance","Pennington Choices Limited","937390","12/01/2021",30010509,44.92,0,"Asset Maintenance","Construction Project Management Consultants","II","BACS","None",2020-09-30 00:00:00,"2020","10","32516","M5114","Repairs-Cyclical (BHS)","B1001","Asset Maintenance"
"GUILDFORD BOROUGH COUNCIL","Responsive & Planned Maintenance","Pennington Choices Limited","937390","12/01/2021",30010509,44.92,0,"Asset Maintenance","Construction Project Management Consultants","II","BACS","None",2020-09-30 00:00:00,"2020","10","32516","M5114","Repairs-Cyclical (BHS)","B1001","Asset Maintenance"
"GUILDFORD BOROUGH COUNCIL","Responsive & Planned Maintenance","Pennington Choices Limited","937390","12/01/2021",30010509,44.92,0,"Asset Maintenance","Construction Project Management Consultants","II","BACS","None",2020-09-30 00:00:00,"2020","10","32516","M5114","Repairs-Cyclical (BHS)","B1001","Asset Maintenance"
"GUILDFORD BOROUGH COUNCIL","Responsive & Planned Maintenance","Pennington Choices Limited","937390","12/01/2021",30010509,44.92,0,"Asset Maintenance","Construction Project Management Consultants","II","BACS","None",2020-09-30 00:00:00,"2020","10","32516","M5114","Repairs-Cyclical (BHS)","B1001","Asset Maintenance"
"GUILDFORD BOROUGH COUNCIL","Responsive & Planned Maintenance","Pennington Choices Limited","937390","12/01/2021",30010509,44.92,0,"Asset Maintenance","Construction Project Management Consultants","II","BACS","None",2020-09-30 00:00:00,"2020","10","32516","M5114","Repairs-Cyclical (BHS)","B1001","Asset Maintenance"
"GUILDFORD BOROUGH COUNCIL","Responsive & Planned Maintenance","ABM Surveys Limited","926480","12/01/2021",30010510,65,0,"Asset Maintenance","Pest And Vermin Control Service Providers","II","BACS","None",2020-11-12 00:00:00,"2020","10","1790","M5113","Repairs-Responsive (BHS)","B1001","Asset Maintenance"
"GUILDFORD BOROUGH COUNCIL","Responsive & Planned Maintenance","ABM Surveys Limited","926480","12/01/2021",30010511,65,0,"Asset Maintenance","Pest And Vermin Control Service Providers","II","BACS","None",2020-11-12 00:00:00,"2020","10","1791","M5113","Repairs-Responsive (BHS)","B1001","Asset Maintenance"
"GUILDFORD BOROUGH COUNCIL","Responsive & Planned Maintenance","ABM Surveys Limited","926480","12/01/2021",30010512,65,0,"Asset Maintenance","Pest And Vermin Control Service Providers","II","BACS","None",2020-11-12 00:00:00,"2020","10","1792","M5113","Repairs-Responsive (BHS)","B1001","Asset Maintenance"
"GUILDFORD BOROUGH COUNCIL","Responsive & Planned Maintenance","ABM Surveys Limited","926480","12/01/2021",30010513,65,0,"Asset Maintenance","Pest And Vermin Control Service Providers","II","BACS","None",2020-11-12 00:00:00,"2020","10","1794","M5113","Repairs-Responsive (BHS)","B1001","Asset Maintenance"
"GUILDFORD BOROUGH COUNCIL","Responsive & Planned Maintenance","ABM Surveys Limited","926480","12/01/2021",30010514,85,0,"Asset Maintenance","Pest And Vermin Control Service Providers","II","BACS","None",2020-11-12 00:00:00,"2020","10","1795","M5113","Repairs-Responsive (BHS)","B1001","Asset Maintenance"
"GUILDFORD BOROUGH COUNCIL","Responsive & Planned Maintenance","ABM Surveys Limited","926480","12/01/2021",30010515,65,0,"Asset Maintenance","Pest And Vermin Control Service Providers","II","BACS","None",2020-11-12 00:00:00,"2020","10","1796","M5113","Repairs-Responsive (BHS)","B1001","Asset Maintenance"
"GUILDFORD BOROUGH COUNCIL","Responsive & Planned Maintenance","ABM Surveys Limited","926480","12/01/2021",30010516,65,0,"Asset Maintenance","Pest And Vermin Control Service Providers","II","BACS","None",2020-12-18 00:00:00,"2020","10","1802","M5113","Repairs-Responsive (BHS)","B1001","Asset Maintenance"
"GUILDFORD BOROUGH COUNCIL","Responsive & Planned Maintenance","ABM Surveys Limited","926480","12/01/2021",30010517,65,0,"Asset Maintenance","Pest And Vermin Control Service Providers","II","BACS","None",2020-12-18 00:00:00,"2020","10","1803","M5113","Repairs-Responsive (BHS)","B1001","Asset Maintenance"
"GUILDFORD BOROUGH COUNCIL","Responsive & Planned Maintenance","ABM Surveys Limited","926480","12/01/2021",30010518,65,0,"Asset Maintenance","Pest And Vermin Control Service Providers","II","BACS","None",2020-12-18 00:00:00,"2020","10","1804","M5113","Repairs-Responsive (BHS)","B1001","Asset Maintenance"
"GUILDFORD BOROUGH COUNCIL","Responsive & Planned Maintenance","ABM Surveys Limited","926480","12/01/2021",30010519,65,0,"Asset Maintenance","Pest And Vermin Control Service Providers","II","BACS","None",2020-12-18 00:00:00,"2020","10","1805","M5113","Repairs-Responsive (BHS)","B1001","Asset Maintenance"
"GUILDFORD BOROUGH COUNCIL","Responsive & Planned Maintenance","Thomas Door & Window Controls Ltd","183530","12/01/2021",30010520,65,0,"Asset Maintenance","Security Shutter, Door And Gate Contractors","II","BACS","None",2020-12-18 00:00:00,"2020","10","180402","M5113","Repairs-Responsive (BHS)","B1001","Asset Maintenance"
"GUILDFORD BOROUGH COUNCIL","Responsive & Planned Maintenance","Thomas Door & Window Controls Ltd","183530","12/01/2021",30010521,65,0,"Asset Maintenance","Security Shutter, Door And Gate Contractors","II","BACS","None",2020-12-18 00:00:00,"2020","10","180403","M5113","Repairs-Responsive (BHS)","B1001","Asset Maintenance"
"GUILDFORD BOROUGH COUNCIL","Responsive & Planned Maintenance","Cranleigh Aerials Limited","698990","12/01/2021",30010522,75,0,"Building Expenses","Audio And Visual Equipment Suppliers","II","BACS","None",2020-12-18 00:00:00,"2020","10","705219","M5113","Repairs-Responsive (BHS)","B1002","Building Expenses"
"GUILDFORD BOROUGH COUNCIL","Responsive & Planned Maintenance","Stannah Limited (CIS)","913700","12/01/2021",30010523,617.21,0,"Asset Maintenance","Stairlift Suppliers","II","BACS","None",2020-06-16 00:00:00,"2020","10","1085199003","M5113","Repairs-Responsive (BHS)","B1001","Asset Maintenance"
"GUILDFORD BOROUGH COUNCIL","Responsive & Planned Maintenance","Paul Phelan","261400","12/01/2021",30010524,152,0,"Asset Maintenance","Sewerage And Drainage Service Providers","II","BACS","None",2020-08-12 00:00:00,"2020","10","82730","M5113","Repairs-Responsive (BHS)","B1001","Asset Maintenance"
"GUILDFORD BOROUGH COUNCIL","Responsive & Planned Maintenance","Paul Phelan","261400","12/01/2021",30010525,100,0,"Asset Maintenance","Sewerage And Drainage Service Providers","II","BACS","None",2020-08-12 00:00:00,"2020","10","82731","M5113","Repairs-Responsive (BHS)","B1001","Asset Maintenance"
"GUILDFORD BOROUGH COUNCIL","Responsive & Planned Maintenance","Paul Phelan","261400","12/01/2021",30010526,59.5,0,"Asset Maintenance","Sewerage And Drainage Service Providers","II","BACS","None",2020-08-12 00:00:00,"2020","10","82732","M5113","Repairs-Responsive (BHS)","B1001","Asset Maintenance"
"GUILDFORD BOROUGH COUNCIL","Public Conveniences","Paul Phelan","261400","12/01/2021",30010527,76,0,"Asset Maintenance","Sewerage And Drainage Service Providers","II","BACS","None",2020-08-12 00:00:00,"2020","10","82733","K6500","Public Conveniences","B1001","Asset Maintenance"
"GUILDFORD BOROUGH COUNCIL","Public Conveniences","Paul Phelan","261400","12/01/2021",30010528,76,0,"Asset Maintenance","Sewerage And Drainage Service Providers","II","BACS","None",2020-09-12 00:00:00,"2020","10","82742","K6500","Public Conveniences","B1001","Asset Maintenance"
"GUILDFORD BOROUGH COUNCIL","Flats Communal Services","Paul Phelan","261400","12/01/2021",30010529,76,0,"Asset Maintenance","Sewerage And Drainage Service Providers","II","BACS","None",2020-09-12 00:00:00,"2020","10","82743","M2646","Bishops Court 1-40 (40)","B1001","Asset Maintenance"
"GUILDFORD BOROUGH COUNCIL","Responsive & Planned Maintenance","Paul Phelan","261400","12/01/2021",30010530,59.5,0,"Asset Maintenance","Sewerage And Drainage Service Providers","II","BACS","None",2020-09-12 00:00:00,"2020","10","82744","M5113","Repairs-Responsive (BHS)","B1001","Asset Maintenance"
"GUILDFORD BOROUGH COUNCIL","Responsive & Planned Maintenance","Paul Phelan","261400","12/01/2021",30010531,59.5,0,"Asset Maintenance","Sewerage And Drainage Service Providers","II","BACS","None",2020-10-12 00:00:00,"2020","10","82750","M5113","Repairs-Responsive (BHS)","B1001","Asset Maintenance"
"GUILDFORD BOROUGH COUNCIL","Responsive & Planned Maintenance","Paul Phelan","261400","12/01/2021",30010532,59.5,0,"Asset Maintenance","Sewerage And Drainage Service Providers","II","BACS","None",2020-11-12 00:00:00,"2020","10","82755","M5113","Repairs-Responsive (BHS)","B1001","Asset Maintenance"
"GUILDFORD BOROUGH COUNCIL","Leisure and Community","Paul Phelan","261400","12/01/2021",30010533,59.5,0,"Asset Maintenance","Sewerage And Drainage Service Providers","II","BACS","None",2020-12-15 00:00:00,"2020","10","82764","A8151","Stoughton Youth and Community Centre","B1001","Asset Maintenance"
"GUILDFORD BOROUGH COUNCIL","Responsive & Planned Maintenance","Paul Phelan","261400","12/01/2021",30010534,76,0,"Asset Maintenance","Sewerage And Drainage Service Providers","II","BACS","None",2020-12-15 00:00:00,"2020","10","82765","M5113","Repairs-Responsive (BHS)","B1001","Asset Maintenance"
